{"text_format":"1","workbook":"xlsx","n_sheets":19,"sheets":["Deckblatt","Anleitung","Richtlinien Jugendförderung","Update","Deandl","Buam","Jugendleiter","Erhebungsbogen","Maßnahme 1 - Betreuer","Maßnahme 1 - Teilnehmer","Maßnahme 1 - Antrag","Maßnahme 2 - Betreuer","Maßnahme 2 - Teilnehmer","Maßnahme 2 - Antrag","Maßnahme 3 - Betreuer","Maßnahme 3 - Teilnehmer","Maßnahme 3 - Antrag","Förderantrag","Zusätzliche Auswertungen"],"not_rendered":{"charts":0,"images":27,"macros":1,"external_links":2,"defined_names":8,"comments":3,"pivot_tables":0},"unopened":[],"bounds":{"document_bytes":16777216,"sheet_cells":100000,"rows_first":2000,"rows_last":500,"rows_between":2000,"halvings":0,"cell_chars":16384,"cell_head_chars":4096},"cells_cut":0,"cells_raw":0,"read":"whole","date_system":"1900"}

{"sheet":"Deckblatt","index":0,"n_rows":231,"n_cols":6,"rows_kept":231,"cut":false,"hidden":false,"merged":[[21,0,21,1],[26,0,26,1],[0,0,0,1],[1,0,1,1],[2,0,2,1],[9,0,9,1]]}
["Bayerische Trachtenjugend e.V.",null,{"$f":"TODAY()","v":"2023-10-13"}]
["Kinder und Jugenderfassung"]
[{"$f":"TEXT(TODAY()-31,\"jjJJ\")","v":"2023"}]
["zum Stichtag",{"$f":"IF(C4=1,(DATE(YEAR(TODAY()),10,32)-366),DATE(YEAR(TODAY()),10,31))","v":"2023-10-31"},{"$f":"MONTH(TODAY())","v":10}]
["(Vereinsname eintragen)","(Vereinsort eintragen)"]
["Gauverband:","(Gauverband auswählen)"]
["Regierungsbezirk:","(Regierungsbezirk auswählen)"]
["Landkreis:"]
["Kinder- und Jugenderfassung Version 2.10","Erstellt durch: Andal Huber ~ Lantfriedstraße 5 ~ 82387 Antdorf"]
["Vertretungsberechtigte Person:"]
["Name:",null,null,null,null," = Pflichtfeld"]
["Vorname:"]
["Geburtsdatum:",null,null,null,null," = Kannfeld"]
["Funktion:"]
["Straße:"]
["Hausnummer:"]
["PLZ:"]
["Ort:"]
["Telefon:"]
["E-Mail:"]
[]
["Bankverbindung"]
["Kreditinstitut:"]
["IBAN:"]
["BIC:"]
[]
["Sonstiges"]
["Steuernummer:"]
["Zuständiges Finanzamt"]
["Vereinsregisternummer:"]
[]
[]
[]
[]
[]
[]
["Kinder- und Jugenderfassung Version 2.11","Erstellt durch: Andal Huber ~ Lantfriedstraße 5 ~ 82387 Antdorf"]
[]
[]
[]
[]
[]
[]
[]
[]
[]
[]
[]
[]
[]
[]
[]
[]
[]
[]
[]
[]
[]
[]
[]
[]
[]
[]
[]
[]
[]
[]
[]
[]
[]
[]
[]
[]
[]
[]
[]
[]
[]
[]
[]
[]
[]
[]
[]
[]
[]
[]
[]
[]
[]
[]
[]
[]
[]
[]
[]
[]
[]
[]
[]
[]
[]
[]
[]
[]
[]
[]
[]
[]
[]
[]
[]
[]
[]
[]
[]
[]
[]
[]
[]
[]
[]
[]
[]
[]
[]
[]
[]
[]
[]
[]
[]
[]
[]
[]
[]
[]
[]
[]
[]
[]
[]
[]
[]
[]
[]
[]
[]
[]
[]
[]
[]
[]
[]
[]
[]
[]
[]
[]
[]
[]
[]
[]
[]
[]
[]
[]
[]
[]
[]
[]
[]
[]
[]
[]
[]
[]
[]
[]
[]
[]
[]
[]
[]
[]
[]
[]
[]
[]
[]
[]
[]
[]
[]
["(Regierungsbezirk auswählen)"]
["Oberbayern"]
["Niederbayern"]
["Oberpfalz"]
["Oberfranken"]
["Mittelfranken"]
["Unterfranken"]
["Schwaben"]
[]
[]
[]
[]
[]
[]
["(Gauverband auswählen)"]
["Allgäuer Gauverband"]
["Altbayrisch-Schwäbischer Gau"]
["Bayerischer - Inngau"]
["Bayerischer Waldgau"]
["Chiemgau-Alpenverband"]
["Donaugau"]
["Dreiflüsse - Trachtengau"]
["Gauverband I"]
["Gauverband Oberpfalz"]
["Huosigau"]
["Isargau"]
["Lechgauverband"]
["Loisachgau"]
["Oberer Lechgau"]
["Oberlandler Gauverband"]
["Oberpfälzer  Gauverband"]
["Rhein-Main-Gauverband"]
["Trachtengau München und Umgebung"]
["Trachtengau Niederbayern"]
["Trachtengauverband Oberfranken"]
["Trachtenverband Unterfranken"]
["Vereinigung links der Donau"]

{"sheet":"Anleitung","index":1,"n_rows":293,"n_cols":5,"rows_kept":293,"cut":false,"hidden":false,"merged":[[277,0,277,6],[139,0,140,6],[168,0,170,6],[208,0,210,6],[207,0,207,6],[275,0,275,6],[214,0,215,6],[77,0,78,6],[82,0,83,6],[5,0,5,6],[25,0,26,6],[28,0,29,6],[31,0,31,6],[51,0,52,6]]}
["Anleitung zur Kinder- und Jugenderfassung"]
[]
["Die Kinder und Jugenderfassung soll euch Jugendleiter bei eurer Arbeit im Verein unterstützen."]
["So dient sie zum einen als Mitgliederverwaltung und soll euch zum anderen bei der jährlichen Antragstellung der Jugendförderung behilflich sein."]
["1. Deckblatt"]
["Die Jahreszahl wird automatisch für das entsprechende Jahr eingetragen.              "]
["Die Ermittlung erfolgt immer zum Stichtag 31.10. des jeweiligen Jahres"]
["Vereinsname (z.B. D´Waxnstoana) und Vereinsort (z.B. Antdorf) eintragen"]
[]
["Regierungsbezirk vom Vereinssitz und Gauverband auswählen"]
[]
["Über die Schaltflächen gelangt man zu den entsprechenden Arbeitsmappen"]
[]
["Die Felder bitte entsprechend ausfüllen."]
[]
[null,"Felder müssen ausgefüllt werden"]
[null,"Felder können ausgefüllt werden"]
["2. Deandl bzw. Buam"]
[]
[]
[]
[]
["2.1 Übersicht"]
["Die meisten Schaltflächen sind selbsterklärend."]
[]
["Bei drücken von \"Neis Deandl/Bua\" öffnet sich eine Maske zum Eintragen eines neuen Deandls/eines neuen Buam"]
[]
[]
["Drückt man auf \"Deandl/Bua ändern wird der Eintrag des Deandls/Buam geöffnet in dem der Cursor steht"]
[]
[]
["Bei Deandl/Bua löschen wird der Eintrag gelöscht in dem der Cursor steht"]
[]
[]
[]
["Speichern, Druckvorschau und Drucken dürften selbsterklärend sein."]
[]
[]
[]
[]
[]
[]
[]
["Die \"Zusätzlichen Angaben I-III\" kann jeder Verein/Gauverband selbst bestimmen"]
["z.B. Zusätzliche Angaben I - \"Münchner Kind\" / Zusätzliche Angaben II -  Tracht vom Verein ausgeliehen / Zusätzliche Angaben III - Weitere Angaben"]
["In der Erfassung kann dies dann entsprechen ausgefüllt werden"]
[]
[]
[]
["2.2. Erfassungsmaske"]
[]
["Hier werden die persönlichen Angaben der Kinder und Jugendlichen eingetragen"]
[]
[]
["Hier können die verschiedenen Gruppen / Tätigkeiten / Aktivitäten "]
["der/des Jugendlichen ausgewählt werden."]
["Sobald eine Gruppe (z.B. Dreherin) ausgewählt wurde wird automatisch"]
["bei \"Jugendliche bis einschl. 26 Jahren\" ebenfalls ein Haken gesetzt."]
["Wird \"Jugendliche ist Passiv\" ausgewählt werden alle weiteren Haken gelöscht."]
[]
["Trifft keine der Gruppen / Tätigkeiten / Aktivitäten auf die/den Jugendlichen zu"]
["oder übt sie/er weitere/andere aus können diese als \"Sonstiges 1-3\" erfasst werden."]
["Dabei muss jedoch die Bezeichnung der sonstigen Tätigkeit mit eingetragen werden."]
[]
["Hier können freiwillige Angaben getätigt werden"]
["Legt ein Verein / Gau für eine Angabe in der Deandl bzw. Buam - Übersicht fest, "]
["so muss der Text genau definiert werden welcher in das Feld geschrieben werden soll."]
["z.B."]
["Zusätzliche Angaben I - Münchner Kind"]
["Wenn ja dann X wenn nein dann leer",null,null,null,"oder \"Ja\" und \"Nein\""]
[]
["Nur so kann eine genaue Auswertung im Bereich \"Zusätzliche Auswertungen\" erfolgen."]
[]
[]
[]
["2.3 Änderungsmaske"]
[]
["Die Änderungsmaske ist die selbe Maske wie die der Erfassung nur mit den bereits erfassten Daten des jeweiligen Kindes / Jugendlichen."]
[]
["Hier können nachträglich Aktivitäten  gelöscht bzw. hinzugefügt werden und die/den Jugendliche auf \"Passiv\" setzen."]
["2.4 Deandl/Bua löschen"]
[]
["Deandl/Bua wird hiermit gelöscht (es gibt kein zurück) jedoch eine vorherige Sicherheitsabfrage."]
[]
[]
[]
[]
[]
[]
[]
[]
["3. Jugendleiter"]
[]
["3.1 Übersicht"]
[]
["Schaltflächen sind grundsätzlich die gleichen wie bei der Erfassung der Deandl bzw. Buam."]
[]
[]
[]
[]
[]
[]
["3.2 Erfassungsmaske"]
[]
["Hier werden die Daten der Jugendleiter erfasst. Neben den Angaben wie Name und Adressdaten werden hier auch die Aus- und Weiterbildungen sowie die JULEICA-Nummer erfasst."]
["Jugendleiter ohne JULEICA-Nummer und gültiger JULEICA werden nicht in den Erhebungsbogen bzw. Förderantrag übernommen!"]
["Unter Sonstiges können noch zusätzliche Angaben gemacht werden."]
[]
[]
[]
[]
[]
[]
[]
[]
[]
[]
[]
[]
[]
[]
[]
[]
[]
[]
[]
[]
[]
[]
[]
[]
[]
[]
[]
[]
[]
[]
["4. Mehrfachzählung / Jugenderhebungsbogen"]
[]
["Die in den Arbeitsmappen erfassten Daten der Kinder/Jugendlichen werden in diese Maske eingefügt"]
[]
[]
["Der Vereinsname, Sitz des Vereins sowie der Regierungsbezirk wird aus dem Deckblatt übernommen."]
[]
["Die Jugendleiter müssen selbst eingetragen werden."]
[]
[]
[]
[]
[]
[]
[]
[]
[]
[]
[]
[]
[]
[]
[]
[]
[]
[]
[]
[]
[]
[]
[]
["In dieser Maske muss noch die Anzahl der Mitarbeiter in der Jugendarbeit (z.B. Eltern, Vorplattler,…) einzutragen. Alle anderen Daten werden vom Programm selbstständig eingetragen."]
[]
[]
["Hier werden die qualifizierten Jugendleiter (ab 2018 nur mit JULEICA) aus der Jugendleitererfassung übernommen."]
[]
["Die maximal förderfähigen Jugendleiter werden  anhand der Richtlinien (je angefangene 10 Jugendliche ein förderfähiger Jugendleiter) berechnet"]
[]
["Sobald alle Kinder und Jugendlichen eingetragen und der Erhebungsbogen fertig ausgefüllt ist, muss der Erhebungsbogen mit der Schaltfläche "]
["gespeichert werden. Dabei werden nur die Daten im Erhebungsbogen als Extra-Datei gespeichert."]
["Diese Datei müsst ihr dann eurem Gaujugendleiter per Email zukommen lassen."]
["Unbedingt vor der Extra Ausgabe die Exceleistellungen überprüfen, dass nur ein Tabellenblatt in einer neuen Datei eingefügt werden soll."]
[]
[]
[]
[]
[]
[]
[]
[]
[]
[]
[]
[]
[]
[]
[]
[]
[]
["5. Maßnahmenanträge"]
[]
["Mit der Version 2.11 wurden die Maßnahmenanträge in die Jugenderhebung integriert, um den neuen Förderantrag auch entsprechend befüllen zu können."]
["Die Anträge sind dabei die gleichen wie bisher und gliedern sich in Betreuer, Teilnehmer und Antrag auf."]
["Die Angaben aus der Betreuer-Maske werden entsprechend in Teilnehmer und Antrag übernommen."]
["Anlagen wie Einladung, Ziel und Zweck der Maßnahme sowie der Ablaufplan müssen wie bisher separat erstellt und beigefügt werden."]
[]
["Die für den Hauptförderantrag notwendigen Daten werden nach der Fertigstellung des Maßnahmenantrags automatisch in diesen übernommen."]
[]
[]
["6. Förderantrag"]
[]
["Mit der Version 2.11 wurde der neue Förderantrag integriert, dieser wird wie bisher mit den notwendigen Daten aus der Jugenderhebung, sowie jetzt neu auch mit den Daten der Maßnahmenanträge vorausgefüllt."]
[]
[]
[]
[]
["Ein paar Angabe werden vom Deckblatt übernommen. "]
["Die Angaben zur vertretungsberechtigten Person sowie die Bankverbindung des Vereins müssen noch eingetragen werden."]
[]
[]
[]
[]
[]
[]
[]
[]
[]
[]
[]
[]
[]
[]
[]
[]
[]
[]
[]
[]
[]
[]
[]
["Bei den Maßnahmen werden fast alle Daten aus dem Maßnahmenantrag"]
["übernommen. "]
[]
[]
["Es ist hier nur noch eine stichpunktartige Beschreibung zu ergänzen."]
[]
[]
[]
[]
[]
[]
[]
[]
[]
[]
[]
[]
[]
[]
[]
[]
[]
[]
[]
[]
["Die höhe der Zuwendung für die Projektförderung wird aus den"]
["Maßnahmenanträgen zusammen addiert und eingetragen."]
[]
[]
[]
[]
["Die Höhe der beantragten Auszahlungsumme ermittelt sich aus der"]
["Summe der Maßnahmenanträge sowie einer fiktiven Pro-Kopf- "]
["und Qualifiziertenförderung. "]
["Zur Berechnung werden derzeit 20,-€ je förderfähigen Jugendlichen"]
["und 100,-€ je förderfähigen Jugendleiter"]
["angesetzt."]
["Dies dient nur zur Antragstellung! Der dann tatsächliche Auszahlungsbetrag wird von der Jugendgeschäftstelle nach"]
["Abschluss der Förderanträge ermittelt!"]
[]
[]
[]
[]
["7. Zusätzliche Auswertungen"]
[]
["Mit den \"Zusätzlichen Auswertungen\" können die Listen der Deandl und Buam nach gewissen Kriterien ausgewertet werden."]
["Dabei wird die ausgewählte Spalte nach den eingetragenen Suchkriterium durchsucht und die gesamte Anzahl ausgewiesen."]
["So kann z.B. die Anzahl der Kinder des gleichen Alters oder mit der gleichen Postleitzahl angezeigt werden"]
[]
["Weiterhin sind auch Auswertungen der \"Zusätzlichen Angaben\" wie z.B. \"Münchner Kind\" möglich"]
["Hierbei ist es wichtig, dass bei der Erfassung immer die gleiche Angabe eingetragen wurde"]
["z.B. Münchner Kind  Wenn ja dann \"X\""]
["so kann man in der Spalte \"Zusätzliche Angaben I\" als Suchkriterium \"X\" eintragen "]
["dann ermittelt das Programm die Anzahl der Kinder welche in dieser Spalte ein \"X\" eingetragen haben."]
["Dies funktioniert auch mit \"Ja\", \"Nein\" oder anderen Texten."]

{"sheet":"Richtlinien Jugendförderung","index":2,"n_rows":10,"n_cols":3,"rows_kept":10,"cut":false,"hidden":false,"merged":[[0,1,0,6]]}
[null,"Richtlinien für die Förderung der Jugendarbeit im Bayerischen Trachtenverband e.V."]
[]
["Änderungen ab 2023"]
[]
[" - förderfähig sind die Kinder erst ab dem vollendeten 3. Lebensjahr"]
[" - Stichtag für die Erhebung ist der 31.10. des Förderjahres "]
[" - daraus folgt:",null," - Kinder die bis zum 31.10. des Förderjahres ihren 3. Gebutstag feiern sind bereits im akutellen Jahr förderfähig"]
[null,null," - Kinder die nach dem 31.10. des Förderjahres ihren 3. Geburtstag feiern sind erst ab dem nächsten Jahr förderfähig"]
[null,null," - Jugendliche die vor dem (oder am)  31.10. des Förderjahres ihren 27. Gebutstag feiern sind im aktuellen Jahr nicht mehr förderfähig"]
[null,null," - Jugendliche die nach dem 31.10.  des Förderjahres ihren 27. Geburtstag feiern sind im aktuellen Jahr noch förderfähig"]

{"sheet":"Update","index":3,"n_rows":35,"n_cols":1,"rows_kept":35,"cut":false,"hidden":false,"merged":[[1,0,1,1]]}
["Update der Jugenderhebung auf die aktuelle Version"]
["Um Eure Jugenderfassung auf den neuesten Stand zu bringen ist ein Update erforderlich. Um eure Daten unkompliziert und möglichst fehlerfrei zu übertragen wurde die Funktion \"Update auf neueste Version eingeführt. Um das Update zu starten klickt ihr auf die Schaltfläche \"Update auf neueste Version\" "]
["Anschließend öffnet sich folgendes Fenster:"]
[]
[]
[]
[]
[]
[]
[]
[]
[]
[]
[]
[]
[]
[]
[]
[]
[]
["In diesem fenster wählt ihr eure aktuelle Jugenderhebung mit den aktuellen Daten aus."]
["Nach Bestätigung auf \"OK\" liest das Programm die Daten aus der alten Version in die neue Version ein."]
["Unter Umständen kommt folgende Meldung:"]
[]
["Diese bitte mit \"Aktualisieren\" bestätigen."]
["Die Daten aus der alten Version werden dann übernommen. Je nach Leistungsfähigkeit des PC´s dauert es ca. 10-30 Sekunden."]
[]
["Wenn alles funktioniert hat erscheint folgende Meldung:"]
[]
[]
[]
[]
[]
[]
["Diese Meldung mit \"OK\" bestätigen und anschließend die Datei speichern."]

{"sheet":"Deandl","index":4,"n_rows":984,"n_cols":31,"rows_kept":984,"cut":false,"hidden":false,"merged":[[0,22,0,23],[0,24,0,25],[0,26,0,27]]}
["Nr.","Name","Vorname","Geburtstag",{"$f":"Deckblatt!B4","v":"2023-10-31"},"Telefon","Straße","PLZ","Ort","JG","PG","VT","SG","VM","BS","SG","MU","TH","MK","BA","PA","Eintrittsjahr",null,null,null,null,null,null,"(Bezeichnung eintragen)","(Bezeichnung eintragen)","(Bezeichnung eintragen)"]
[]
[]
[]
[]
[]
[]
[]
[]
[]
[]
[]
[]
[]
[]
[]
[]
[]
[]
[]
[]
[]
[]
[]
[]
[]
[]
[]
[]
[]
[]
[]
[]
[]
[]
[]
[]
[]
[]
[]
[]
[]
[]
[]
[]
[]
[]
[]
[]
[]
[]
[]
[]
[]
[]
[]
[]
[]
[]
[]
[]
[]
[]
[]
[]
[]
[]
[]
[]
[]
[]
[]
[]
[]
[]
[]
[]
[]
[]
[]
[]
[]
[]
[]
[]
[]
[]
[]
[]
[]
[]
[]
[]
[]
[]
[]
[]
[]
[]
[]
[]
[]
[]
[]
[]
[]
[]
[]
[]
[]
[]
[]
[]
[]
[]
[]
[]
[]
[]
[]
[]
[]
[]
[]
[]
[]
[]
[]
[]
[]
[]
[]
[]
[]
[]
[]
[]
[]
[]
[]
[]
[]
[]
[]
[]
[]
[]
[]
[]
[]
[]
[]
[]
[]
[]
[]
[]
[]
[]
[]
[]
[]
[]
[]
[]
[]
[]
[]
[]
[]
[]
[]
[]
[]
[]
[]
[]
[]
[]
[]
[]
[]
[]
[]
[]
[]
[]
[]
[]
[]
[]
[]
[]
[]
[]
[]
[]
[]
[]
[]
[null,null,null,null,""]
[null,null,null,null,""]
[null,null,null,null,""]
[null,null,null,null,""]
[null,null,null,null,""]
[null,null,null,null,""]
[null,null,null,null,""]
[null,null,null,null,""]
[null,null,null,null,""]
[null,null,null,null,""]
[null,null,null,null,""]
[null,null,null,null,""]
[null,null,null,null,""]
[null,null,null,null,""]
[null,null,null,null,""]
[null,null,null,null,""]
[null,null,null,null,""]
[null,null,null,null,""]
[null,null,null,null,""]
[null,null,null,null,""]
[null,null,null,null,""]
[null,null,null,null,""]
[null,null,null,null,""]
[null,null,null,null,""]
[null,null,null,null,""]
[null,null,null,null,""]
[null,null,null,null,""]
[null,null,null,null,""]
[null,null,null,null,""]
[null,null,null,null,""]
[null,null,null,null,""]
[null,null,null,null,""]
[null,null,null,null,""]
[null,null,null,null,""]
[null,null,null,null,""]
[null,null,null,null,""]
[null,null,null,null,""]
[null,null,null,null,""]
[null,null,null,null,""]
[null,null,null,null,""]
[null,null,null,null,""]
[null,null,null,null,""]
[null,null,null,null,""]
[null,null,null,null,""]
[null,null,null,null,""]
[null,null,null,null,""]
[null,null,null,null,""]
[null,null,null,null,""]
[null,null,null,null,""]
[null,null,null,null,""]
[null,null,null,null,""]
[null,null,null,null,""]
[null,null,null,null,""]
[null,null,null,null,""]
[null,null,null,null,""]
[null,null,null,null,""]
[null,null,null,null,""]
[null,null,null,null,""]
[null,null,null,null,""]
[null,null,null,null,""]
[null,null,null,null,""]
[null,null,null,null,""]
[null,null,null,null,""]
[null,null,null,null,""]
[null,null,null,null,""]
[null,null,null,null,""]
[null,null,null,null,""]
[null,null,null,null,""]
[null,null,null,null,""]
[null,null,null,null,""]
[null,null,null,null,""]
[null,null,null,null,""]
[null,null,null,null,""]
[null,null,null,null,""]
[null,null,null,null,""]
[null,null,null,null,""]
[null,null,null,null,""]
[null,null,null,null,""]
[null,null,null,null,""]
[null,null,null,null,""]
[null,null,null,null,""]
[null,null,null,null,""]
[null,null,null,null,""]
[null,null,null,null,""]
[null,null,null,null,""]
[null,null,null,null,""]
[null,null,null,null,""]
[null,null,null,null,""]
[null,null,null,null,""]
[null,null,null,null,""]
[null,null,null,null,""]
[null,null,null,null,""]
[null,null,null,null,""]
[null,null,null,null,""]
[null,null,null,null,""]
[null,null,null,null,""]
[null,null,null,null,""]
[null,null,null,null,""]
[null,null,null,null,""]
[null,null,null,null,""]
[null,null,null,null,""]
[null,null,null,null,""]
[null,null,null,null,""]
[null,null,null,null,""]
[null,null,null,null,""]
[null,null,null,null,""]
[null,null,null,null,""]
[null,null,null,null,""]
[null,null,null,null,""]
[null,null,null,null,""]
[null,null,null,null,""]
[null,null,null,null,""]
[null,null,null,null,""]
[null,null,null,null,""]
[null,null,null,null,""]
[null,null,null,null,""]
[null,null,null,null,""]
[null,null,null,null,""]
[null,null,null,null,""]
[null,null,null,null,""]
[null,null,null,null,""]
[null,null,null,null,""]
[null,null,null,null,""]
[null,null,null,null,""]
[null,null,null,null,""]
[null,null,null,null,""]
[null,null,null,null,""]
[null,null,null,null,""]
[null,null,null,null,""]
[null,null,null,null,""]
[null,null,null,null,""]
[null,null,null,null,""]
[null,null,null,null,""]
[null,null,null,null,""]
[null,null,null,null,""]
[null,null,null,null,""]
[null,null,null,null,""]
[null,null,null,null,""]
[null,null,null,null,""]
[null,null,null,null,""]
[null,null,null,null,""]
[null,null,null,null,""]
[null,null,null,null,""]
[null,null,null,null,""]
[null,null,null,null,""]
[null,null,null,null,""]
[null,null,null,null,""]
[null,null,null,null,""]
[null,null,null,null,""]
[null,null,null,null,""]
[null,null,null,null,""]
[null,null,null,null,""]
[null,null,null,null,""]
[null,null,null,null,""]
[null,null,null,null,""]
[null,null,null,null,""]
[null,null,null,null,""]
[null,null,null,null,""]
[null,null,null,null,""]
[null,null,null,null,""]
[null,null,null,null,""]
[null,null,null,null,""]
[null,null,null,null,""]
[null,null,null,null,""]
[null,null,null,null,""]
[null,null,null,null,""]
[null,null,null,null,""]
[null,null,null,null,""]
[null,null,null,null,""]
[null,null,null,null,""]
[null,null,null,null,""]
[null,null,null,null,""]
[null,null,null,null,""]
[null,null,null,null,""]
[null,null,null,null,""]
[null,null,null,null,""]
[null,null,null,null,""]
[null,null,null,null,""]
[null,null,null,null,""]
[null,null,null,null,""]
[null,null,null,null,""]
[null,null,null,null,""]
[null,null,null,null,""]
[null,null,null,null,""]
[null,null,null,null,""]
[null,null,null,null,""]
[null,null,null,null,""]
[null,null,null,null,""]
[null,null,null,null,""]
[null,null,null,null,""]
[null,null,null,null,""]
[null,null,null,null,""]
[null,null,null,null,""]
[null,null,null,null,""]
[null,null,null,null,""]
[null,null,null,null,""]
[null,null,null,null,""]
[null,null,null,null,""]
[null,null,null,null,""]
[null,null,null,null,""]
[null,null,null,null,""]
[null,null,null,null,""]
[null,null,null,null,""]
[null,null,null,null,""]
[null,null,null,null,""]
[null,null,null,null,""]
[null,null,null,null,""]
[null,null,null,null,""]
[null,null,null,null,""]
[null,null,null,null,""]
[null,null,null,null,""]
[null,null,null,null,""]
[null,null,null,null,""]
[null,null,null,null,""]
[null,null,null,null,""]
[null,null,null,null,""]
[null,null,null,null,""]
[null,null,null,null,""]
[null,null,null,null,""]
[null,null,null,null,""]
[null,null,null,null,""]
[null,null,null,null,""]
[null,null,null,null,""]
[null,null,null,null,""]
[null,null,null,null,""]
[null,null,null,null,""]
[null,null,null,null,""]
[null,null,null,null,""]
[null,null,null,null,""]
[null,null,null,null,""]
[null,null,null,null,""]
[null,null,null,null,""]
[null,null,null,null,""]
[null,null,null,null,""]
[null,null,null,null,""]
[null,null,null,null,""]
[null,null,null,null,""]
[null,null,null,null,""]
[null,null,null,null,""]
[null,null,null,null,""]
[null,null,null,null,""]
[null,null,null,null,""]
[null,null,null,null,""]
[null,null,null,null,""]
[null,null,null,null,""]
[null,null,null,null,""]
[null,null,null,null,""]
[null,null,null,null,""]
[null,null,null,null,""]
[null,null,null,null,""]
[null,null,null,null,""]
[null,null,null,null,""]
[null,null,null,null,""]
[null,null,null,null,""]
[null,null,null,null,""]
[null,null,null,null,""]
[null,null,null,null,""]
[null,null,null,null,""]
[null,null,null,null,""]
[null,null,null,null,""]
[null,null,null,null,""]
[null,null,null,null,""]
[null,null,null,null,""]
[null,null,null,null,""]
[null,null,null,null,""]
[null,null,null,null,""]
[null,null,null,null,""]
[null,null,null,null,""]
[null,null,null,null,""]
[null,null,null,null,""]
[null,null,null,null,""]
[null,null,null,null,""]
[null,null,null,null,""]
[null,null,null,null,""]
[null,null,null,null,""]
[null,null,null,null,""]
[null,null,null,null,""]
[null,null,null,null,""]
[null,null,null,null,""]
[null,null,null,null,""]
[null,null,null,null,""]
[null,null,null,null,""]
[null,null,null,null,""]
[null,null,null,null,""]
[null,null,null,null,""]
[null,null,null,null,""]
[null,null,null,null,""]
[null,null,null,null,""]
[null,null,null,null,""]
[null,null,null,null,""]
[null,null,null,null,""]
[null,null,null,null,""]
[null,null,null,null,""]
[null,null,null,null,""]
[null,null,null,null,""]
[null,null,null,null,""]
[null,null,null,null,""]
[null,null,null,null,""]
[null,null,null,null,""]
[null,null,null,null,""]
[null,null,null,null,""]
[null,null,null,null,""]
[null,null,null,null,""]
[null,null,null,null,""]
[null,null,null,null,""]
[null,null,null,null,""]
[null,null,null,null,""]
[null,null,null,null,""]
[null,null,null,null,""]
[null,null,null,null,""]
[null,null,null,null,""]
[null,null,null,null,""]
[null,null,null,null,""]
[null,null,null,null,""]
[null,null,null,null,""]
[null,null,null,null,""]
[null,null,null,null,""]
[null,null,null,null,""]
[null,null,null,null,""]
[null,null,null,null,""]
[null,null,null,null,""]
[null,null,null,null,""]
[null,null,null,null,""]
[null,null,null,null,""]
[null,null,null,null,""]
[null,null,null,null,""]
[null,null,null,null,""]
[null,null,null,null,""]
[null,null,null,null,""]
[null,null,null,null,""]
[null,null,null,null,""]
[null,null,null,null,""]
[null,null,null,null,""]
[null,null,null,null,""]
[null,null,null,null,""]
[null,null,null,null,""]
[null,null,null,null,""]
[null,null,null,null,""]
[null,null,null,null,""]
[null,null,null,null,""]
[null,null,null,null,""]
[null,null,null,null,""]
[null,null,null,null,""]
[null,null,null,null,""]
[null,null,null,null,""]
[null,null,null,null,""]
[null,null,null,null,""]
[null,null,null,null,""]
[null,null,null,null,""]
[null,null,null,null,""]
[null,null,null,null,""]
[null,null,null,null,""]
[null,null,null,null,""]
[null,null,null,null,""]
[null,null,null,null,""]
[null,null,null,null,""]
[null,null,null,null,""]
[null,null,null,null,""]
[null,null,null,null,""]
[null,null,null,null,""]
[null,null,null,null,""]
[null,null,null,null,""]
[null,null,null,null,""]
[null,null,null,null,""]
[null,null,null,null,""]
[null,null,null,null,""]
[null,null,null,null,""]
[null,null,null,null,""]
[null,null,null,null,""]
[null,null,null,null,""]
[null,null,null,null,""]
[null,null,null,null,""]
[null,null,null,null,""]
[null,null,null,null,""]
[null,null,null,null,""]
[null,null,null,null,""]
[null,null,null,null,""]
[null,null,null,null,""]
[null,null,null,null,""]
[null,null,null,null,""]
[null,null,null,null,""]
[null,null,null,null,""]
[null,null,null,null,""]
[null,null,null,null,""]
[null,null,null,null,""]
[null,null,null,null,""]
[null,null,null,null,""]
[null,null,null,null,""]
[null,null,null,null,""]
[null,null,null,null,""]
[null,null,null,null,""]
[null,null,null,null,""]
[null,null,null,null,""]
[null,null,null,null,""]
[null,null,null,null,""]
[null,null,null,null,""]
[null,null,null,null,""]
[null,null,null,null,""]
[null,null,null,null,""]
[null,null,null,null,""]
[null,null,null,null,""]
[null,null,null,null,""]
[null,null,null,null,""]
[null,null,null,null,""]
[null,null,null,null,""]
[null,null,null,null,""]
[null,null,null,null,""]
[null,null,null,null,""]
[null,null,null,null,""]
[null,null,null,null,""]
[null,null,null,null,""]
[null,null,null,null,""]
[null,null,null,null,""]
[null,null,null,null,""]
[null,null,null,null,""]
[null,null,null,null,""]
[null,null,null,null,""]
[null,null,null,null,""]
[null,null,null,null,""]
[null,null,null,null,""]
[null,null,null,null,""]
[null,null,null,null,""]
[null,null,null,null,""]
[null,null,null,null,""]
[null,null,null,null,""]
[null,null,null,null,""]
[null,null,null,null,""]
[null,null,null,null,""]
[null,null,null,null,""]
[null,null,null,null,""]
[null,null,null,null,""]
[null,null,null,null,""]
[null,null,null,null,""]
[null,null,null,null,""]
[null,null,null,null,""]
[null,null,null,null,""]
[null,null,null,null,""]
[null,null,null,null,""]
[null,null,null,null,""]
[null,null,null,null,""]
[null,null,null,null,""]
[null,null,null,null,""]
[null,null,null,null,""]
[null,null,null,null,""]
[null,null,null,null,""]
[null,null,null,null,""]
[null,null,null,null,""]
[null,null,null,null,""]
[null,null,null,null,""]
[null,null,null,null,""]
[null,null,null,null,""]
[null,null,null,null,""]
[null,null,null,null,""]
[null,null,null,null,""]
[null,null,null,null,""]
[null,null,null,null,""]
[null,null,null,null,""]
[null,null,null,null,""]
[null,null,null,null,""]
[null,null,null,null,""]
[null,null,null,null,""]
[null,null,null,null,""]
[null,null,null,null,""]
[null,null,null,null,""]
[null,null,null,null,""]
[null,null,null,null,""]
[null,null,null,null,""]
[null,null,null,null,""]
[null,null,null,null,""]
[null,null,null,null,""]
[null,null,null,null,""]
[null,null,null,null,""]
[null,null,null,null,""]
[null,null,null,null,""]
[null,null,null,null,""]
[null,null,null,null,""]
[null,null,null,null,""]
[null,null,null,null,""]
[null,null,null,null,""]
[null,null,null,null,""]
[null,null,null,null,""]
[null,null,null,null,""]
[null,null,null,null,""]
[null,null,null,null,""]
[null,null,null,null,""]
[null,null,null,null,""]
[null,null,null,null,""]
[null,null,null,null,""]
[null,null,null,null,""]
[null,null,null,null,""]
[null,null,null,null,""]
[null,null,null,null,""]
[null,null,null,null,""]
[null,null,null,null,""]
[null,null,null,null,""]
[null,null,null,null,""]
[null,null,null,null,""]
[null,null,null,null,""]
[null,null,null,null,""]
[null,null,null,null,""]
[null,null,null,null,""]
[null,null,null,null,""]
[null,null,null,null,""]
[null,null,null,null,""]
[null,null,null,null,""]
[null,null,null,null,""]
[null,null,null,null,""]
[null,null,null,null,""]
[null,null,null,null,""]
[null,null,null,null,""]
[null,null,null,null,""]
[null,null,null,null,""]
[null,null,null,null,""]
[null,null,null,null,""]
[null,null,null,null,""]
[null,null,null,null,""]
[null,null,null,null,""]
[null,null,null,null,""]
[null,null,null,null,""]
[null,null,null,null,""]
[null,null,null,null,""]
[null,null,null,null,""]
[null,null,null,null,""]
[null,null,null,null,""]
[null,null,null,null,""]
[null,null,null,null,""]
[null,null,null,null,""]
[null,null,null,null,""]
[null,null,null,null,""]
[null,null,null,null,""]
[null,null,null,null,""]
[null,null,null,null,""]
[null,null,null,null,""]
[null,null,null,null,""]
[null,null,null,null,""]
[null,null,null,null,""]
[null,null,null,null,""]
[null,null,null,null,""]
[null,null,null,null,""]
[null,null,null,null,""]
[null,null,null,null,""]
[null,null,null,null,""]
[null,null,null,null,""]
[null,null,null,null,""]
[null,null,null,null,""]
[null,null,null,null,""]
[null,null,null,null,""]
[null,null,null,null,""]
[null,null,null,null,""]
[null,null,null,null,""]
[null,null,null,null,""]
[null,null,null,null,""]
[null,null,null,null,""]
[null,null,null,null,""]
[null,null,null,null,""]
[null,null,null,null,""]
[null,null,null,null,""]
[null,null,null,null,""]
[null,null,null,null,""]
[null,null,null,null,""]
[null,null,null,null,""]
[null,null,null,null,""]
[null,null,null,null,""]
[null,null,null,null,""]
[null,null,null,null,""]
[null,null,null,null,""]
[null,null,null,null,""]
[null,null,null,null,""]
[null,null,null,null,""]
[null,null,null,null,""]
[null,null,null,null,""]
[null,null,null,null,""]
[null,null,null,null,""]
[null,null,null,null,""]
[null,null,null,null,""]
[null,null,null,null,""]
[null,null,null,null,""]
[null,null,null,null,""]
[null,null,null,null,""]
[null,null,null,null,""]
[null,null,null,null,""]
[null,null,null,null,""]
[null,null,null,null,""]
[null,null,null,null,""]
[null,null,null,null,""]
[null,null,null,null,""]
[null,null,null,null,""]
[null,null,null,null,""]
[null,null,null,null,""]
[null,null,null,null,""]
[null,null,null,null,""]
[null,null,null,null,""]
[null,null,null,null,""]
[null,null,null,null,""]
[null,null,null,null,""]
[null,null,null,null,""]
[null,null,null,null,""]
[null,null,null,null,""]
[null,null,null,null,""]
[null,null,null,null,""]
[null,null,null,null,""]
[null,null,null,null,""]
[null,null,null,null,""]
[null,null,null,null,""]
[null,null,null,null,""]
[null,null,null,null,""]
[null,null,null,null,""]
[null,null,null,null,""]
[null,null,null,null,""]
[null,null,null,null,""]
[null,null,null,null,""]
[null,null,null,null,""]
[null,null,null,null,""]
[null,null,null,null,""]
[null,null,null,null,""]
[null,null,null,null,""]
[null,null,null,null,""]
[null,null,null,null,""]
[null,null,null,null,""]
[null,null,null,null,""]
[null,null,null,null,""]
[null,null,null,null,""]
[null,null,null,null,""]
[null,null,null,null,""]
[null,null,null,null,""]
[null,null,null,null,""]
[null,null,null,null,""]
[null,null,null,null,""]
[null,null,null,null,""]
[null,null,null,null,""]
[null,null,null,null,""]
[null,null,null,null,""]
[null,null,null,null,""]
[null,null,null,null,""]
[null,null,null,null,""]
[null,null,null,null,""]
[null,null,null,null,""]
[null,null,null,null,""]
[null,null,null,null,""]
[null,null,null,null,""]
[null,null,null,null,""]
[null,null,null,null,""]
[null,null,null,null,""]
[null,null,null,null,""]
[null,null,null,null,""]
[null,null,null,null,""]
[null,null,null,null,""]
[null,null,null,null,""]
[null,null,null,null,""]
[null,null,null,null,""]
[null,null,null,null,""]
[null,null,null,null,""]
[null,null,null,null,""]
[null,null,null,null,""]
[null,null,null,null,""]
[null,null,null,null,""]
[null,null,null,null,""]
[864,"Fichtner","Maria","26.008.1992",{"$error":"#NUM!"},"","Im Seefeld ",null,"82387 Antdorf","x",null,"x","x","x",null,null,null,null,null,null,null,"2016","Firstlady","","",""]
[865,"","","01.01.1991",null,"","",null,"","x","x","x","x","x",null,null,null,null,null,"x",null,"","","","",""]
[]
[]
[]
[]
[]
[]
[]
[]
[]
[]
[]
[]
[]
[]
[]
[]
[]
[]
[]
[]
[]
[]
[]
[]
[]
[]
[]
[]
[]
[]
[]
[]
[]
[]
[]
[]
[]
[]
[]
[]
[]
[]
[]
[]
[]
[]
[]
[]
[]
[]
[]
[]
[]
[]
[]
[]
[]
[]
[]
[]
[]
[]
[]
[]
[]
[]
[]
[]
[]
[]
[]
[]
[]
[]
[]
[]
[]
[]
[]
[]
[]
[]
[]
[]
[]
[]
[]
[]
[]
[]
[]
[]
[]
[]
[]
[]
[]
[]
[]
[]
[]
[]
[]
[]
[]
[]
[]
[]
[]
[]
[]
[]
[]
[]
[]
[]
[]
[]
[]
[]
[]
[]
[]
[]
[null,null,null,null,null,null,null,null,null,null,null,null,null,null,null,null,null,null,null,null,null,null,null,null,null,null,""]

{"sheet":"Buam","index":5,"n_rows":1045,"n_cols":37,"rows_kept":1045,"cut":false,"hidden":false,"merged":[[0,22,0,23],[0,24,0,25],[0,26,0,27]]}
["Nr.","Name","Vorname","Geburtstag",{"$f":"Deckblatt!B4","v":"2023-10-31"},"Telefon","Straße","PLZ","Ort","JG","PG","VT","SG","VM","BS","SG","MU","TH","MK","BA","PA","Eintrittsjahr",null,null,null,null,null,null,"(Bezeichnung eintragen)","(Bezeichnung eintragen)","(Bezeichnung eintragen)"]
[]
[]
[]
[]
[]
[]
[]
[]
[]
[]
[]
[]
[]
[]
[]
[]
[]
[]
[]
[]
[]
[]
[]
[]
[]
[]
[]
[]
[]
[]
[]
[]
[]
[]
[]
[]
[]
[]
[]
[]
[]
[]
[]
[]
[]
[]
[]
[]
[]
[]
[]
[]
[]
[]
[]
[]
[]
[]
[]
[]
[]
[]
[]
[]
[]
[]
[]
[]
[]
[]
[]
[]
[]
[]
[]
[]
[]
[]
[]
[]
[]
[]
[]
[]
[]
[]
[]
[]
[]
[]
[]
[]
[]
[]
[]
[]
[]
[]
[]
[]
[]
[]
[]
[]
[]
[]
[]
[]
[]
[]
[]
[]
[]
[]
[]
[]
[]
[]
[]
[]
[]
[]
[]
[]
[]
[]
[]
[]
[]
[]
[]
[]
[]
[]
[]
[]
[]
[]
[]
[]
[]
[]
[]
[]
[]
[]
[]
[]
[]
[]
[]
[]
[]
[]
[]
[]
[]
[]
[]
[]
[]
[]
[]
[]
[]
[]
[]
[]
[]
[]
[]
[]
[]
[]
[]
[]
[]
[]
[]
[]
[]
[]
[]
[]
[]
[]
[]
[]
[]
[]
[]
[]
[]
[]
[]
[]
[]
[]
[]
[null,null,null,null,""]
[null,null,null,null,""]
[null,null,null,null,""]
[null,null,null,null,""]
[null,null,null,null,""]
[null,null,null,null,""]
[null,null,null,null,""]
[null,null,null,null,""]
[null,null,null,null,""]
[null,null,null,null,""]
[null,null,null,null,""]
[null,null,null,null,""]
[null,null,null,null,""]
[null,null,null,null,""]
[null,null,null,null,""]
[null,null,null,null,""]
[null,null,null,null,""]
[null,null,null,null,""]
[null,null,null,null,""]
[null,null,null,null,""]
[null,null,null,null,""]
[null,null,null,null,""]
[null,null,null,null,""]
[null,null,null,null,""]
[null,null,null,null,""]
[null,null,null,null,""]
[null,null,null,null,""]
[null,null,null,null,""]
[null,null,null,null,""]
[null,null,null,null,""]
[null,null,null,null,""]
[null,null,null,null,""]
[null,null,null,null,""]
[null,null,null,null,""]
[null,null,null,null,""]
[null,null,null,null,""]
[null,null,null,null,""]
[null,null,null,null,""]
[null,null,null,null,""]
[null,null,null,null,""]
[null,null,null,null,""]
[null,null,null,null,""]
[null,null,null,null,""]
[null,null,null,null,""]
[null,null,null,null,""]
[null,null,null,null,""]
[null,null,null,null,""]
[null,null,null,null,""]
[null,null,null,null,""]
[null,null,null,null,""]
[null,null,null,null,""]
[null,null,null,null,""]
[null,null,null,null,""]
[null,null,null,null,""]
[null,null,null,null,""]
[null,null,null,null,""]
[null,null,null,null,""]
[null,null,null,null,""]
[null,null,null,null,""]
[null,null,null,null,""]
[null,null,null,null,""]
[null,null,null,null,""]
[null,null,null,null,""]
[null,null,null,null,""]
[null,null,null,null,""]
[null,null,null,null,""]
[null,null,null,null,""]
[null,null,null,null,""]
[null,null,null,null,""]
[null,null,null,null,""]
[null,null,null,null,""]
[null,null,null,null,""]
[null,null,null,null,""]
[null,null,null,null,""]
[null,null,null,null,""]
[null,null,null,null,""]
[null,null,null,null,""]
[null,null,null,null,""]
[null,null,null,null,""]
[null,null,null,null,""]
[null,null,null,null,""]
[null,null,null,null,""]
[null,null,null,null,""]
[null,null,null,null,""]
[null,null,null,null,""]
[null,null,null,null,""]
[null,null,null,null,""]
[null,null,null,null,""]
[null,null,null,null,""]
[null,null,null,null,""]
[null,null,null,null,""]
[null,null,null,null,""]
[null,null,null,null,""]
[null,null,null,null,""]
[null,null,null,null,""]
[null,null,null,null,""]
[null,null,null,null,""]
[null,null,null,null,""]
[null,null,null,null,""]
[null,null,null,null,""]
[null,null,null,null,""]
[null,null,null,null,""]
[null,null,null,null,""]
[null,null,null,null,""]
[null,null,null,null,""]
[null,null,null,null,""]
[null,null,null,null,""]
[null,null,null,null,""]
[null,null,null,null,""]
[null,null,null,null,""]
[null,null,null,null,""]
[null,null,null,null,""]
[null,null,null,null,""]
[null,null,null,null,""]
[null,null,null,null,""]
[null,null,null,null,""]
[null,null,null,null,""]
[null,null,null,null,""]
[null,null,null,null,""]
[null,null,null,null,""]
[null,null,null,null,""]
[null,null,null,null,""]
[null,null,null,null,""]
[null,null,null,null,""]
[null,null,null,null,""]
[null,null,null,null,""]
[null,null,null,null,""]
[null,null,null,null,""]
[null,null,null,null,""]
[null,null,null,null,""]
[null,null,null,null,""]
[null,null,null,null,""]
[null,null,null,null,""]
[null,null,null,null,""]
[null,null,null,null,""]
[null,null,null,null,""]
[null,null,null,null,""]
[null,null,null,null,""]
[null,null,null,null,""]
[null,null,null,null,""]
[null,null,null,null,""]
[null,null,null,null,""]
[null,null,null,null,""]
[null,null,null,null,""]
[null,null,null,null,""]
[null,null,null,null,""]
[null,null,null,null,""]
[null,null,null,null,""]
[null,null,null,null,""]
[null,null,null,null,""]
[null,null,null,null,""]
[null,null,null,null,""]
[null,null,null,null,""]
[null,null,null,null,""]
[null,null,null,null,""]
[null,null,null,null,""]
[null,null,null,null,""]
[null,null,null,null,""]
[null,null,null,null,""]
[null,null,null,null,""]
[null,null,null,null,""]
[null,null,null,null,""]
[null,null,null,null,""]
[null,null,null,null,""]
[null,null,null,null,""]
[null,null,null,null,""]
[null,null,null,null,""]
[null,null,null,null,""]
[null,null,null,null,""]
[null,null,null,null,""]
[null,null,null,null,""]
[null,null,null,null,""]
[null,null,null,null,""]
[null,null,null,null,""]
[null,null,null,null,""]
[null,null,null,null,""]
[null,null,null,null,""]
[null,null,null,null,""]
[null,null,null,null,""]
[null,null,null,null,""]
[null,null,null,null,""]
[null,null,null,null,""]
[null,null,null,null,""]
[null,null,null,null,""]
[null,null,null,null,""]
[null,null,null,null,""]
[null,null,null,null,""]
[null,null,null,null,""]
[null,null,null,null,""]
[null,null,null,null,""]
[null,null,null,null,""]
[null,null,null,null,""]
[null,null,null,null,""]
[null,null,null,null,""]
[null,null,null,null,""]
[null,null,null,null,""]
[null,null,null,null,""]
[null,null,null,null,""]
[null,null,null,null,""]
[null,null,null,null,""]
[null,null,null,null,""]
[null,null,null,null,""]
[null,null,null,null,""]
[null,null,null,null,""]
[null,null,null,null,""]
[null,null,null,null,""]
[null,null,null,null,""]
[null,null,null,null,""]
[null,null,null,null,""]
[null,null,null,null,""]
[null,null,null,null,""]
[null,null,null,null,""]
[null,null,null,null,""]
[null,null,null,null,""]
[null,null,null,null,""]
[null,null,null,null,""]
[null,null,null,null,""]
[null,null,null,null,""]
[null,null,null,null,""]
[null,null,null,null,""]
[null,null,null,null,""]
[null,null,null,null,""]
[null,null,null,null,""]
[null,null,null,null,""]
[null,null,null,null,""]
[null,null,null,null,""]
[null,null,null,null,""]
[null,null,null,null,""]
[null,null,null,null,""]
[null,null,null,null,""]
[null,null,null,null,""]
[null,null,null,null,""]
[null,null,null,null,""]
[null,null,null,null,""]
[null,null,null,null,""]
[null,null,null,null,""]
[null,null,null,null,""]
[null,null,null,null,""]
[null,null,null,null,""]
[null,null,null,null,""]
[null,null,null,null,""]
[null,null,null,null,""]
[null,null,null,null,""]
[null,null,null,null,""]
[null,null,null,null,""]
[null,null,null,null,""]
[null,null,null,null,""]
[null,null,null,null,""]
[null,null,null,null,""]
[null,null,null,null,""]
[null,null,null,null,""]
[null,null,null,null,""]
[null,null,null,null,""]
[null,null,null,null,""]
[null,null,null,null,""]
[null,null,null,null,""]
[null,null,null,null,""]
[null,null,null,null,""]
[null,null,null,null,""]
[null,null,null,null,""]
[null,null,null,null,""]
[null,null,null,null,""]
[null,null,null,null,""]
[null,null,null,null,""]
[null,null,null,null,""]
[null,null,null,null,""]
[null,null,null,null,""]
[null,null,null,null,""]
[null,null,null,null,""]
[null,null,null,null,""]
[null,null,null,null,""]
[null,null,null,null,""]
[null,null,null,null,""]
[null,null,null,null,""]
[null,null,null,null,""]
[null,null,null,null,""]
[null,null,null,null,""]
[null,null,null,null,""]
[null,null,null,null,""]
[null,null,null,null,""]
[null,null,null,null,""]
[null,null,null,null,""]
[null,null,null,null,""]
[null,null,null,null,""]
[null,null,null,null,""]
[null,null,null,null,""]
[null,null,null,null,""]
[null,null,null,null,""]
[null,null,null,null,""]
[null,null,null,null,""]
[null,null,null,null,""]
[null,null,null,null,""]
[null,null,null,null,""]
[null,null,null,null,""]
[null,null,null,null,""]
[null,null,null,null,""]
[null,null,null,null,""]
[null,null,null,null,""]
[null,null,null,null,""]
[null,null,null,null,""]
[null,null,null,null,""]
[null,null,null,null,""]
[null,null,null,null,""]
[null,null,null,null,""]
[null,null,null,null,""]
[null,null,null,null,""]
[null,null,null,null,""]
[null,null,null,null,""]
[null,null,null,null,""]
[null,null,null,null,""]
[null,null,null,null,""]
[null,null,null,null,""]
[null,null,null,null,""]
[null,null,null,null,""]
[null,null,null,null,""]
[null,null,null,null,""]
[null,null,null,null,""]
[null,null,null,null,""]
[null,null,null,null,""]
[null,null,null,null,""]
[null,null,null,null,""]
[null,null,null,null,""]
[null,null,null,null,""]
[null,null,null,null,""]
[null,null,null,null,""]
[null,null,null,null,""]
[null,null,null,null,""]
[null,null,null,null,""]
[null,null,null,null,""]
[null,null,null,null,""]
[null,null,null,null,""]
[null,null,null,null,""]
[null,null,null,null,""]
[null,null,null,null,""]
[null,null,null,null,""]
[null,null,null,null,""]
[null,null,null,null,""]
[null,null,null,null,""]
[null,null,null,null,""]
[null,null,null,null,""]
[null,null,null,null,""]
[null,null,null,null,""]
[null,null,null,null,""]
[null,null,null,null,""]
[null,null,null,null,""]
[null,null,null,null,""]
[null,null,null,null,""]
[null,null,null,null,""]
[null,null,null,null,""]
[null,null,null,null,""]
[null,null,null,null,""]
[null,null,null,null,""]
[null,null,null,null,""]
[null,null,null,null,""]
[null,null,null,null,""]
[null,null,null,null,""]
[null,null,null,null,""]
[null,null,null,null,""]
[null,null,null,null,""]
[null,null,null,null,""]
[null,null,null,null,""]
[null,null,null,null,""]
[null,null,null,null,""]
[null,null,null,null,""]
[null,null,null,null,""]
[null,null,null,null,""]
[null,null,null,null,""]
[null,null,null,null,""]
[null,null,null,null,""]
[null,null,null,null,""]
[null,null,null,null,""]
[null,null,null,null,""]
[null,null,null,null,""]
[null,null,null,null,""]
[null,null,null,null,""]
[null,null,null,null,""]
[null,null,null,null,""]
[null,null,null,null,""]
[null,null,null,null,""]
[null,null,null,null,""]
[null,null,null,null,""]
[null,null,null,null,""]
[null,null,null,null,""]
[null,null,null,null,""]
[null,null,null,null,""]
[null,null,null,null,""]
[null,null,null,null,""]
[null,null,null,null,""]
[null,null,null,null,""]
[null,null,null,null,""]
[null,null,null,null,""]
[null,null,null,null,""]
[null,null,null,null,""]
[null,null,null,null,""]
[null,null,null,null,""]
[null,null,null,null,""]
[null,null,null,null,""]
[null,null,null,null,""]
[null,null,null,null,""]
[null,null,null,null,""]
[null,null,null,null,""]
[null,null,null,null,""]
[null,null,null,null,""]
[null,null,null,null,""]
[null,null,null,null,""]
[null,null,null,null,""]
[null,null,null,null,""]
[null,null,null,null,""]
[null,null,null,null,""]
[null,null,null,null,""]
[null,null,null,null,""]
[null,null,null,null,""]
[null,null,null,null,""]
[null,null,null,null,""]
[null,null,null,null,""]
[null,null,null,null,""]
[null,null,null,null,""]
[null,null,null,null,""]
[null,null,null,null,""]
[null,null,null,null,""]
[null,null,null,null,""]
[null,null,null,null,""]
[null,null,null,null,""]
[null,null,null,null,""]
[null,null,null,null,""]
[null,null,null,null,""]
[null,null,null,null,""]
[null,null,null,null,""]
[null,null,null,null,""]
[null,null,null,null,""]
[null,null,null,null,""]
[null,null,null,null,""]
[null,null,null,null,""]
[null,null,null,null,""]
[null,null,null,null,""]
[null,null,null,null,""]
[null,null,null,null,""]
[null,null,null,null,""]
[null,null,null,null,""]
[null,null,null,null,""]
[null,null,null,null,""]
[null,null,null,null,""]
[null,null,null,null,""]
[null,null,null,null,""]
[null,null,null,null,""]
[null,null,null,null,""]
[null,null,null,null,""]
[null,null,null,null,""]
[null,null,null,null,""]
[null,null,null,null,""]
[null,null,null,null,""]
[null,null,null,null,""]
[null,null,null,null,""]
[null,null,null,null,""]
[null,null,null,null,""]
[null,null,null,null,""]
[null,null,null,null,""]
[null,null,null,null,""]
[null,null,null,null,""]
[null,null,null,null,""]
[null,null,null,null,""]
[null,null,null,null,""]
[null,null,null,null,""]
[null,null,null,null,""]
[null,null,null,null,""]
[null,null,null,null,""]
[null,null,null,null,""]
[null,null,null,null,""]
[null,null,null,null,""]
[null,null,null,null,""]
[null,null,null,null,""]
[null,null,null,null,""]
[null,null,null,null,""]
[null,null,null,null,""]
[null,null,null,null,""]
[null,null,null,null,""]
[null,null,null,null,""]
[null,null,null,null,""]
[null,null,null,null,""]
[null,null,null,null,""]
[null,null,null,null,""]
[null,null,null,null,""]
[null,null,null,null,""]
[null,null,null,null,""]
[null,null,null,null,""]
[null,null,null,null,""]
[null,null,null,null,""]
[null,null,null,null,""]
[null,null,null,null,""]
[null,null,null,null,""]
[null,null,null,null,""]
[null,null,null,null,""]
[null,null,null,null,""]
[null,null,null,null,""]
[null,null,null,null,""]
[null,null,null,null,""]
[null,null,null,null,""]
[null,null,null,null,""]
[null,null,null,null,""]
[null,null,null,null,""]
[null,null,null,null,""]
[null,null,null,null,""]
[null,null,null,null,""]
[null,null,null,null,""]
[null,null,null,null,""]
[null,null,null,null,""]
[null,null,null,null,""]
[null,null,null,null,""]
[null,null,null,null,""]
[null,null,null,null,""]
[null,null,null,null,""]
[null,null,null,null,""]
[null,null,null,null,""]
[null,null,null,null,""]
[null,null,null,null,""]
[null,null,null,null,""]
[null,null,null,null,""]
[null,null,null,null,""]
[null,null,null,null,""]
[null,null,null,null,""]
[null,null,null,null,""]
[null,null,null,null,""]
[null,null,null,null,""]
[null,null,null,null,""]
[null,null,null,null,""]
[null,null,null,null,""]
[null,null,null,null,""]
[null,null,null,null,""]
[null,null,null,null,""]
[null,null,null,null,""]
[null,null,null,null,""]
[null,null,null,null,""]
[null,null,null,null,""]
[null,null,null,null,""]
[null,null,null,null,""]
[null,null,null,null,""]
[null,null,null,null,""]
[null,null,null,null,""]
[null,null,null,null,""]
[null,null,null,null,""]
[null,null,null,null,""]
[null,null,null,null,""]
[null,null,null,null,""]
[null,null,null,null,""]
[null,null,null,null,""]
[null,null,null,null,""]
[null,null,null,null,""]
[null,null,null,null,""]
[null,null,null,null,""]
[null,null,null,null,""]
[null,null,null,null,""]
[null,null,null,null,""]
[null,null,null,null,""]
[null,null,null,null,""]
[null,null,null,null,""]
[null,null,null,null,""]
[null,null,null,null,""]
[null,null,null,null,""]
[null,null,null,null,""]
[null,null,null,null,""]
[null,null,null,null,""]
[null,null,null,null,""]
[null,null,null,null,""]
[null,null,null,null,""]
[null,null,null,null,""]
[null,null,null,null,""]
[null,null,null,null,""]
[null,null,null,null,""]
[null,null,null,null,""]
[null,null,null,null,""]
[null,null,null,null,""]
[null,null,null,null,""]
[null,null,null,null,""]
[null,null,null,null,""]
[null,null,null,null,""]
[null,null,null,null,""]
[null,null,null,null,""]
[null,null,null,null,""]
[null,null,null,null,""]
[null,null,null,null,""]
[null,null,null,null,""]
[null,null,null,null,""]
[null,null,null,null,""]
[null,null,null,null,""]
[null,null,null,null,""]
[null,null,null,null,""]
[null,null,null,null,""]
[null,null,null,null,""]
[null,null,null,null,""]
[null,null,null,null,""]
[null,null,null,null,""]
[null,null,null,null,""]
[null,null,null,null,""]
[null,null,null,null,""]
[null,null,null,null,""]
[null,null,null,null,""]
[null,null,null,null,""]
[null,null,null,null,""]
[null,null,null,null,""]
[null,null,null,null,""]
[null,null,null,null,""]
[null,null,null,null,""]
[null,null,null,null,""]
[null,null,null,null,""]
[null,null,null,null,""]
[null,null,null,null,""]
[null,null,null,null,""]
[null,null,null,null,""]
[null,null,null,null,""]
[null,null,null,null,""]
[null,null,null,null,""]
[null,null,null,null,""]
[null,null,null,null,""]
[null,null,null,null,""]
[null,null,null,null,""]
[null,null,null,null,""]
[null,null,null,null,""]
[null,null,null,null,""]
[null,null,null,null,""]
[null,null,null,null,""]
[null,null,null,null,""]
[null,null,null,null,""]
[null,null,null,null,""]
[null,null,null,null,""]
[null,null,null,null,""]
[null,null,null,null,""]
[null,null,null,null,""]
[null,null,null,null,""]
[null,null,null,null,""]
[null,null,null,null,""]
[null,null,null,null,""]
[null,null,null,null,""]
[null,null,null,null,""]
[null,null,null,null,""]
[null,null,null,null,""]
[null,null,null,null,""]
[null,null,null,null,""]
[null,null,null,null,""]
[null,null,null,null,""]
[null,null,null,null,""]
[null,null,null,null,""]
[null,null,null,null,""]
[null,null,null,null,""]
[null,null,null,null,""]
[null,null,null,null,""]
[null,null,null,null,""]
[null,null,null,null,""]
[null,null,null,null,""]
[null,null,null,null,""]
[null,null,null,null,""]
[null,null,null,null,""]
[null,null,null,null,null,null,null,null,null,null,null,null,null,null,null,null,null,null,null,null,null,null,null,null,null,"",null,"",""]
[null,null,null,null,null,null,null,null,null,null,null,null,null,null,null,null,null,null,null,null,null,null,null,null,null,"",null,"",""]
[]
[]
[]
[]
[]
[]
[]
[]
[]
[]
[]
[]
[]
[]
[]
[]
[]
[]
[]
[]
[]
[]
[]
[]
[]
[]
[]
[]
[]
[]
[]
[]
[]
[]
[]
[]
[]
[]
[]
[]
[]
[]
[]
[]
[]
[]
[]
[]
[]
[]
[]
[]
[]
[]
[]
[]
[]
[]
[]
[]
[]
[]
[]
[]
[]
[]
[]
[]
[]
[]
[]
[]
[]
[]
[]
[]
[]
[]
[]
[]
[]
[]
[]
[]
[]
[]
[]
[]
[]
[]
[]
[]
[]
[]
[]
[]
[]
[]
[]
[]
[]
[]
[]
[]
[]
[]
[]
[]
[]
[]
[]
[]
[]
[]
[]
[]
[]
[]
[]
[]
[]
[]
[]
[]
[null,null,null,null,null,null,null,null,null,null,null,null,null,null,null,null,null,null,null,null,null,null,null,null,null,null,null,null,null,""]
[]
[]
[]
[]
[]
[]
[]
[]
[]
[]
[]
[]
[]
[]
[]
[]
[]
[]
[]
[]
[]
[]
[]
[]
[]
[]
[]
[]
[]
[]
[]
[]
[]
[]
[]
[]
[]
[]
[]
[]
[]
[]
[]
[]
[]
[]
[]
[]
[]
[]
[]
[]
[]
[]
[]
[]
[null,null,null,null,null,null,null,null,null,null,null,null,null,null,null,null,null,null,null,null,null,null,null,null,null,null,null,null,null,null,null,null,null,null,null,null,"Name"]
[null,null,null,null,null,null,null,null,null,null,null,null,null,null,null,null,null,null,null,null,null,null,null,null,null,null,null,null,null,null,null,null,null,null,null,null,"Vorname"]
[null,null,null,null,null,null,null,null,null,null,null,null,null,null,null,null,null,null,null,null,null,null,null,null,null,null,null,null,null,null,null,null,null,null,null,null,"Alter"]
[null,null,null,null,null,null,null,null,null,null,null,null,null,null,null,null,null,null,null,null,null,null,null,null,null,null,null,null,null,null,null,null,null,null,null,null,"PLZ"]
[null,null,null,null,null,null,null,null,null,null,null,null,null,null,null,null,null,null,null,null,null,null,null,null,null,null,null,null,null,null,null,null,null,null,null,null,"Eintrittsjahr"]
[null,null,null,null,null,null,null,null,null,null,null,null,null,null,null,null,null,null,null,null,null,null,null,null,null,null,null,null,null,null,null,null,null,null,null,null,"Sonstiges 1"]
[null,null,null,null,null,null,null,null,null,null,null,null,null,null,null,null,null,null,null,null,null,null,null,null,null,null,null,null,null,null,null,null,null,null,null,null,"Sonstiges 2"]
[null,null,null,null,null,null,null,null,null,null,null,null,null,null,null,null,null,null,null,null,null,null,null,null,null,null,null,null,null,null,null,null,null,null,null,null,"Sonstiges 3"]
[null,null,null,null,null,null,null,null,null,null,null,null,null,null,null,null,null,null,null,null,null,null,null,null,null,null,null,null,null,null,null,null,null,null,null,null,"Zusätzlich I"]
[null,null,null,null,null,null,null,null,null,null,null,null,null,null,null,null,null,null,null,null,null,null,null,null,null,null,null,null,null,null,null,null,null,null,null,null,"Zusätzlich II"]
[null,null,null,null,null,null,null,null,null,null,null,null,null,null,null,null,null,null,null,null,null,null,null,null,null,null,null,null,null,null,null,null,null,null,null,null,"Zusätzlich III"]

{"sheet":"Jugendleiter","index":6,"n_rows":1386,"n_cols":20,"rows_kept":1386,"cut":false,"hidden":false,"merged":[]}
[" Nr.","Name","Vorname","Straße","PLZ, Ort","Telefon","Email","Amt im Verein ","Geburtstag",{"$f":"Deckblatt!B4","v":"2023-10-31"},"Jugendleiter grundschulung Teil I","Jugendleiter grundschulung Teil II","Erste-Hilfe-Kurs","JULEICA Nr.","JULEICA       gültig bis",null,"(Bezeichnung eintragen)","(Bezeichnung eintragen)",{"$f":"Erhebungsbogen!I2","v":"(Vereinsort eintragen)"},{"$f":"Erhebungsbogen!K1","v":"2023"}]
[]
[]
[]
[]
[]
[]
[]
[]
[]
[]
[]
[]
[]
[]
[]
[]
[]
[]
[]
[]
[]
[]
[]
[]
[]
[]
[]
[]
[]
[]
[]
[]
[]
[]
[]
[]
[]
[]
[]
[]
[]
[]
[]
[]
[]
[]
[]
[]
[]
[]
[]
[]
[]
[]
[]
[]
[]
[]
[]
[]
[]
[]
[]
[]
[]
[]
[]
[]
[]
[]
[]
[]
[]
[]
[]
[]
[]
[]
[]
[]
[]
[]
[]
[]
[]
[]
[]
[]
[]
[]
[]
[]
[]
[]
[]
[]
[]
[]
[]
[null,null,null,null,null,null,null,null,null,""]
[null,null,null,null,null,null,null,null,null,""]
[null,null,null,null,null,null,null,null,null,""]
[null,null,null,null,null,null,null,null,null,""]
[null,null,null,null,null,null,null,null,null,""]
[null,null,null,null,null,null,null,null,null,""]
[null,null,null,null,null,null,null,null,null,""]
[null,null,null,null,null,null,null,null,null,""]
[null,null,null,null,null,null,null,null,null,""]
[null,null,null,null,null,null,null,null,null,""]
[null,null,null,null,null,null,null,null,null,""]
[null,null,null,null,null,null,null,null,null,""]
[null,null,null,null,null,null,null,null,null,""]
[null,null,null,null,null,null,null,null,null,""]
[null,null,null,null,null,null,null,null,null,""]
[null,null,null,null,null,null,null,null,null,""]
[null,null,null,null,null,null,null,null,null,""]
[null,null,null,null,null,null,null,null,null,""]
[null,null,null,null,null,null,null,null,null,""]
[null,null,null,null,null,null,null,null,null,""]
[null,null,null,null,null,null,null,null,null,""]
[null,null,null,null,null,null,null,null,null,""]
[null,null,null,null,null,null,null,null,null,""]
[null,null,null,null,null,null,null,null,null,""]
[null,null,null,null,null,null,null,null,null,""]
[null,null,null,null,null,null,null,null,null,""]
[null,null,null,null,null,null,null,null,null,""]
[null,null,null,null,null,null,null,null,null,""]
[null,null,null,null,null,null,null,null,null,""]
[null,null,null,null,null,null,null,null,null,""]
[null,null,null,null,null,null,null,null,null,"",null,null,null,null,null,""]
[null,null,null,null,null,null,null,null,null,"",null,null,null,null,null,""]
[null,null,null,null,null,null,null,null,null,"",null,null,null,null,null,""]
[null,null,null,null,null,null,null,null,null,"",null,null,null,null,null,""]
[null,null,null,null,null,null,null,null,null,"",null,null,null,null,null,""]
[null,null,null,null,null,null,null,null,null,"",null,null,null,null,null,""]
[null,null,null,null,null,null,null,null,null,"",null,null,null,null,null,""]
[null,null,null,null,null,null,null,null,null,"",null,null,null,null,null,""]
[null,null,null,null,null,null,null,null,null,"",null,null,null,null,null,""]
[null,null,null,null,null,null,null,null,null,"",null,null,null,null,null,""]
[null,null,null,null,null,null,null,null,null,"",null,null,null,null,null,""]
[null,null,null,null,null,null,null,null,null,"",null,null,null,null,null,""]
[null,null,null,null,null,null,null,null,null,"",null,null,null,null,null,""]
[null,null,null,null,null,null,null,null,null,"",null,null,null,null,null,""]
[null,null,null,null,null,null,null,null,null,"",null,null,null,null,null,""]
[null,null,null,null,null,null,null,null,null,"",null,null,null,null,null,""]
[null,null,null,null,null,null,null,null,null,"",null,null,null,null,null,""]
[null,null,null,null,null,null,null,null,null,"",null,null,null,null,null,""]
[null,null,null,null,null,null,null,null,null,"",null,null,null,null,null,""]
[null,null,null,null,null,null,null,null,null,"",null,null,null,null,null,""]
[null,null,null,null,null,null,null,null,null,"",null,null,null,null,null,""]
[null,null,null,null,null,null,null,null,null,"",null,null,null,null,null,""]
[null,null,null,null,null,null,null,null,null,"",null,null,null,null,null,""]
[null,null,null,null,null,null,null,null,null,"",null,null,null,null,null,""]
[null,null,null,null,null,null,null,null,null,"",null,null,null,null,null,""]
[null,null,null,null,null,null,null,null,null,"",null,null,null,null,null,""]
[null,null,null,null,null,null,null,null,null,"",null,null,null,null,null,""]
[null,null,null,null,null,null,null,null,null,"",null,null,null,null,null,""]
[null,null,null,null,null,null,null,null,null,"",null,null,null,null,null,""]
[null,null,null,null,null,null,null,null,null,"",null,null,null,null,null,""]
[null,null,null,null,null,null,null,null,null,"",null,null,null,null,null,""]
[null,null,null,null,null,null,null,null,null,"",null,null,null,null,null,""]
[null,null,null,null,null,null,null,null,null,"",null,null,null,null,null,""]
[null,null,null,null,null,null,null,null,null,"",null,null,null,null,null,""]
[null,null,null,null,null,null,null,null,null,"",null,null,null,null,null,""]
[null,null,null,null,null,null,null,null,null,"",null,null,null,null,null,""]
[null,null,null,null,null,null,null,null,null,"",null,null,null,null,null,""]
[null,null,null,null,null,null,null,null,null,"",null,null,null,null,null,""]
[null,null,null,null,null,null,null,null,null,"",null,null,null,null,null,""]
[null,null,null,null,null,null,null,null,null,"",null,null,null,null,null,""]
[null,null,null,null,null,null,null,null,null,"",null,null,null,null,null,""]
[null,null,null,null,null,null,null,null,null,"",null,null,null,null,null,""]
[null,null,null,null,null,null,null,null,null,"",null,null,null,null,null,""]
[null,null,null,null,null,null,null,null,null,"",null,null,null,null,null,""]
[null,null,null,null,null,null,null,null,null,"",null,null,null,null,null,""]
[null,null,null,null,null,null,null,null,null,"",null,null,null,null,null,""]
[null,null,null,null,null,null,null,null,null,"",null,null,null,null,null,""]
[null,null,null,null,null,null,null,null,null,"",null,null,null,null,null,""]
[null,null,null,null,null,null,null,null,null,"",null,null,null,null,null,""]
[null,null,null,null,null,null,null,null,null,"",null,null,null,null,null,""]
[null,null,null,null,null,null,null,null,null,"",null,null,null,null,null,""]
[null,null,null,null,null,null,null,null,null,"",null,null,null,null,null,""]
[null,null,null,null,null,null,null,null,null,"",null,null,null,null,null,""]
[null,null,null,null,null,null,null,null,null,"",null,null,null,null,null,""]
[null,null,null,null,null,null,null,null,null,"",null,null,null,null,null,""]
[null,null,null,null,null,null,null,null,null,"",null,null,null,null,null,""]
[null,null,null,null,null,null,null,null,null,"",null,null,null,null,null,""]
[null,null,null,null,null,null,null,null,null,"",null,null,null,null,null,""]
[null,null,null,null,null,null,null,null,null,"",null,null,null,null,null,""]
[null,null,null,null,null,null,null,null,null,"",null,null,null,null,null,""]
[null,null,null,null,null,null,null,null,null,"",null,null,null,null,null,""]
[null,null,null,null,null,null,null,null,null,"",null,null,null,null,null,""]
[null,null,null,null,null,null,null,null,null,"",null,null,null,null,null,""]
[null,null,null,null,null,null,null,null,null,"",null,null,null,null,null,""]
[null,null,null,null,null,null,null,null,null,"",null,null,null,null,null,""]
[null,null,null,null,null,null,null,null,null,"",null,null,null,null,null,""]
[null,null,null,null,null,null,null,null,null,"",null,null,null,null,null,""]
[null,null,null,null,null,null,null,null,null,"",null,null,null,null,null,""]
[null,null,null,null,null,null,null,null,null,"",null,null,null,null,null,""]
[null,null,null,null,null,null,null,null,null,"",null,null,null,null,null,""]
[null,null,null,null,null,null,null,null,null,"",null,null,null,null,null,""]
[null,null,null,null,null,null,null,null,null,"",null,null,null,null,null,""]
[null,null,null,null,null,null,null,null,null,"",null,null,null,null,null,""]
[null,null,null,null,null,null,null,null,null,"",null,null,null,null,null,""]
[null,null,null,null,null,null,null,null,null,"",null,null,null,null,null,""]
[null,null,null,null,null,null,null,null,null,"",null,null,null,null,null,""]
[null,null,null,null,null,null,null,null,null,"",null,null,null,null,null,""]
[null,null,null,null,null,null,null,null,null,"",null,null,null,null,null,""]
[null,null,null,null,null,null,null,null,null,"",null,null,null,null,null,""]
[null,null,null,null,null,null,null,null,null,"",null,null,null,null,null,""]
[null,null,null,null,null,null,null,null,null,"",null,null,null,null,null,""]
[null,null,null,null,null,null,null,null,null,"",null,null,null,null,null,""]
[null,null,null,null,null,null,null,null,null,"",null,null,null,null,null,""]
[null,null,null,null,null,null,null,null,null,""]
[null,null,null,null,null,null,null,null,null,""]
[null,null,null,null,null,null,null,null,null,""]
[null,null,null,null,null,null,null,null,null,""]
[null,null,null,null,null,null,null,null,null,""]
[null,null,null,null,null,null,null,null,null,""]
[null,null,null,null,null,null,null,null,null,""]
[null,null,null,null,null,null,null,null,null,""]
[null,null,null,null,null,null,null,null,null,""]
[null,null,null,null,null,null,null,null,null,""]
[null,null,null,null,null,null,null,null,null,""]
[null,null,null,null,null,null,null,null,null,""]
[null,null,null,null,null,null,null,null,null,""]
[null,null,null,null,null,null,null,null,null,""]
[null,null,null,null,null,null,null,null,null,""]
[null,null,null,null,null,null,null,null,null,""]
[null,null,null,null,null,null,null,null,null,""]
[null,null,null,null,null,null,null,null,null,""]
[null,null,null,null,null,null,null,null,null,""]
[null,null,null,null,null,null,null,null,null,""]
[null,null,null,null,null,null,null,null,null,""]
[null,null,null,null,null,null,null,null,null,""]
[null,null,null,null,null,null,null,null,null,""]
[null,null,null,null,null,null,null,null,null,""]
[null,null,null,null,null,null,null,null,null,""]
[null,null,null,null,null,null,null,null,null,""]
[null,null,null,null,null,null,null,null,null,""]
[null,null,null,null,null,null,null,null,null,""]
[null,null,null,null,null,null,null,null,null,""]
[null,null,null,null,null,null,null,null,null,""]
[null,null,null,null,null,null,null,null,null,""]
[null,null,null,null,null,null,null,null,null,""]
[null,null,null,null,null,null,null,null,null,""]
[null,null,null,null,null,null,null,null,null,""]
[null,null,null,null,null,null,null,null,null,""]
[null,null,null,null,null,null,null,null,null,""]
[null,null,null,null,null,null,null,null,null,""]
[null,null,null,null,null,null,null,null,null,""]
[null,null,null,null,null,null,null,null,null,""]
[null,null,null,null,null,null,null,null,null,""]
[null,null,null,null,null,null,null,null,null,""]
[null,null,null,null,null,null,null,null,null,""]
[null,null,null,null,null,null,null,null,null,""]
[null,null,null,null,null,null,null,null,null,""]
[null,null,null,null,null,null,null,null,null,""]
[null,null,null,null,null,null,null,null,null,""]
[null,null,null,null,null,null,null,null,null,""]
[null,null,null,null,null,null,null,null,null,""]
[null,null,null,null,null,null,null,null,null,""]
[null,null,null,null,null,null,null,null,null,""]
[null,null,null,null,null,null,null,null,null,""]
[null,null,null,null,null,null,null,null,null,""]
[null,null,null,null,null,null,null,null,null,""]
[null,null,null,null,null,null,null,null,null,""]
[null,null,null,null,null,null,null,null,null,""]
[null,null,null,null,null,null,null,null,null,""]
[null,null,null,null,null,null,null,null,null,""]
[null,null,null,null,null,null,null,null,null,""]
[null,null,null,null,null,null,null,null,null,""]
[null,null,null,null,null,null,null,null,null,""]
[null,null,null,null,null,null,null,null,null,""]
[null,null,null,null,null,null,null,null,null,""]
[null,null,null,null,null,null,null,null,null,""]
[null,null,null,null,null,null,null,null,null,""]
[null,null,null,null,null,null,null,null,null,""]
[null,null,null,null,null,null,null,null,null,""]
[null,null,null,null,null,null,null,null,null,""]
[null,null,null,null,null,null,null,null,null,""]
[null,null,null,null,null,null,null,null,null,""]
[null,null,null,null,null,null,null,null,null,""]
[null,null,null,null,null,null,null,null,null,""]
[null,null,null,null,null,null,null,null,null,""]
[null,null,null,null,null,null,null,null,null,""]
[null,null,null,null,null,null,null,null,null,""]
[null,null,null,null,null,null,null,null,null,""]
[null,null,null,null,null,null,null,null,null,""]
[null,null,null,null,null,null,null,null,null,""]
[null,null,null,null,null,null,null,null,null,""]
[null,null,null,null,null,null,null,null,null,""]
[null,null,null,null,null,null,null,null,null,""]
[null,null,null,null,null,null,null,null,null,""]
[null,null,null,null,null,null,null,null,null,""]
[null,null,null,null,null,null,null,null,null,""]
[null,null,null,null,null,null,null,null,null,""]
[null,null,null,null,null,null,null,null,null,""]
[null,null,null,null,null,null,null,null,null,""]
[null,null,null,null,null,null,null,null,null,""]
[null,null,null,null,null,null,null,null,null,""]
[null,null,null,null,null,null,null,null,null,""]
[null,null,null,null,null,null,null,null,null,""]
[null,null,null,null,null,null,null,null,null,""]
[null,null,null,null,null,null,null,null,null,""]
[null,null,null,null,null,null,null,null,null,""]
[null,null,null,null,null,null,null,null,null,""]
[null,null,null,null,null,null,null,null,null,""]
[null,null,null,null,null,null,null,null,null,""]
[null,null,null,null,null,null,null,null,null,""]
[null,null,null,null,null,null,null,null,null,""]
[null,null,null,null,null,null,null,null,null,""]
[null,null,null,null,null,null,null,null,null,""]
[null,null,null,null,null,null,null,null,null,""]
[null,null,null,null,null,null,null,null,null,""]
[null,null,null,null,null,null,null,null,null,""]
[null,null,null,null,null,null,null,null,null,""]
[null,null,null,null,null,null,null,null,null,""]
[null,null,null,null,null,null,null,null,null,""]
[null,null,null,null,null,null,null,null,null,""]
[null,null,null,null,null,null,null,null,null,""]
[null,null,null,null,null,null,null,null,null,""]
[null,null,null,null,null,null,null,null,null,""]
[null,null,null,null,null,null,null,null,null,""]
[null,null,null,null,null,null,null,null,null,""]
[null,null,null,null,null,null,null,null,null,""]
[null,null,null,null,null,null,null,null,null,""]
[null,null,null,null,null,null,null,null,null,""]
[null,null,null,null,null,null,null,null,null,""]
[null,null,null,null,null,null,null,null,null,""]
[null,null,null,null,null,null,null,null,null,""]
[null,null,null,null,null,null,null,null,null,""]
[null,null,null,null,null,null,null,null,null,""]
[null,null,null,null,null,null,null,null,null,""]
[null,null,null,null,null,null,null,null,null,""]
[null,null,null,null,null,null,null,null,null,""]
[null,null,null,null,null,null,null,null,null,""]
[null,null,null,null,null,null,null,null,null,""]
[null,null,null,null,null,null,null,null,null,""]
[null,null,null,null,null,null,null,null,null,""]
[null,null,null,null,null,null,null,null,null,""]
[null,null,null,null,null,null,null,null,null,""]
[null,null,null,null,null,null,null,null,null,""]
[null,null,null,null,null,null,null,null,null,""]
[null,null,null,null,null,null,null,null,null,""]
[null,null,null,null,null,null,null,null,null,""]
[null,null,null,null,null,null,null,null,null,""]
[null,null,null,null,null,null,null,null,null,""]
[null,null,null,null,null,null,null,null,null,""]
[null,null,null,null,null,null,null,null,null,""]
[null,null,null,null,null,null,null,null,null,""]
[null,null,null,null,null,null,null,null,null,""]
[null,null,null,null,null,null,null,null,null,""]
[null,null,null,null,null,null,null,null,null,""]
[null,null,null,null,null,null,null,null,null,""]
[null,null,null,null,null,null,null,null,null,""]
[null,null,null,null,null,null,null,null,null,""]
[null,null,null,null,null,null,null,null,null,""]
[null,null,null,null,null,null,null,null,null,""]
[null,null,null,null,null,null,null,null,null,""]
[null,null,null,null,null,null,null,null,null,""]
[null,null,null,null,null,null,null,null,null,""]
[null,null,null,null,null,null,null,null,null,""]
[null,null,null,null,null,null,null,null,null,""]
[null,null,null,null,null,null,null,null,null,""]
[null,null,null,null,null,null,null,null,null,""]
[null,null,null,null,null,null,null,null,null,""]
[null,null,null,null,null,null,null,null,null,""]
[null,null,null,null,null,null,null,null,null,""]
[null,null,null,null,null,null,null,null,null,""]
[null,null,null,null,null,null,null,null,null,""]
[null,null,null,null,null,null,null,null,null,""]
[null,null,null,null,null,null,null,null,null,""]
[null,null,null,null,null,null,null,null,null,""]
[null,null,null,null,null,null,null,null,null,""]
[null,null,null,null,null,null,null,null,null,""]
[null,null,null,null,null,null,null,null,null,""]
[null,null,null,null,null,null,null,null,null,""]
[null,null,null,null,null,null,null,null,null,""]
[null,null,null,null,null,null,null,null,null,""]
[null,null,null,null,null,null,null,null,null,""]
[null,null,null,null,null,null,null,null,null,""]
[null,null,null,null,null,null,null,null,null,""]
[null,null,null,null,null,null,null,null,null,""]
[null,null,null,null,null,null,null,null,null,""]
[null,null,null,null,null,null,null,null,null,""]
[null,null,null,null,null,null,null,null,null,""]
[null,null,null,null,null,null,null,null,null,""]
[null,null,null,null,null,null,null,null,null,""]
[null,null,null,null,null,null,null,null,null,""]
[null,null,null,null,null,null,null,null,null,""]
[null,null,null,null,null,null,null,null,null,""]
[null,null,null,null,null,null,null,null,null,""]
[null,null,null,null,null,null,null,null,null,""]
[null,null,null,null,null,null,null,null,null,""]
[null,null,null,null,null,null,null,null,null,""]
[null,null,null,null,null,null,null,null,null,""]
[null,null,null,null,null,null,null,null,null,""]
[null,null,null,null,null,null,null,null,null,""]
[null,null,null,null,null,null,null,null,null,""]
[null,null,null,null,null,null,null,null,null,""]
[null,null,null,null,null,null,null,null,null,""]
[null,null,null,null,null,null,null,null,null,""]
[null,null,null,null,null,null,null,null,null,""]
[null,null,null,null,null,null,null,null,null,""]
[null,null,null,null,null,null,null,null,null,""]
[null,null,null,null,null,null,null,null,null,""]
[null,null,null,null,null,null,null,null,null,""]
[null,null,null,null,null,null,null,null,null,""]
[null,null,null,null,null,null,null,null,null,""]
[null,null,null,null,null,null,null,null,null,""]
[null,null,null,null,null,null,null,null,null,""]
[null,null,null,null,null,null,null,null,null,""]
[null,null,null,null,null,null,null,null,null,""]
[null,null,null,null,null,null,null,null,null,""]
[null,null,null,null,null,null,null,null,null,""]
[null,null,null,null,null,null,null,null,null,""]
[null,null,null,null,null,null,null,null,null,""]
[null,null,null,null,null,null,null,null,null,""]
[null,null,null,null,null,null,null,null,null,""]
[null,null,null,null,null,null,null,null,null,""]
[null,null,null,null,null,null,null,null,null,""]
[null,null,null,null,null,null,null,null,null,""]
[null,null,null,null,null,null,null,null,null,""]
[null,null,null,null,null,null,null,null,null,""]
[null,null,null,null,null,null,null,null,null,""]
[null,null,null,null,null,null,null,null,null,""]
[null,null,null,null,null,null,null,null,null,""]
[null,null,null,null,null,null,null,null,null,""]
[null,null,null,null,null,null,null,null,null,""]
[null,null,null,null,null,null,null,null,null,""]
[null,null,null,null,null,null,null,null,null,""]
[null,null,null,null,null,null,null,null,null,""]
[null,null,null,null,null,null,null,null,null,""]
[null,null,null,null,null,null,null,null,null,""]
[null,null,null,null,null,null,null,null,null,""]
[null,null,null,null,null,null,null,null,null,""]
[null,null,null,null,null,null,null,null,null,""]
[null,null,null,null,null,null,null,null,null,""]
[null,null,null,null,null,null,null,null,null,""]
[null,null,null,null,null,null,null,null,null,""]
[null,null,null,null,null,null,null,null,null,""]
[null,null,null,null,null,null,null,null,null,""]
[null,null,null,null,null,null,null,null,null,""]
[null,null,null,null,null,null,null,null,null,""]
[null,null,null,null,null,null,null,null,null,""]
[null,null,null,null,null,null,null,null,null,""]
[null,null,null,null,null,null,null,null,null,""]
[null,null,null,null,null,null,null,null,null,""]
[null,null,null,null,null,null,null,null,null,""]
[null,null,null,null,null,null,null,null,null,""]
[null,null,null,null,null,null,null,null,null,""]
[null,null,null,null,null,null,null,null,null,""]
[null,null,null,null,null,null,null,null,null,""]
[null,null,null,null,null,null,null,null,null,""]
[null,null,null,null,null,null,null,null,null,""]
[null,null,null,null,null,null,null,null,null,""]
[null,null,null,null,null,null,null,null,null,""]
[null,null,null,null,null,null,null,null,null,""]
[null,null,null,null,null,null,null,null,null,""]
[null,null,null,null,null,null,null,null,null,""]
[null,null,null,null,null,null,null,null,null,""]
[null,null,null,null,null,null,null,null,null,""]
[null,null,null,null,null,null,null,null,null,""]
[null,null,null,null,null,null,null,null,null,""]
[null,null,null,null,null,null,null,null,null,""]
[null,null,null,null,null,null,null,null,null,""]
[null,null,null,null,null,null,null,null,null,""]
[null,null,null,null,null,null,null,null,null,""]
[null,null,null,null,null,null,null,null,null,""]
[null,null,null,null,null,null,null,null,null,""]
[null,null,null,null,null,null,null,null,null,""]
[null,null,null,null,null,null,null,null,null,""]
[null,null,null,null,null,null,null,null,null,""]
[null,null,null,null,null,null,null,null,null,""]
[null,null,null,null,null,null,null,null,null,""]
[null,null,null,null,null,null,null,null,null,""]
[null,null,null,null,null,null,null,null,null,""]
[null,null,null,null,null,null,null,null,null,""]
[null,null,null,null,null,null,null,null,null,""]
[null,null,null,null,null,null,null,null,null,""]
[null,null,null,null,null,null,null,null,null,""]
[null,null,null,null,null,null,null,null,null,""]
[null,null,null,null,null,null,null,null,null,""]
[null,null,null,null,null,null,null,null,null,""]
[null,null,null,null,null,null,null,null,null,""]
[null,null,null,null,null,null,null,null,null,""]
[null,null,null,null,null,null,null,null,null,""]
[null,null,null,null,null,null,null,null,null,""]
[null,null,null,null,null,null,null,null,null,""]
[null,null,null,null,null,null,null,null,null,""]
[null,null,null,null,null,null,null,null,null,""]
[null,null,null,null,null,null,null,null,null,""]
[null,null,null,null,null,null,null,null,null,""]
[null,null,null,null,null,null,null,null,null,""]
[null,null,null,null,null,null,null,null,null,""]
[null,null,null,null,null,null,null,null,null,""]
[null,null,null,null,null,null,null,null,null,""]
[null,null,null,null,null,null,null,null,null,""]
[null,null,null,null,null,null,null,null,null,""]
[null,null,null,null,null,null,null,null,null,""]
[null,null,null,null,null,null,null,null,null,""]
[null,null,null,null,null,null,null,null,null,""]
[null,null,null,null,null,null,null,null,null,""]
[null,null,null,null,null,null,null,null,null,""]
[null,null,null,null,null,null,null,null,null,""]
[null,null,null,null,null,null,null,null,null,""]
[null,null,null,null,null,null,null,null,null,""]
[null,null,null,null,null,null,null,null,null,""]
[null,null,null,null,null,null,null,null,null,""]
[null,null,null,null,null,null,null,null,null,""]
[null,null,null,null,null,null,null,null,null,""]
[null,null,null,null,null,null,null,null,null,""]
[null,null,null,null,null,null,null,null,null,""]
[null,null,null,null,null,null,null,null,null,""]
[null,null,null,null,null,null,null,null,null,""]
[null,null,null,null,null,null,null,null,null,""]
[null,null,null,null,null,null,null,null,null,""]
[null,null,null,null,null,null,null,null,null,""]
[null,null,null,null,null,null,null,null,null,""]
[null,null,null,null,null,null,null,null,null,""]
[null,null,null,null,null,null,null,null,null,""]
[null,null,null,null,null,null,null,null,null,""]
[null,null,null,null,null,null,null,null,null,""]
[null,null,null,null,null,null,null,null,null,""]
[null,null,null,null,null,null,null,null,null,""]
[null,null,null,null,null,null,null,null,null,""]
[null,null,null,null,null,null,null,null,null,""]
[null,null,null,null,null,null,null,null,null,""]
[null,null,null,null,null,null,null,null,null,""]
[null,null,null,null,null,null,null,null,null,""]
[null,null,null,null,null,null,null,null,null,""]
[null,null,null,null,null,null,null,null,null,""]
[null,null,null,null,null,null,null,null,null,""]
[null,null,null,null,null,null,null,null,null,""]
[null,null,null,null,null,null,null,null,null,""]
[null,null,null,null,null,null,null,null,null,""]
[null,null,null,null,null,null,null,null,null,""]
[null,null,null,null,null,null,null,null,null,""]
[null,null,null,null,null,null,null,null,null,""]
[null,null,null,null,null,null,null,null,null,""]
[null,null,null,null,null,null,null,null,null,""]
[null,null,null,null,null,null,null,null,null,""]
[null,null,null,null,null,null,null,null,null,""]
[null,null,null,null,null,null,null,null,null,""]
[null,null,null,null,null,null,null,null,null,""]
[null,null,null,null,null,null,null,null,null,""]
[null,null,null,null,null,null,null,null,null,""]
[null,null,null,null,null,null,null,null,null,""]
[null,null,null,null,null,null,null,null,null,""]
[null,null,null,null,null,null,null,null,null,""]
[null,null,null,null,null,null,null,null,null,""]
[null,null,null,null,null,null,null,null,null,""]
[null,null,null,null,null,null,null,null,null,""]
[null,null,null,null,null,null,null,null,null,""]
[null,null,null,null,null,null,null,null,null,""]
[null,null,null,null,null,null,null,null,null,""]
[null,null,null,null,null,null,null,null,null,""]
[null,null,null,null,null,null,null,null,null,""]
[null,null,null,null,null,null,null,null,null,""]
[null,null,null,null,null,null,null,null,null,""]
[null,null,null,null,null,null,null,null,null,""]
[null,null,null,null,null,null,null,null,null,""]
[null,null,null,null,null,null,null,null,null,""]
[null,null,null,null,null,null,null,null,null,""]
[null,null,null,null,null,null,null,null,null,""]
[null,null,null,null,null,null,null,null,null,""]
[null,null,null,null,null,null,null,null,null,""]
[null,null,null,null,null,null,null,null,null,""]
[null,null,null,null,null,null,null,null,null,""]
[null,null,null,null,null,null,null,null,null,""]
[null,null,null,null,null,null,null,null,null,""]
[null,null,null,null,null,null,null,null,null,""]
[null,null,null,null,null,null,null,null,null,""]
[null,null,null,null,null,null,null,null,null,""]
[null,null,null,null,null,null,null,null,null,""]
[null,null,null,null,null,null,null,null,null,""]
[null,null,null,null,null,null,null,null,null,""]
[null,null,null,null,null,null,null,null,null,""]
[null,null,null,null,null,null,null,null,null,""]
[null,null,null,null,null,null,null,null,null,""]
[null,null,null,null,null,null,null,null,null,""]
[null,null,null,null,null,null,null,null,null,""]
[null,null,null,null,null,null,null,null,null,""]
[null,null,null,null,null,null,null,null,null,""]
[null,null,null,null,null,null,null,null,null,""]
[null,null,null,null,null,null,null,null,null,""]
[null,null,null,null,null,null,null,null,null,""]
[null,null,null,null,null,null,null,null,null,""]
[null,null,null,null,null,null,null,null,null,""]
[null,null,null,null,null,null,null,null,null,""]
[null,null,null,null,null,null,null,null,null,""]
[null,null,null,null,null,null,null,null,null,""]
[null,null,null,null,null,null,null,null,null,""]
[null,null,null,null,null,null,null,null,null,""]
[null,null,null,null,null,null,null,null,null,""]
[null,null,null,null,null,null,null,null,null,""]
[null,null,null,null,null,null,null,null,null,""]
[null,null,null,null,null,null,null,null,null,""]
[null,null,null,null,null,null,null,null,null,""]
[null,null,null,null,null,null,null,null,null,""]
[null,null,null,null,null,null,null,null,null,""]
[null,null,null,null,null,null,null,null,null,""]
[null,null,null,null,null,null,null,null,null,""]
[null,null,null,null,null,null,null,null,null,""]
[null,null,null,null,null,null,null,null,null,""]
[null,null,null,null,null,null,null,null,null,""]
[null,null,null,null,null,null,null,null,null,""]
[null,null,null,null,null,null,null,null,null,""]
[null,null,null,null,null,null,null,null,null,""]
[null,null,null,null,null,null,null,null,null,""]
[null,null,null,null,null,null,null,null,null,""]
[null,null,null,null,null,null,null,null,null,""]
[null,null,null,null,null,null,null,null,null,""]
[null,null,null,null,null,null,null,null,null,""]
[null,null,null,null,null,null,null,null,null,""]
[null,null,null,null,null,null,null,null,null,""]
[null,null,null,null,null,null,null,null,null,""]
[null,null,null,null,null,null,null,null,null,""]
[null,null,null,null,null,null,null,null,null,""]
[null,null,null,null,null,null,null,null,null,""]
[null,null,null,null,null,null,null,null,null,""]
[null,null,null,null,null,null,null,null,null,""]
[null,null,null,null,null,null,null,null,null,""]
[null,null,null,null,null,null,null,null,null,""]
[null,null,null,null,null,null,null,null,null,""]
[null,null,null,null,null,null,null,null,null,""]
[null,null,null,null,null,null,null,null,null,""]
[null,null,null,null,null,null,null,null,null,""]
[null,null,null,null,null,null,null,null,null,""]
[null,null,null,null,null,null,null,null,null,""]
[null,null,null,null,null,null,null,null,null,""]
[null,null,null,null,null,null,null,null,null,""]
[null,null,null,null,null,null,null,null,null,""]
[null,null,null,null,null,null,null,null,null,""]
[null,null,null,null,null,null,null,null,null,""]
[null,null,null,null,null,null,null,null,null,""]
[null,null,null,null,null,null,null,null,null,""]
[null,null,null,null,null,null,null,null,null,""]
[null,null,null,null,null,null,null,null,null,""]
[null,null,null,null,null,null,null,null,null,""]
[null,null,null,null,null,null,null,null,null,""]
[null,null,null,null,null,null,null,null,null,""]
[null,null,null,null,null,null,null,null,null,""]
[null,null,null,null,null,null,null,null,null,""]
[null,null,null,null,null,null,null,null,null,""]
[null,null,null,null,null,null,null,null,null,""]
[null,null,null,null,null,null,null,null,null,""]
[null,null,null,null,null,null,null,null,null,""]
[null,null,null,null,null,null,null,null,null,""]
[null,null,null,null,null,null,null,null,null,""]
[null,null,null,null,null,null,null,null,null,""]
[null,null,null,null,null,null,null,null,null,""]
[null,null,null,null,null,null,null,null,null,""]
[null,null,null,null,null,null,null,null,null,""]
[null,null,null,null,null,null,null,null,null,""]
[null,null,null,null,null,null,null,null,null,""]
[null,null,null,null,null,null,null,null,null,""]
[null,null,null,null,null,null,null,null,null,""]
[null,null,null,null,null,null,null,null,null,""]
[null,null,null,null,null,null,null,null,null,""]
[null,null,null,null,null,null,null,null,null,""]
[null,null,null,null,null,null,null,null,null,""]
[null,null,null,null,null,null,null,null,null,""]
[null,null,null,null,null,null,null,null,null,""]
[null,null,null,null,null,null,null,null,null,""]
[null,null,null,null,null,null,null,null,null,""]
[null,null,null,null,null,null,null,null,null,""]
[null,null,null,null,null,null,null,null,null,""]
[null,null,null,null,null,null,null,null,null,""]
[null,null,null,null,null,null,null,null,null,""]
[null,null,null,null,null,null,null,null,null,""]
[null,null,null,null,null,null,null,null,null,""]
[null,null,null,null,null,null,null,null,null,""]
[null,null,null,null,null,null,null,null,null,""]
[null,null,null,null,null,null,null,null,null,""]
[null,null,null,null,null,null,null,null,null,""]
[null,null,null,null,null,null,null,null,null,""]
[null,null,null,null,null,null,null,null,null,""]
[null,null,null,null,null,null,null,null,null,""]
[null,null,null,null,null,null,null,null,null,""]
[null,null,null,null,null,null,null,null,null,""]
[null,null,null,null,null,null,null,null,null,""]
[null,null,null,null,null,null,null,null,null,""]
[null,null,null,null,null,null,null,null,null,""]
[null,null,null,null,null,null,null,null,null,""]
[null,null,null,null,null,null,null,null,null,""]
[null,null,null,null,null,null,null,null,null,""]
[null,null,null,null,null,null,null,null,null,""]
[null,null,null,null,null,null,null,null,null,""]
[null,null,null,null,null,null,null,null,null,""]
[null,null,null,null,null,null,null,null,null,""]
[null,null,null,null,null,null,null,null,null,""]
[null,null,null,null,null,null,null,null,null,""]
[null,null,null,null,null,null,null,null,null,""]
[null,null,null,null,null,null,null,null,null,""]
[null,null,null,null,null,null,null,null,null,""]
[null,null,null,null,null,null,null,null,null,""]
[null,null,null,null,null,null,null,null,null,""]
[null,null,null,null,null,null,null,null,null,""]
[null,null,null,null,null,null,null,null,null,""]
[null,null,null,null,null,null,null,null,null,""]
[null,null,null,null,null,null,null,null,null,""]
[null,null,null,null,null,null,null,null,null,""]
[null,null,null,null,null,null,null,null,null,""]
[null,null,null,null,null,null,null,null,null,""]
[null,null,null,null,null,null,null,null,null,""]
[null,null,null,null,null,null,null,null,null,""]
[null,null,null,null,null,null,null,null,null,""]
[null,null,null,null,null,null,null,null,null,""]
[null,null,null,null,null,null,null,null,null,""]
[null,null,null,null,null,null,null,null,null,""]
[null,null,null,null,null,null,null,null,null,""]
[null,null,null,null,null,null,null,null,null,""]
[null,null,null,null,null,null,null,null,null,""]
[null,null,null,null,null,null,null,null,null,""]
[null,null,null,null,null,null,null,null,null,""]
[null,null,null,null,null,null,null,null,null,""]
[null,null,null,null,null,null,null,null,null,""]
[null,null,null,null,null,null,null,null,null,""]
[null,null,null,null,null,null,null,null,null,""]
[null,null,null,null,null,null,null,null,null,""]
[null,null,null,null,null,null,null,null,null,""]
[null,null,null,null,null,null,null,null,null,""]
[null,null,null,null,null,null,null,null,null,""]
[null,null,null,null,null,null,null,null,null,""]
[null,null,null,null,null,null,null,null,null,""]
[null,null,null,null,null,null,null,null,null,""]
[null,null,null,null,null,null,null,null,null,""]
[null,null,null,null,null,null,null,null,null,""]
[null,null,null,null,null,null,null,null,null,""]
[null,null,null,null,null,null,null,null,null,""]
[null,null,null,null,null,null,null,null,null,""]
[null,null,null,null,null,null,null,null,null,""]
[null,null,null,null,null,null,null,null,null,""]
[null,null,null,null,null,null,null,null,null,""]
[null,null,null,null,null,null,null,null,null,""]
[null,null,null,null,null,null,null,null,null,""]
[null,null,null,null,null,null,null,null,null,""]
[null,null,null,null,null,null,null,null,null,""]
[null,null,null,null,null,null,null,null,null,""]
[null,null,null,null,null,null,null,null,null,""]
[null,null,null,null,null,null,null,null,null,""]
[null,null,null,null,null,null,null,null,null,""]
[null,null,null,null,null,null,null,null,null,""]
[null,null,null,null,null,null,null,null,null,""]
[null,null,null,null,null,null,null,null,null,""]
[null,null,null,null,null,null,null,null,null,""]
[null,null,null,null,null,null,null,null,null,""]
[null,null,null,null,null,null,null,null,null,""]
[null,null,null,null,null,null,null,null,null,""]
[null,null,null,null,null,null,null,null,null,""]
[null,null,null,null,null,null,null,null,null,""]
[null,null,null,null,null,null,null,null,null,""]
[null,null,null,null,null,null,null,null,null,""]
[null,null,null,null,null,null,null,null,null,""]
[null,null,null,null,null,null,null,null,null,""]
[null,null,null,null,null,null,null,null,null,""]
[null,null,null,null,null,null,null,null,null,""]
[null,null,null,null,null,null,null,null,null,""]
[null,null,null,null,null,null,null,null,null,""]
[null,null,null,null,null,null,null,null,null,""]
[null,null,null,null,null,null,null,null,null,""]
[null,null,null,null,null,null,null,null,null,""]
[null,null,null,null,null,null,null,null,null,""]
[null,null,null,null,null,null,null,null,null,""]
[null,null,null,null,null,null,null,null,null,""]
[null,null,null,null,null,null,null,null,null,""]
[null,null,null,null,null,null,null,null,null,""]
[null,null,null,null,null,null,null,null,null,""]
[null,null,null,null,null,null,null,null,null,""]
[null,null,null,null,null,null,null,null,null,""]
[null,null,null,null,null,null,null,null,null,""]
[null,null,null,null,null,null,null,null,null,""]
[null,null,null,null,null,null,null,null,null,""]
[null,null,null,null,null,null,null,null,null,""]
[null,null,null,null,null,null,null,null,null,""]
[null,null,null,null,null,null,null,null,null,""]
[null,null,null,null,null,null,null,null,null,""]
[null,null,null,null,null,null,null,null,null,""]
[null,null,null,null,null,null,null,null,null,""]
[null,null,null,null,null,null,null,null,null,""]
[null,null,null,null,null,null,null,null,null,""]
[null,null,null,null,null,null,null,null,null,""]
[null,null,null,null,null,null,null,null,null,""]
[null,null,null,null,null,null,null,null,null,""]
[null,null,null,null,null,null,null,null,null,""]
[null,null,null,null,null,null,null,null,null,""]
[null,null,null,null,null,null,null,null,null,""]
[null,null,null,null,null,null,null,null,null,""]
[null,null,null,null,null,null,null,null,null,""]
[null,null,null,null,null,null,null,null,null,""]
[null,null,null,null,null,null,null,null,null,""]
[null,null,null,null,null,null,null,null,null,""]
[null,null,null,null,null,null,null,null,null,""]
[null,null,null,null,null,null,null,null,null,""]
[null,null,null,null,null,null,null,null,null,""]
[null,null,null,null,null,null,null,null,null,""]
[null,null,null,null,null,null,null,null,null,""]
[null,null,null,null,null,null,null,null,null,""]
[null,null,null,null,null,null,null,null,null,""]
[null,null,null,null,null,null,null,null,null,""]
[null,null,null,null,null,null,null,null,null,""]
[null,null,null,null,null,null,null,null,null,""]
[null,null,null,null,null,null,null,null,null,""]
[null,null,null,null,null,null,null,null,null,""]
[null,null,null,null,null,null,null,null,null,""]
[null,null,null,null,null,null,null,null,null,""]
[null,null,null,null,null,null,null,null,null,""]
[null,null,null,null,null,null,null,null,null,""]
[null,null,null,null,null,null,null,null,null,""]
[null,null,null,null,null,null,null,null,null,""]
[null,null,null,null,null,null,null,null,null,""]
[null,null,null,null,null,null,null,null,null,""]
[null,null,null,null,null,null,null,null,null,""]
[null,null,null,null,null,null,null,null,null,""]
[null,null,null,null,null,null,null,null,null,""]
[null,null,null,null,null,null,null,null,null,""]
[null,null,null,null,null,null,null,null,null,""]
[null,null,null,null,null,null,null,null,null,""]
[null,null,null,null,null,null,null,null,null,""]
[null,null,null,null,null,null,null,null,null,""]
[null,null,null,null,null,null,null,null,null,""]
[null,null,null,null,null,null,null,null,null,""]
[null,null,null,null,null,null,null,null,null,""]
[null,null,null,null,null,null,null,null,null,""]
[null,null,null,null,null,null,null,null,null,""]
[null,null,null,null,null,null,null,null,null,""]
[null,null,null,null,null,null,null,null,null,""]
[null,null,null,null,null,null,null,null,null,""]
[null,null,null,null,null,null,null,null,null,""]
[null,null,null,null,null,null,null,null,null,""]
[null,null,null,null,null,null,null,null,null,""]
[null,null,null,null,null,null,null,null,null,""]
[null,null,null,null,null,null,null,null,null,""]
[null,null,null,null,null,null,null,null,null,""]
[null,null,null,null,null,null,null,null,null,""]
[null,null,null,null,null,null,null,null,null,""]
[null,null,null,null,null,null,null,null,null,""]
[null,null,null,null,null,null,null,null,null,""]
[null,null,null,null,null,null,null,null,null,""]
[null,null,null,null,null,null,null,null,null,""]
[null,null,null,null,null,null,null,null,null,""]
[null,null,null,null,null,null,null,null,null,""]
[null,null,null,null,null,null,null,null,null,""]
[null,null,null,null,null,null,null,null,null,""]
[null,null,null,null,null,null,null,null,null,""]
[null,null,null,null,null,null,null,null,null,""]
[null,null,null,null,null,null,null,null,null,""]
[null,null,null,null,null,null,null,null,null,""]
[null,null,null,null,null,null,null,null,null,""]
[null,null,null,null,null,null,null,null,null,""]
[null,null,null,null,null,null,null,null,null,""]
[null,null,null,null,null,null,null,null,null,""]
[null,null,null,null,null,null,null,null,null,""]
[null,null,null,null,null,null,null,null,null,""]
[null,null,null,null,null,null,null,null,null,""]
[null,null,null,null,null,null,null,null,null,""]
[null,null,null,null,null,null,null,null,null,""]
[null,null,null,null,null,null,null,null,null,""]
[null,null,null,null,null,null,null,null,null,""]
[null,null,null,null,null,null,null,null,null,""]
[null,null,null,null,null,null,null,null,null,""]
[null,null,null,null,null,null,null,null,null,""]
[null,null,null,null,null,null,null,null,null,""]
[null,null,null,null,null,null,null,null,null,""]
[null,null,null,null,null,null,null,null,null,""]
[null,null,null,null,null,null,null,null,null,""]
[null,null,null,null,null,null,null,null,null,""]
[null,null,null,null,null,null,null,null,null,""]
[null,null,null,null,null,null,null,null,null,""]
[null,null,null,null,null,null,null,null,null,""]
[null,null,null,null,null,null,null,null,null,""]
[null,null,null,null,null,null,null,null,null,""]
[null,null,null,null,null,null,null,null,null,""]
[null,null,null,null,null,null,null,null,null,""]
[null,null,null,null,null,null,null,null,null,""]
[null,null,null,null,null,null,null,null,null,""]
[null,null,null,null,null,null,null,null,null,""]
[null,null,null,null,null,null,null,null,null,""]
[null,null,null,null,null,null,null,null,null,""]
[null,null,null,null,null,null,null,null,null,""]
[null,null,null,null,null,null,null,null,null,""]
[null,null,null,null,null,null,null,null,null,""]
[null,null,null,null,null,null,null,null,null,""]
[null,null,null,null,null,null,null,null,null,""]
[null,null,null,null,null,null,null,null,null,""]
[null,null,null,null,null,null,null,null,null,""]
[null,null,null,null,null,null,null,null,null,""]
[null,null,null,null,null,null,null,null,null,""]
[null,null,null,null,null,null,null,null,null,""]
[null,null,null,null,null,null,null,null,null,""]
[null,null,null,null,null,null,null,null,null,""]
[null,null,null,null,null,null,null,null,null,""]
[null,null,null,null,null,null,null,null,null,""]
[null,null,null,null,null,null,null,null,null,""]
[null,null,null,null,null,null,null,null,null,""]
[null,null,null,null,null,null,null,null,null,""]
[null,null,null,null,null,null,null,null,null,""]
[null,null,null,null,null,null,null,null,null,""]
[null,null,null,null,null,null,null,null,null,""]
[null,null,null,null,null,null,null,null,null,""]
[null,null,null,null,null,null,null,null,null,""]
[null,null,null,null,null,null,null,null,null,""]
[null,null,null,null,null,null,null,null,null,""]
[null,null,null,null,null,null,null,null,null,""]
[null,null,null,null,null,null,null,null,null,""]
[null,null,null,null,null,null,null,null,null,""]
[null,null,null,null,null,null,null,null,null,""]
[null,null,null,null,null,null,null,null,null,""]
[null,null,null,null,null,null,null,null,null,""]
[null,null,null,null,null,null,null,null,null,""]
[null,null,null,null,null,null,null,null,null,""]
[null,null,null,null,null,null,null,null,null,""]
[null,null,null,null,null,null,null,null,null,""]
[null,null,null,null,null,null,null,null,null,""]
[null,null,null,null,null,null,null,null,null,""]
[null,null,null,null,null,null,null,null,null,""]
[null,null,null,null,null,null,null,null,null,""]
[null,null,null,null,null,null,null,null,null,""]
[null,null,null,null,null,null,null,null,null,""]
[null,null,null,null,null,null,null,null,null,""]
[null,null,null,null,null,null,null,null,null,""]
[null,null,null,null,null,null,null,null,null,""]
[null,null,null,null,null,null,null,null,null,""]
[null,null,null,null,null,null,null,null,null,""]
[null,null,null,null,null,null,null,null,null,""]
[null,null,null,null,null,null,null,null,null,""]
[null,null,null,null,null,null,null,null,null,""]
[null,null,null,null,null,null,null,null,null,""]
[null,null,null,null,null,null,null,null,null,""]
[null,null,null,null,null,null,null,null,null,""]
[null,null,null,null,null,null,null,null,null,""]
[null,null,null,null,null,null,null,null,null,""]
[null,null,null,null,null,null,null,null,null,""]
[null,null,null,null,null,null,null,null,null,""]
[null,null,null,null,null,null,null,null,null,""]
[null,null,null,null,null,null,null,null,null,""]
[null,null,null,null,null,null,null,null,null,""]
[null,null,null,null,null,null,null,null,null,""]
[null,null,null,null,null,null,null,null,null,""]
[null,null,null,null,null,null,null,null,null,""]
[null,null,null,null,null,null,null,null,null,""]
[null,null,null,null,null,null,null,null,null,""]
[null,null,null,null,null,null,null,null,null,""]
[null,null,null,null,null,null,null,null,null,""]
[null,null,null,null,null,null,null,null,null,""]
[null,null,null,null,null,null,null,null,null,""]
[null,null,null,null,null,null,null,null,null,""]
[null,null,null,null,null,null,null,null,null,""]
[null,null,null,null,null,null,null,null,null,""]
[null,null,null,null,null,null,null,null,null,""]
[null,null,null,null,null,null,null,null,null,""]
[null,null,null,null,null,null,null,null,null,""]
[null,null,null,null,null,null,null,null,null,""]
[null,null,null,null,null,null,null,null,null,""]
[null,null,null,null,null,null,null,null,null,""]
[null,null,null,null,null,null,null,null,null,""]
[null,null,null,null,null,null,null,null,null,""]
[null,null,null,null,null,null,null,null,null,""]
[null,null,null,null,null,null,null,null,null,""]
[null,null,null,null,null,null,null,null,null,""]
[null,null,null,null,null,null,null,null,null,""]
[null,null,null,null,null,null,null,null,null,""]
[null,null,null,null,null,null,null,null,null,""]
[null,null,null,null,null,null,null,null,null,""]
[null,null,null,null,null,null,null,null,null,""]
[null,null,null,null,null,null,null,null,null,""]
[null,null,null,null,null,null,null,null,null,""]
[null,null,null,null,null,null,null,null,null,""]
[null,null,null,null,null,null,null,null,null,""]
[null,null,null,null,null,null,null,null,null,""]
[null,null,null,null,null,null,null,null,null,""]
[null,null,null,null,null,null,null,null,null,""]
[null,null,null,null,null,null,null,null,null,""]
[null,null,null,null,null,null,null,null,null,""]
[null,null,null,null,null,null,null,null,null,""]
[null,null,null,null,null,null,null,null,null,""]
[null,null,null,null,null,null,null,null,null,""]
[null,null,null,null,null,null,null,null,null,""]
[null,null,null,null,null,null,null,null,null,""]
[null,null,null,null,null,null,null,null,null,""]
[null,null,null,null,null,null,null,null,null,""]
[null,null,null,null,null,null,null,null,null,""]
[null,null,null,null,null,null,null,null,null,""]
[null,null,null,null,null,null,null,null,null,""]
[null,null,null,null,null,null,null,null,null,""]
[null,null,null,null,null,null,null,null,null,""]
[null,null,null,null,null,null,null,null,null,""]
[null,null,null,null,null,null,null,null,null,""]
[null,null,null,null,null,null,null,null,null,""]
[null,null,null,null,null,null,null,null,null,""]
[null,null,null,null,null,null,null,null,null,""]
[null,null,null,null,null,null,null,null,null,""]
[null,null,null,null,null,null,null,null,null,""]
[null,null,null,null,null,null,null,null,null,""]
[null,null,null,null,null,null,null,null,null,""]
[null,null,null,null,null,null,null,null,null,""]
[null,null,null,null,null,null,null,null,null,""]
[null,null,null,null,null,null,null,null,null,""]
[null,null,null,null,null,null,null,null,null,""]
[null,null,null,null,null,null,null,null,null,""]
[null,null,null,null,null,null,null,null,null,""]
[null,null,null,null,null,null,null,null,null,""]
[null,null,null,null,null,null,null,null,null,""]
[null,null,null,null,null,null,null,null,null,""]
[null,null,null,null,null,null,null,null,null,""]
[null,null,null,null,null,null,null,null,null,""]
[null,null,null,null,null,null,null,null,null,""]
[null,null,null,null,null,null,null,null,null,""]
[null,null,null,null,null,null,null,null,null,""]
[null,null,null,null,null,null,null,null,null,""]
[null,null,null,null,null,null,null,null,null,""]
[null,null,null,null,null,null,null,null,null,""]
[null,null,null,null,null,null,null,null,null,""]
[null,null,null,null,null,null,null,null,null,""]
[null,null,null,null,null,null,null,null,null,""]
[null,null,null,null,null,null,null,null,null,""]
[null,null,null,null,null,null,null,null,null,""]
[null,null,null,null,null,null,null,null,null,""]
[null,null,null,null,null,null,null,null,null,""]
[null,null,null,null,null,null,null,null,null,""]
[null,null,null,null,null,null,null,null,null,""]
[null,null,null,null,null,null,null,null,null,""]
[null,null,null,null,null,null,null,null,null,""]
[null,null,null,null,null,null,null,null,null,""]
[null,null,null,null,null,null,null,null,null,""]
[null,null,null,null,null,null,null,null,null,""]
[null,null,null,null,null,null,null,null,null,""]
[null,null,null,null,null,null,null,null,null,""]
[null,null,null,null,null,null,null,null,null,""]
[null,null,null,null,null,null,null,null,null,""]
[null,null,null,null,null,null,null,null,null,""]
[null,null,null,null,null,null,null,null,null,""]
[null,null,null,null,null,null,null,null,null,""]
[null,null,null,null,null,null,null,null,null,""]
[null,null,null,null,null,null,null,null,null,""]
[null,null,null,null,null,null,null,null,null,""]
[null,null,null,null,null,null,null,null,null,""]
[null,null,null,null,null,null,null,null,null,""]
[null,null,null,null,null,null,null,null,null,""]
[null,null,null,null,null,null,null,null,null,""]
[null,null,null,null,null,null,null,null,null,""]
[null,null,null,null,null,null,null,null,null,""]
[null,null,null,null,null,null,null,null,null,""]
[null,null,null,null,null,null,null,null,null,""]
[null,null,null,null,null,null,null,null,null,""]
[null,null,null,null,null,null,null,null,null,""]
[null,null,null,null,null,null,null,null,null,""]
[null,null,null,null,null,null,null,null,null,""]
[null,null,null,null,null,null,null,null,null,""]
[null,null,null,null,null,null,null,null,null,""]
[null,null,null,null,null,null,null,null,null,""]
[null,null,null,null,null,null,null,null,null,""]
[null,null,null,null,null,null,null,null,null,""]
[null,null,null,null,null,null,null,null,null,""]
[null,null,null,null,null,null,null,null,null,""]
[null,null,null,null,null,null,null,null,null,""]
[null,null,null,null,null,null,null,null,null,""]
[null,null,null,null,null,null,null,null,null,""]
[null,null,null,null,null,null,null,null,null,""]
[null,null,null,null,null,null,null,null,null,""]
[null,null,null,null,null,null,null,null,null,""]
[null,null,null,null,null,null,null,null,null,""]
[null,null,null,null,null,null,null,null,null,""]
[null,null,null,null,null,null,null,null,null,""]
[null,null,null,null,null,null,null,null,null,""]
[null,null,null,null,null,null,null,null,null,""]
[null,null,null,null,null,null,null,null,null,""]
[null,null,null,null,null,null,null,null,null,""]
[null,null,null,null,null,null,null,null,null,""]
[null,null,null,null,null,null,null,null,null,""]
[null,null,null,null,null,null,null,null,null,""]
[null,null,null,null,null,null,null,null,null,""]
[null,null,null,null,null,null,null,null,null,""]
[null,null,null,null,null,null,null,null,null,""]
[null,null,null,null,null,null,null,null,null,""]
[null,null,null,null,null,null,null,null,null,""]
[null,null,null,null,null,null,null,null,null,""]
[null,null,null,null,null,null,null,null,null,""]
[null,null,null,null,null,null,null,null,null,""]
[null,null,null,null,null,null,null,null,null,""]
[null,null,null,null,null,null,null,null,null,""]
[null,null,null,null,null,null,null,null,null,""]
[null,null,null,null,null,null,null,null,null,""]
[null,null,null,null,null,null,null,null,null,""]
[null,null,null,null,null,null,null,null,null,""]
[null,null,null,null,null,null,null,null,null,""]
[null,null,null,null,null,null,null,null,null,""]
[null,null,null,null,null,null,null,null,null,""]
[null,null,null,null,null,null,null,null,null,""]
[null,null,null,null,null,null,null,null,null,""]
[null,null,null,null,null,null,null,null,null,""]
[null,null,null,null,null,null,null,null,null,""]
[null,null,null,null,null,null,null,null,null,""]
[null,null,null,null,null,null,null,null,null,""]
[null,null,null,null,null,null,null,null,null,""]
[null,null,null,null,null,null,null,null,null,""]
[null,null,null,null,null,null,null,null,null,""]
[null,null,null,null,null,null,null,null,null,""]
[null,null,null,null,null,null,null,null,null,""]
[null,null,null,null,null,null,null,null,null,""]
[null,null,null,null,null,null,null,null,null,""]
[null,null,null,null,null,null,null,null,null,""]
[null,null,null,null,null,null,null,null,null,""]
[null,null,null,null,null,null,null,null,null,""]
[null,null,null,null,null,null,null,null,null,""]
[null,null,null,null,null,null,null,null,null,""]
[null,null,null,null,null,null,null,null,null,""]
[null,null,null,null,null,null,null,null,null,""]
[null,null,null,null,null,null,null,null,null,""]
[null,null,null,null,null,null,null,null,null,""]
[null,null,null,null,null,null,null,null,null,""]
[null,null,null,null,null,null,null,null,null,""]
[null,null,null,null,null,null,null,null,null,""]
[null,null,null,null,null,null,null,null,null,""]
[null,null,null,null,null,null,null,null,null,""]
[null,null,null,null,null,null,null,null,null,""]
[null,null,null,null,null,null,null,null,null,""]
[null,null,null,null,null,null,null,null,null,""]
[null,null,null,null,null,null,null,null,null,""]
[null,null,null,null,null,null,null,null,null,""]
[null,null,null,null,null,null,null,null,null,""]
[null,null,null,null,null,null,null,null,null,""]
[null,null,null,null,null,null,null,null,null,""]
[null,null,null,null,null,null,null,null,null,""]
[null,null,null,null,null,null,null,null,null,""]
[null,null,null,null,null,null,null,null,null,""]
[null,null,null,null,null,null,null,null,null,""]
[null,null,null,null,null,null,null,null,null,""]
[null,null,null,null,null,null,null,null,null,""]
[null,null,null,null,null,null,null,null,null,""]
[null,null,null,null,null,null,null,null,null,""]
[null,null,null,null,null,null,null,null,null,""]
[null,null,null,null,null,null,null,null,null,""]
[null,null,null,null,null,null,null,null,null,""]
[null,null,null,null,null,null,null,null,null,""]
[null,null,null,null,null,null,null,null,null,""]
[null,null,null,null,null,null,null,null,null,""]
[null,null,null,null,null,null,null,null,null,""]
[null,null,null,null,null,null,null,null,null,""]
[null,null,null,null,null,null,null,null,null,""]
[null,null,null,null,null,null,null,null,null,""]
[null,null,null,null,null,null,null,null,null,""]
[null,null,null,null,null,null,null,null,null,""]
[null,null,null,null,null,null,null,null,null,""]
[null,null,null,null,null,null,null,null,null,""]
[null,null,null,null,null,null,null,null,null,""]
[null,null,null,null,null,null,null,null,null,""]
[null,null,null,null,null,null,null,null,null,""]
[null,null,null,null,null,null,null,null,null,""]
[null,null,null,null,null,null,null,null,null,""]
[null,null,null,null,null,null,null,null,null,""]
[null,null,null,null,null,null,null,null,null,""]
[null,null,null,null,null,null,null,null,null,""]
[null,null,null,null,null,null,null,null,null,""]
[null,null,null,null,null,null,null,null,null,""]
[null,null,null,null,null,null,null,null,null,""]
[null,null,null,null,null,null,null,null,null,""]
[null,null,null,null,null,null,null,null,null,""]
[null,null,null,null,null,null,null,null,null,""]
[null,null,null,null,null,null,null,null,null,""]
[null,null,null,null,null,null,null,null,null,""]
[null,null,null,null,null,null,null,null,null,""]
[null,null,null,null,null,null,null,null,null,""]
[null,null,null,null,null,null,null,null,null,""]
[null,null,null,null,null,null,null,null,null,""]
[null,null,null,null,null,null,null,null,null,""]
[null,null,null,null,null,null,null,null,null,""]
[null,null,null,null,null,null,null,null,null,""]
[null,null,null,null,null,null,null,null,null,""]
[null,null,null,null,null,null,null,null,null,""]
[null,null,null,null,null,null,null,null,null,""]
[null,null,null,null,null,null,null,null,null,""]
[null,null,null,null,null,null,null,null,null,""]
[null,null,null,null,null,null,null,null,null,""]
[null,null,null,null,null,null,null,null,null,""]
[null,null,null,null,null,null,null,null,null,""]
[null,null,null,null,null,null,null,null,null,""]
[null,null,null,null,null,null,null,null,null,""]
[null,null,null,null,null,null,null,null,null,""]
[null,null,null,null,null,null,null,null,null,""]
[null,null,null,null,null,null,null,null,null,""]
[null,null,null,null,null,null,null,null,null,""]
[null,null,null,null,null,null,null,null,null,""]
[null,null,null,null,null,null,null,null,null,""]
[null,null,null,null,null,null,null,null,null,""]
[null,null,null,null,null,null,null,null,null,""]
[null,null,null,null,null,null,null,null,null,""]
[null,null,null,null,null,null,null,null,null,""]
[null,null,null,null,null,null,null,null,null,""]
[null,null,null,null,null,null,null,null,null,""]
[null,null,null,null,null,null,null,null,null,""]
[null,null,null,null,null,null,null,null,null,""]
[null,null,null,null,null,null,null,null,null,""]
[null,null,null,null,null,null,null,null,null,""]
[null,null,null,null,null,null,null,null,null,""]
[null,null,null,null,null,null,null,null,null,""]
[null,null,null,null,null,null,null,null,null,""]
[null,null,null,null,null,null,null,null,null,""]
[null,null,null,null,null,null,null,null,null,""]
[null,null,null,null,null,null,null,null,null,""]
[null,null,null,null,null,null,null,null,null,""]
[null,null,null,null,null,null,null,null,null,""]
[null,null,null,null,null,null,null,null,null,""]
[null,null,null,null,null,null,null,null,null,""]
[null,null,null,null,null,null,null,null,null,""]
[null,null,null,null,null,null,null,null,null,""]
[null,null,null,null,null,null,null,null,null,""]
[null,null,null,null,null,null,null,null,null,""]
[null,null,null,null,null,null,null,null,null,""]
[null,null,null,null,null,null,null,null,null,""]
[null,null,null,null,null,null,null,null,null,""]
[null,null,null,null,null,null,null,null,null,""]
[null,null,null,null,null,null,null,null,null,""]
[null,null,null,null,null,null,null,null,null,""]
[null,null,null,null,null,null,null,null,null,""]
[null,null,null,null,null,null,null,null,null,""]
[null,null,null,null,null,null,null,null,null,""]
[null,null,null,null,null,null,null,null,null,""]
[null,null,null,null,null,null,null,null,null,""]
[null,null,null,null,null,null,null,null,null,""]
[null,null,null,null,null,null,null,null,null,""]
[null,null,null,null,null,null,null,null,null,""]
[null,null,null,null,null,null,null,null,null,""]
[null,null,null,null,null,null,null,null,null,""]
[null,null,null,null,null,null,null,null,null,""]
[null,null,null,null,null,null,null,null,null,""]
[null,null,null,null,null,null,null,null,null,""]
[null,null,null,null,null,null,null,null,null,""]
[null,null,null,null,null,null,null,null,null,""]
[null,null,null,null,null,null,null,null,null,""]
[null,null,null,null,null,null,null,null,null,""]
[null,null,null,null,null,null,null,null,null,""]
[null,null,null,null,null,null,null,null,null,""]
[null,null,null,null,null,null,null,null,null,""]
[null,null,null,null,null,null,null,null,null,""]
[null,null,null,null,null,null,null,null,null,""]
[null,null,null,null,null,null,null,null,null,""]
[null,null,null,null,null,null,null,null,null,""]
[null,null,null,null,null,null,null,null,null,""]
[null,null,null,null,null,null,null,null,null,""]
[null,null,null,null,null,null,null,null,null,""]
[null,null,null,null,null,null,null,null,null,""]
[null,null,null,null,null,null,null,null,null,""]
[null,null,null,null,null,null,null,null,null,""]
[null,null,null,null,null,null,null,null,null,""]
[null,null,null,null,null,null,null,null,null,""]
[null,null,null,null,null,null,null,null,null,""]
[null,null,null,null,null,null,null,null,null,""]
[null,null,null,null,null,null,null,null,null,""]
[null,null,null,null,null,null,null,null,null,""]
[null,null,null,null,null,null,null,null,null,""]
[null,null,null,null,null,null,null,null,null,""]
[null,null,null,null,null,null,null,null,null,""]
[null,null,null,null,null,null,null,null,null,""]
[null,null,null,null,null,null,null,null,null,""]
[null,null,null,null,null,null,null,null,null,""]
[null,null,null,null,null,null,null,null,null,""]
[null,null,null,null,null,null,null,null,null,""]
[null,null,null,null,null,null,null,null,null,""]
[null,null,null,null,null,null,null,null,null,""]
[null,null,null,null,null,null,null,null,null,""]
[null,null,null,null,null,null,null,null,null,""]
[null,null,null,null,null,null,null,null,null,""]
[null,null,null,null,null,null,null,null,null,""]
[null,null,null,null,null,null,null,null,null,""]
[null,null,null,null,null,null,null,null,null,""]
[null,null,null,null,null,null,null,null,null,""]
[null,null,null,null,null,null,null,null,null,""]
[null,null,null,null,null,null,null,null,null,""]
[null,null,null,null,null,null,null,null,null,""]
[null,null,null,null,null,null,null,null,null,""]
[null,null,null,null,null,null,null,null,null,""]
[null,null,null,null,null,null,null,null,null,""]
[null,null,null,null,null,null,null,null,null,""]
[null,null,null,null,null,null,null,null,null,""]
[null,null,null,null,null,null,null,null,null,""]
[null,null,null,null,null,null,null,null,null,""]
[null,null,null,null,null,null,null,null,null,""]
[null,null,null,null,null,null,null,null,null,""]
[null,null,null,null,null,null,null,null,null,""]
[null,null,null,null,null,null,null,null,null,""]
[null,null,null,null,null,null,null,null,null,""]
[null,null,null,null,null,null,null,null,null,""]
[null,null,null,null,null,null,null,null,null,""]
[null,null,null,null,null,null,null,null,null,""]
[null,null,null,null,null,null,null,null,null,""]
[null,null,null,null,null,null,null,null,null,""]
[null,null,null,null,null,null,null,null,null,""]
[null,null,null,null,null,null,null,null,null,""]
[null,null,null,null,null,null,null,null,null,""]
[null,null,null,null,null,null,null,null,null,""]
[null,null,null,null,null,null,null,null,null,""]
[null,null,null,null,null,null,null,null,null,""]
[null,null,null,null,null,null,null,null,null,""]
[null,null,null,null,null,null,null,null,null,""]
[null,null,null,null,null,null,null,null,null,""]
[null,null,null,null,null,null,null,null,null,""]
[null,null,null,null,null,null,null,null,null,""]
[null,null,null,null,null,null,null,null,null,""]
[null,null,null,null,null,null,null,null,null,""]
[null,null,null,null,null,null,null,null,null,""]
[null,null,null,null,null,null,null,null,null,""]
[null,null,null,null,null,null,null,null,null,""]
[null,null,null,null,null,null,null,null,null,""]
[null,null,null,null,null,null,null,null,null,""]
[null,null,null,null,null,null,null,null,null,""]
[null,null,null,null,null,null,null,null,null,""]
[null,null,null,null,null,null,null,null,null,""]
[null,null,null,null,null,null,null,null,null,""]
[null,null,null,null,null,null,null,null,null,""]
[null,null,null,null,null,null,null,null,null,""]
[null,null,null,null,null,null,null,null,null,""]
[null,null,null,null,null,null,null,null,null,""]
[null,null,null,null,null,null,null,null,null,""]
[null,null,null,null,null,null,null,null,null,""]
[null,null,null,null,null,null,null,null,null,""]
[null,null,null,null,null,null,null,null,null,""]
[null,null,null,null,null,null,null,null,null,""]
[null,null,null,null,null,null,null,null,null,""]
[null,null,null,null,null,null,null,null,null,""]
[null,null,null,null,null,null,null,null,null,""]
[null,null,null,null,null,null,null,null,null,""]
[null,null,null,null,null,null,null,null,null,""]
[null,null,null,null,null,null,null,null,null,""]
[null,null,null,null,null,null,null,null,null,""]
[null,null,null,null,null,null,null,null,null,""]
[null,null,null,null,null,null,null,null,null,""]
[null,null,null,null,null,null,null,null,null,""]
[null,null,null,null,null,null,null,null,null,""]
[null,null,null,null,null,null,null,null,null,""]
[null,null,null,null,null,null,null,null,null,""]
[null,null,null,null,null,null,null,null,null,""]
[null,null,null,null,null,null,null,null,null,""]
[null,null,null,null,null,null,null,null,null,""]
[null,null,null,null,null,null,null,null,null,""]
[null,null,null,null,null,null,null,null,null,""]
[null,null,null,null,null,null,null,null,null,""]
[null,null,null,null,null,null,null,null,null,""]
[null,null,null,null,null,null,null,null,null,""]
[null,null,null,null,null,null,null,null,null,""]
[null,null,null,null,null,null,null,null,null,""]
[null,null,null,null,null,null,null,null,null,""]
[null,null,null,null,null,null,null,null,null,""]
[null,null,null,null,null,null,null,null,null,""]
[null,null,null,null,null,null,null,null,null,""]
[null,null,null,null,null,null,null,null,null,""]
[null,null,null,null,null,null,null,null,null,""]
[null,null,null,null,null,null,null,null,null,""]
[null,null,null,null,null,null,null,null,null,""]
[null,null,null,null,null,null,null,null,null,""]
[null,null,null,null,null,null,null,null,null,""]
[null,null,null,null,null,null,null,null,null,""]
[null,null,null,null,null,null,null,null,null,""]
[null,null,null,null,null,null,null,null,null,""]
[null,null,null,null,null,null,null,null,null,""]
[null,null,null,null,null,null,null,null,null,""]
[null,null,null,null,null,null,null,null,null,""]
[null,null,null,null,null,null,null,null,null,""]
[null,null,null,null,null,null,null,null,null,""]
[null,null,null,null,null,null,null,null,null,""]
[null,null,null,null,null,null,null,null,null,""]
[null,null,null,null,null,null,null,null,null,""]
[null,null,null,null,null,null,null,null,null,""]
[null,null,null,null,null,null,null,null,null,""]
[null,null,null,null,null,null,null,null,null,""]
[null,null,null,null,null,null,null,null,null,""]
[null,null,null,null,null,null,null,null,null,""]
[null,null,null,null,null,null,null,null,null,""]
[null,null,null,null,null,null,null,null,null,""]
[null,null,null,null,null,null,null,null,null,""]
[null,null,null,null,null,null,null,null,null,""]
[null,null,null,null,null,null,null,null,null,""]
[null,null,null,null,null,null,null,null,null,""]
[null,null,null,null,null,null,null,null,null,""]
[null,null,null,null,null,null,null,null,null,""]
[null,null,null,null,null,null,null,null,null,""]
[null,null,null,null,null,null,null,null,null,""]
[null,null,null,null,null,null,null,null,null,""]
[null,null,null,null,null,null,null,null,null,""]
[null,null,null,null,null,null,null,null,null,""]
[null,null,null,null,null,null,null,null,null,""]
[null,null,null,null,null,null,null,null,null,""]
[null,null,null,null,null,null,null,null,null,""]
[null,null,null,null,null,null,null,null,null,""]

{"sheet":"Erhebungsbogen","index":7,"n_rows":38,"n_cols":14,"rows_kept":38,"cut":false,"hidden":false,"merged":[[1,0,1,1],[25,6,25,9],[24,4,24,5],[23,4,23,5],[22,4,22,5],[24,8,24,9],[0,0,0,9],[24,0,24,1],[20,2,20,3],[20,4,20,5],[10,0,11,1],[12,8,12,9],[11,4,11,5],[12,4,12,5],[11,8,11,9],[13,8,13,9],[19,4,19,5],[18,4,18,5],[17,4,17,5],[23,8,23,9],[22,8,22,9],[19,2,19,3],[18,2,18,3],[17,2,17,3],[8,11,8,12],[6,2,6,4],[6,5,6,6],[6,7,6,8],[6,9,6,10],[22,12,22,13],[35,1,35,9],[35,10,35,11],[35,12,35,13],[20,12,20,13],[21,12,21,13],[33,1,33,9],[33,10,33,11],[33,12,33,13],[31,1,31,9],[31,10,31,11],[27,10,27,11],[27,1,27,9],[25,10,25,11],[31,12,31,13],[27,12,27,13],[25,0,25,1],[25,12,25,13],[25,2,25,5],[17,12,17,13],[10,10,10,11],[23,12,23,13],[24,12,24,13],[2,8,2,10],[3,11,3,12],[4,11,4,12],[6,11,6,12],[3,7,3,8],[3,9,3,10],[4,7,4,8],[4,9,4,10],[1,13,3,13],[15,12,15,13],[16,12,16,13],[1,8,1,11],[1,2,1,7],[10,12,11,13],[12,12,12,13],[13,12,13,13],[8,2,8,4],[8,5,8,6],[8,7,8,8],[3,2,3,4],[4,0,4,1],[16,2,16,3],[15,2,15,3],[24,2,24,3],[16,6,16,7],[15,6,15,7],[14,6,14,7],[6,0,6,1],[8,0,8,1],[16,4,16,5],[15,4,15,5],[17,6,17,7],[23,2,23,3],[22,2,22,3],[21,2,21,3],[18,6,18,7],[3,5,3,6],[4,2,4,4],[4,5,4,6],[2,2,2,6],[10,2,10,5],[10,6,10,9],[11,2,11,3],[14,2,14,3],[13,2,13,3],[12,2,12,3],[13,6,13,7],[12,6,12,7],[11,6,11,7],[14,4,14,5],[13,4,13,5],[8,9,8,10],[37,12,37,13],[37,10,37,11],[37,1,37,9],[29,1,29,9],[29,10,29,11],[29,12,29,13],[16,8,16,9],[15,8,15,9],[14,8,14,9],[21,8,21,9],[20,8,20,9],[19,8,19,9],[18,8,18,9],[17,8,17,9],[24,6,24,7],[23,6,23,7],[22,6,22,7],[21,6,21,7],[20,6,20,7],[19,6,19,7],[19,12,19,13],[14,12,14,13],[18,12,18,13],[21,4,21,5]]}
["Jugenderhebungsbogen Erhebungsjahr",null,null,null,null,null,null,null,null,null,{"$f":"Deckblatt!A3","v":"2023"}]
["Verein:",null,{"$f":"Deckblatt!A5","v":"(Vereinsname eintragen)"},null,null,null,null,null,{"$f":"Deckblatt!B5","v":"(Vereinsort eintragen)"},null,null,null,null,"Jugendleiter seit:"]
[null,null,"Regierungsbezirk:",null,null,null,null,{"$f":"IF(I3=\"Oberbayern\",\"1\",IF(I3=\"Niederbayern\",\"2\",IF(I3=\"Oberfranken\",\"4\",IF(I3=\"Mittelfranken\",\"5\",IF(I3=\"Unterfranken\",\"6\",IF(I3=\"Oberpfalz\",\"3\",IF(I3=\"Schwaben\",\"7\",\"\")))))))","v":""},{"$f":"Deckblatt!B7","v":"(Regierungsbezirk auswählen)"}]
[null,null,"Name, Vorname",null,null,"Straße, Nr.",null,"PLZ,Ort",null,"Telefon",null,"Email"]
["Jugendleiter:"]
[]
["Stellvertreter:"]
[]
["Stellvertreter:"]
[]
["Gruppen/ Sachgebiete",null,"3 bis 15 Jahre",null,null,null,"16 bis einschl. 26 Jahre",null,null,null,"Summe in der Gruppe",null,"Gruppe Gesamt"]
[null,null,"Deandl",null,"Buam",null,"Deandl",null,"Buam",null,"Deandl","Buam"]
[1,"Jugendliche von 3 bis einschl. 26 Jahre",{"$f":"COUNTIFS(Deandl!$J:$J,\"x\",Deandl!$E:$E,\"<=15\",Deandl!$E:$E,\">=3\")","v":0},null,{"$f":"COUNTIFS(Buam!$J:$J,\"x\",Buam!$E:$E,\"<=15\",Buam!$E:$E,\">=3\")","v":0},null,{"$f":"COUNTIFS(Deandl!$J:$J,\"x\",Deandl!$E:$E,\"<=26\",Deandl!$E:$E,\">=16\")","v":0},null,{"$f":"COUNTIFS(Buam!$J:$J,\"x\",Buam!$E:$E,\"<=26\",Buam!$E:$E,\">=16\")","v":0},null,{"$f":"C13+G13","v":0},{"$f":"E13+I13","v":0},{"$f":"K13+L13","v":0}]
[{"$f":"A13+1","v":2},"Schuhplattler/Dreherinnen",{"$f":"COUNTIFS(Deandl!$K:$K,\"x\",Deandl!$E:$E,\"<=15\",Deandl!$E:$E,\">=3\")","v":0},null,{"$f":"COUNTIFS(Buam!$K:$K,\"x\",Buam!$E:$E,\"<=15\",Buam!$E:$E,\">=3\")","v":0},null,{"$f":"COUNTIFS(Deandl!$K:$K,\"x\",Deandl!$E:$E,\"<=26\",Deandl!$E:$E,\">=16\")","v":0},null,{"$f":"COUNTIFS(Buam!$K:$K,\"x\",Buam!$E:$E,\"<=26\",Buam!$E:$E,\">=16\")","v":0},null,{"$f":"C14+G14","v":0},{"$f":"E14+I14","v":0},{"$f":"K14+L14","v":0}]
[{"$f":"A14+1","v":3},"Tänzer/-innen",{"$f":"COUNTIFS(Deandl!$L:$L,\"x\",Deandl!$E:$E,\"<=15\",Deandl!$E:$E,\">=3\")","v":0},null,{"$f":"COUNTIFS(Buam!$L:$L,\"x\",Buam!$E:$E,\"<=15\",Buam!$E:$E,\">=3\")","v":0},null,{"$f":"COUNTIFS(Deandl!$L:$L,\"x\",Deandl!$E:$E,\"<=26\",Deandl!$E:$E,\">=16\")","v":0},null,{"$f":"COUNTIFS(Buam!$L:$L,\"x\",Buam!$E:$E,\"<=26\",Buam!$E:$E,\">=16\")","v":0},null,0,0,0]
[4,"Sänger/Sängerinnen",{"$f":"COUNTIFS(Deandl!$M:$M,\"x\",Deandl!$E:$E,\"<=15\",Deandl!$E:$E,\">=3\")","v":0},null,{"$f":"COUNTIFS(Buam!$M:$M,\"x\",Buam!$E:$E,\"<=15\",Buam!$E:$E,\">=3\")","v":0},null,{"$f":"COUNTIFS(Deandl!$M:$M,\"x\",Deandl!$E:$E,\"<=26\",Deandl!$E:$E,\">=16\")","v":0},null,{"$f":"COUNTIFS(Buam!$M:$M,\"x\",Buam!$E:$E,\"<=26\",Buam!$E:$E,\">=16\")","v":0},null,0,0,0]
[5,"Volksmusikanten/-innen",{"$f":"COUNTIFS(Deandl!$N:$N,\"x\",Deandl!$E:$E,\"<=15\",Deandl!$E:$E,\">=3\")","v":0},null,{"$f":"COUNTIFS(Buam!$N:$N,\"x\",Buam!$E:$E,\"<=15\",Buam!$E:$E,\">=3\")","v":0},null,{"$f":"COUNTIFS(Deandl!$N:$N,\"x\",Deandl!$E:$E,\"<=26\",Deandl!$E:$E,\">=16\")","v":0},null,{"$f":"COUNTIFS(Buam!$N:$N,\"x\",Buam!$E:$E,\"<=26\",Buam!$E:$E,\">=16\")","v":0},null,0,0,0]
[6,"Brauchtum/Böllerschützen",{"$f":"COUNTIFS(Deandl!$O:$O,\"x\",Deandl!$E:$E,\"<=15\",Deandl!$E:$E,\">=3\")","v":0},null,{"$f":"COUNTIFS(Buam!$O:$O,\"x\",Buam!$E:$E,\"<=15\",Buam!$E:$E,\">=3\")","v":0},null,{"$f":"COUNTIFS(Deandl!$O:$O,\"x\",Deandl!$E:$E,\"<=26\",Deandl!$E:$E,\">=16\")","v":0},null,{"$f":"COUNTIFS(Buam!$O:$O,\"x\",Buam!$E:$E,\"<=26\",Buam!$E:$E,\">=16\")","v":0},null,0,0,0]
[7,"Schnalzer",{"$f":"COUNTIFS(Deandl!$P:$P,\"x\",Deandl!$E:$E,\"<=15\",Deandl!$E:$E,\">=3\")","v":0},null,{"$f":"COUNTIFS(Buam!$P:$P,\"x\",Buam!$E:$E,\"<=15\",Buam!$E:$E,\">=3\")","v":0},null,{"$f":"COUNTIFS(Deandl!$P:$P,\"x\",Deandl!$E:$E,\"<=26\",Deandl!$E:$E,\">=16\")","v":0},null,{"$f":"COUNTIFS(Buam!$P:$P,\"x\",Buam!$E:$E,\"<=26\",Buam!$E:$E,\">=16\")","v":0},null,0,0,0]
[8,"Vereinsmusiker/-innen",{"$f":"COUNTIFS(Deandl!$Q:$Q,\"x\",Deandl!$E:$E,\"<=15\",Deandl!$E:$E,\">=3\")","v":0},null,{"$f":"COUNTIFS(Buam!$Q:$Q,\"x\",Buam!$E:$E,\"<=15\",Buam!$E:$E,\">=3\")","v":0},null,{"$f":"COUNTIFS(Deandl!$Q:$Q,\"x\",Deandl!$E:$E,\"<=26\",Deandl!$E:$E,\">=16\")","v":0},null,{"$f":"COUNTIFS(Buam!$Q:$Q,\"x\",Buam!$E:$E,\"<=26\",Buam!$E:$E,\">=16\")","v":0},null,0,0,0]
[9,"Theaterspieler/-innen",{"$f":"COUNTIFS(Deandl!$R:$R,\"x\",Deandl!$E:$E,\"<=15\",Deandl!$E:$E,\">=3\")","v":0},null,{"$f":"COUNTIFS(Buam!$R:$R,\"x\",Buam!$E:$E,\"<=15\",Buam!$E:$E,\">=3\")","v":0},null,{"$f":"COUNTIFS(Deandl!$R:$R,\"x\",Deandl!$E:$E,\"<=26\",Deandl!$E:$E,\">=16\")","v":0},null,{"$f":"COUNTIFS(Buam!$R:$R,\"x\",Buam!$E:$E,\"<=26\",Buam!$E:$E,\">=16\")","v":0},null,0,0,0]
[10,"Musikkapelle",{"$f":"COUNTIFS(Deandl!$S:$S,\"x\",Deandl!$E:$E,\"<=15\",Deandl!$E:$E,\">=3\")","v":0},null,{"$f":"COUNTIFS(Buam!$S:$S,\"x\",Buam!$E:$E,\"<=15\",Buam!$E:$E,\">=3\")","v":0},null,{"$f":"COUNTIFS(Deandl!$S:$S,\"x\",Deandl!$E:$E,\"<=26\",Deandl!$E:$E,\">=16\")","v":0},null,{"$f":"COUNTIFS(Buam!$S:$S,\"x\",Buam!$E:$E,\"<=26\",Buam!$E:$E,\">=16\")","v":0},null,0,0,0]
[11,"Handwerk und Basteln",{"$f":"COUNTIFS(Deandl!$T:$T,\"x\",Deandl!$E:$E,\"<=15\",Deandl!$E:$E,\">=3\")","v":0},null,{"$f":"COUNTIFS(Buam!$T:$T,\"x\",Buam!$E:$E,\"<=15\",Buam!$E:$E,\">=3\")","v":0},null,{"$f":"COUNTIFS(Deandl!$T:$T,\"x\",Deandl!$E:$E,\"<=26\",Deandl!$E:$E,\">=16\")","v":0},null,{"$f":"COUNTIFS(Buam!$T:$T,\"x\",Buam!$E:$E,\"<=26\",Buam!$E:$E,\">=16\")","v":0},null,0,0,{"$f":"K23+L23","v":0}]
[12,"Sonstige",{"$f":"(COUNTIFS(Deandl!$W:$W,\"x\",Deandl!$E:$E,\"<=15\",Deandl!$E:$E,\">=3\")+(COUNTIFS(Deandl!$Y:$Y,\"x\",Deandl!$E:$E,\"<=15\",Deandl!$E:$E,\">=3\")+COUNTIFS(Deandl!$AA:$AA,\"x\",Deandl!$E:$E,\"<=15\",Deandl!$E:$E,\">=3\")))","v":0},null,{"$f":"(COUNTIFS(Buam!$W:$W,\"x\",Buam!$E:$E,\"<=15\",Buam!$E:$E,\">=3\")+(COUNTIFS(Buam!$Y:$Y,\"x\",Buam!$E:$E,\"<=15\",Buam!$E:$E,\">=13\")+COUNTIFS(Buam!$AA:$AA,\"x\",Buam!$E:$E,\"<=15\",Buam!$E:$E,\">=3\")))","v":0},null,{"$f":"(COUNTIFS(Deandl!$W:$W,\"x\",Deandl!$E:$E,\"<=26\",Deandl!$E:$E,\">=16\")+(COUNTIFS(Deandl!$Y:$Y,\"x\",Deandl!$E:$E,\"<=26\",Deandl!$E:$E,\">=16\")+COUNTIFS(Deandl!$AA:$AA,\"x\",Deandl!$E:$E,\"<=26\",Deandl!$E:$E,\">=16\")))","v":0},null,{"$f":"(COUNTIFS(Buam!$W:$W,\"x\",Buam!$E:$E,\"<=26\",Buam!$E:$E,\">=16\")+(COUNTIFS(Buam!$Y:$Y,\"x\",Buam!$E:$E,\"<=26\",Buam!$E:$E,\">=16\")+COUNTIFS(Buam!$AA:$AA,\"x\",Buam!$E:$E,\"<=26\",Buam!$E:$E,\">=16\")))","v":0},null,0,0,0]
["Summe im Altersbereich",null,{"$f":"SUM(C13:D24)","v":0},null,{"$f":"SUM(E13:F24)","v":0},null,{"$f":"SUM(G13:H24)","v":0},null,{"$f":"SUM(I13:J24)","v":0},null,{"$f":"SUM(K13:K24)","v":0},{"$f":"SUM(L13:L24)","v":0}]
["Altersbereich gesamt",null,{"$f":"C25+E25","v":0},null,null,null,{"$f":"G25+I25","v":0},null,null,null,"Gruppenstärke Gesamt",null,{"$f":"SUM(M13:M25)","v":0}]
[]
[13,"(im Moment/vorübergehend) Passive Kinder und Jugendliche bis 26 Jahre",null,null,null,null,null,null,null,null,"Gesamt",null,{"$f":"COUNTIFS(Buam!$U:$U,\"x\",Buam!$E:$E,\"<=26\")+(COUNTIFS(Deandl!$U:$U,\"x\",Deandl!$E:$E,\"<=26\"))","v":0}]
[]
[13,"Gruppenstärke Gesamt ",null,null,null,null,null,null,null,null,"Gesamt",null,{"$f":"M26+M28","v":0}]
[]
[13,"Anzahl der Verantwortlichen / Mitarbeiter / Helfer in der Jugendarbeit",null,null,null,null,null,null,null,null,"Gesamt",null,0]
[]
[14,"davon mit abgeschlossener Jugendleiter-Grundschulung und (ab 2018) gültiger JULEICA",null,null,null,null,null,null,null,null,"Gesamt",null,{"$f":"COUNTIFS(Jugendleiter!S2:S88,\"x\",Jugendleiter!T2:T88,\"x\",Jugendleiter!U2:U88,\"x\")","v":0}]
[]
[15,"maximal förderfähige qualifizierte Jugendleiter",null,null,null,null,null,null,null,null,"Gesamt",null,{"$f":"IF(M13>100,\"10\",ROUNDUP(M13/10,0))*1","v":0}]
[]
[16,"im Erhebungsjahr förderfähige Jugendleiter",null,null,null,null,null,null,null,null,"Gesamt",null,{"$f":"IF(M34<M36,M34,M36)","v":0}]

{"sheet":"Maßnahme 1 - Betreuer","index":8,"n_rows":31,"n_cols":10,"rows_kept":31,"cut":false,"hidden":false,"merged":[[0,0,0,9],[4,3,4,7],[2,3,2,7],[3,3,3,7]]}
["Betreuerliste"]
[]
["Antragsteller:",null,null,{"$f":"Deckblatt!A5&\" \"&Deckblatt!B5","v":"(Vereinsname eintragen) (Vereinsort eintragen)"},null,null,null,null,"Beginn am:"]
["Bezeichnung der Maßnahme:",null,null,null,null,null,null,null,"Ende am:"]
["Ort der Maßnahme (PLZ):"]
[]
["A. Referenten/verantwortliche Personen"]
["Nr.","Name","Vorname","w","m","PLZ","Wohnort","Alter","Kennz. (s.u.)","weitere Informationen"]
["1."]
["2."]
["3."]
["4."]
["5."]
["6."]
["7."]
["8."]
["9."]
["10."]
["11."]
["12."]
["13."]
["14."]
["15."]
["16."]
["17."]
[]
["EA (ehrenamtlich. MA), HA (haupt-/nebenberuflicher MA), HO (Honorarkraft), PR (Praktikant), SO (sonstige)",null,null,null,null,null,null,null,"EA"]
[null,null,null,null,null,null,null,null,"HA"]
[null,null,null,null,null,null,null,null,"HO"]
[null,null,null,null,null,null,null,null,"PR"]
[null,null,null,null,null,null,null,null,"SO"]

{"sheet":"Maßnahme 1 - Teilnehmer","index":9,"n_rows":109,"n_cols":12,"rows_kept":109,"cut":false,"hidden":false,"merged":[[105,11,105,18],[106,11,106,18],[107,11,107,18],[108,11,108,18],[99,11,99,18],[100,11,100,18],[101,11,101,18],[102,11,102,18],[103,11,103,18],[104,11,104,18],[93,11,93,18],[94,11,94,18],[95,11,95,18],[96,11,96,18],[97,11,97,18],[98,11,98,18],[87,11,87,18],[88,11,88,18],[89,11,89,18],[90,11,90,18],[91,11,91,18],[92,11,92,18],[81,11,81,18],[82,11,82,18],[83,11,83,18],[84,11,84,18],[85,11,85,18],[86,11,86,18],[75,11,75,18],[76,11,76,18],[77,11,77,18],[78,11,78,18],[79,11,79,18],[80,11,80,18],[69,11,69,18],[70,11,70,18],[71,11,71,18],[72,11,72,18],[73,11,73,18],[74,11,74,18],[63,11,63,18],[64,11,64,18],[65,11,65,18],[66,11,66,18],[67,11,67,18],[68,11,68,18],[57,11,57,18],[58,11,58,18],[59,11,59,18],[60,11,60,18],[61,11,61,18],[62,11,62,18],[51,11,51,18],[52,11,52,18],[53,11,53,18],[54,11,54,18],[55,11,55,18],[56,11,56,18],[45,11,45,18],[46,11,46,18],[47,11,47,18],[48,11,48,18],[49,11,49,18],[50,11,50,18],[39,11,39,18],[40,11,40,18],[41,11,41,18],[42,11,42,18],[43,11,43,18],[44,11,44,18],[33,11,33,18],[34,11,34,18],[35,11,35,18],[36,11,36,18],[37,11,37,18],[38,11,38,18],[27,11,27,18],[28,11,28,18],[29,11,29,18],[30,11,30,18],[31,11,31,18],[32,11,32,18],[21,11,21,18],[22,11,22,18],[23,11,23,18],[24,11,24,18],[25,11,25,18],[26,11,26,18],[15,11,15,18],[16,11,16,18],[17,11,17,18],[18,11,18,18],[19,11,19,18],[20,11,20,18],[9,11,9,18],[10,11,10,18],[11,11,11,18],[12,11,12,18],[13,11,13,18],[14,11,14,18],[0,0,0,18],[2,10,2,18],[3,10,3,18],[7,0,8,0],[7,1,8,1],[7,3,8,3],[7,4,8,4],[7,5,8,5],[7,7,7,10],[7,11,8,18],[7,2,8,2],[7,6,8,6],[3,5,3,6],[4,5,4,6],[2,5,2,6]]}
["Teilnehmendenliste"]
[]
["Antragsteller:",null,null,null,null,{"$f":"'Maßnahme 1 - Betreuer'!D3","v":"(Vereinsname eintragen) (Vereinsort eintragen)"},null,null,"Beginn am:",null,{"$f":"'Maßnahme 1 - Betreuer'!J3","v":"00:00:00"}]
["Bezeichnung der Maßnahme:",null,null,null,null,{"$f":"'Maßnahme 1 - Betreuer'!D4","v":0},null,null,"Ende am:",null,{"$f":"'Maßnahme 1 - Betreuer'!J4","v":"00:00:00"}]
["Ort der Maßnahme (PLZ):",null,null,null,null,{"$f":"'Maßnahme 1 - Betreuer'!D5","v":0}]
[]
["B. Teilnehmer_innen"]
["Nr.","Name","Vorname","w","m","PLZ","Wohnort","Alter",null,null,null,"weitere Information"]
[null,null,null,null,null,null,null,"<10","10 - <14","14 - <18","18 - <27"]
["1."]
["2."]
["3."]
["4."]
["5."]
["6."]
["7."]
["8."]
["9."]
["10."]
["11."]
["12."]
["13."]
["14."]
["15."]
["16."]
["17."]
["18."]
["19."]
["20."]
["21."]
["22."]
["23."]
["24."]
["25."]
["26."]
["27."]
["28."]
["29."]
["30."]
["31."]
["32."]
["33."]
["34."]
["35."]
["36."]
["37."]
["38."]
["39."]
["40."]
["41."]
["42."]
["43."]
["44."]
["45."]
["46."]
["47."]
["48."]
["49."]
["50."]
["51."]
["52."]
["53."]
["54."]
["55."]
["56."]
["57."]
["58."]
["59."]
["60."]
["61."]
["62."]
["63."]
["64."]
["65."]
["66."]
["67."]
["68."]
["69."]
["70."]
["71."]
["72."]
["73."]
["74."]
["75."]
["76."]
["77."]
["78."]
["79."]
["80."]
["81."]
["82."]
["83."]
["84."]
["85."]
["86."]
["87."]
["88."]
["89."]
["90."]
["91."]
["92."]
["93."]
["94."]
["95."]
["96."]
["97."]
["98."]
["99."]
["100."]

{"sheet":"Maßnahme 1 - Antrag","index":10,"n_rows":56,"n_cols":28,"rows_kept":56,"cut":false,"hidden":false,"merged":[[47,25,51,29],[53,1,53,29],[55,3,55,9],[55,19,55,27],[44,1,44,4],[44,5,44,13],[44,15,44,18],[44,19,44,27],[46,1,46,12],[46,25,46,29],[43,1,43,4],[43,5,43,13],[43,15,43,18],[43,19,43,27],[37,15,37,25],[37,26,37,28],[39,15,39,17],[39,26,39,28],[38,1,38,8],[40,1,40,8],[38,9,38,13],[40,9,40,13],[39,20,39,24],[40,20,40,24],[36,1,36,10],[36,11,36,13],[36,15,36,25],[36,26,36,28],[34,15,34,28],[35,1,35,8],[34,1,34,8],[33,1,33,8],[35,9,35,13],[34,9,34,13],[33,9,33,13],[33,24,33,28],[35,15,35,23],[35,24,35,28],[31,1,31,13],[29,1,29,7],[29,8,29,10],[29,11,29,13],[30,1,30,10],[30,11,30,13],[32,9,32,13],[32,1,32,8],[32,24,32,28],[31,24,31,28],[30,24,30,28],[29,24,29,28],[28,1,28,10],[28,11,28,13],[24,15,24,22],[24,27,24,28],[26,15,26,25],[26,26,26,28],[26,1,26,8],[27,1,27,8],[26,9,26,13],[27,9,27,13],[28,24,28,28],[27,24,27,28],[20,12,20,13],[20,15,20,24],[20,25,20,26],[20,27,20,28],[22,15,22,28],[23,15,23,20],[23,21,23,22],[23,23,23,26],[23,27,23,28],[18,27,18,28],[19,10,19,11],[19,12,19,13],[19,15,19,24],[19,25,19,26],[19,27,19,28],[16,1,16,9],[16,10,16,11],[16,12,16,13],[16,25,16,26],[16,27,16,28],[18,1,19,9],[18,10,18,11],[18,12,18,13],[18,15,18,24],[18,25,18,26],[15,1,15,9],[15,10,15,11],[15,12,15,13],[15,15,15,24],[15,25,15,26],[15,27,15,28],[14,1,14,9],[14,10,14,11],[14,12,14,13],[14,15,14,24],[14,25,14,26],[14,27,14,28],[11,1,11,9],[11,10,11,11],[11,12,11,13],[11,15,11,24],[13,25,13,26],[11,25,11,26],[11,27,11,28],[7,8,7,11],[7,19,7,20],[8,8,8,11],[13,27,13,28],[12,1,12,9],[12,10,12,11],[12,12,12,13],[12,15,12,24],[12,25,12,26],[12,27,12,28],[13,1,13,9],[13,10,13,11],[13,12,13,13],[13,15,13,24],[0,0,0,29],[1,0,1,29],[2,1,2,28],[4,7,4,16],[4,26,4,28],[5,9,5,16],[5,26,5,28],[10,25,10,26],[10,27,10,28],[8,19,8,20],[10,1,10,9],[10,10,10,11],[10,12,10,13],[10,15,10,24]]}
["Förderung von Jugendbildungsmaßnahmen im Bayerischen Trachtenverband e. V. aus\nHaushaltsmitteln zur Förderung des Trachtenwesens des Freistaats Bayern"]
["ANTRAG auf MAßNAHMENZUSCHUSS"]
[null,"(als Anlage zum Hauptantrag zur Förderung der Jugendarbeit im Bayer. Trachtenverband e.V.)"]
[]
["a)","Antragssteller_in",null,null,null,null,null,{"$f":"Deckblatt!A5&\" \"&Deckblatt!B5","v":"(Vereinsname eintragen) (Vereinsort eintragen)"},null,null,null,null,null,null,null,null,null,null,"b)","PLZ d. Antragsstellers",null,null,null,null,null,null,{"$f":"IF(ISBLANK(Förderantrag!E13),\"\",Förderantrag!E13)","v":""}]
["c)","Bezeichnung d. Maßnahme",null,null,null,null,null,null,null,{"$f":"IF(ISBLANK('Maßnahme 1 - Betreuer'!D4),\"\",'Maßnahme 1 - Betreuer'!D4)","v":""},null,null,null,null,null,null,null,null,"d)","Ort der Maßnahme (PLZ)",null,null,null,null,null,null,{"$f":"IF(ISBLANK('Maßnahme 1 - Betreuer'!D5),\"\",'Maßnahme 1 - Betreuer'!D5)","v":""}]
[]
["f)","Beginn (dd.mm.yy)",null,null,null,null,null,null,{"$f":"IF(ISBLANK('Maßnahme 1 - Betreuer'!J3),\"\",'Maßnahme 1 - Betreuer'!J3)","v":""},null,null,null,null,"Dauer (Tage) mind.",null,null,null,null,null,{"$f":"IF(I9=I8,1,I9-I8)","v":1},null,"Bitte bestätigen:",null,null,null,null,null,false]
[null,"Ende (dd.mm.yy)",null,null,null,null,null,null,{"$f":"IF(ISBLANK('Maßnahme 1 - Betreuer'!J4),\"\",'Maßnahme 1 - Betreuer'!J4)","v":""},null,null,null,null,"Soll-Zeitstunden (mind.)",null,null,null,null,null,{"$f":"6*T8","v":6},null,"Zeitstunden erreicht?",null,null,null,null,null,false]
[]
["g)","TN-Auflistungen",null,null,null,null,null,null,null,null,"männl.",null,"weibl.",null,null,"Ehrenamtlich/pädagog. tätige Personen",null,null,null,null,null,null,null,null,null,"männl.",null,"weibl."]
[null,"Teilnehmende bis unter 10 Jahre",null,null,null,null,null,null,null,null,{"$f":"COUNTIFS('Maßnahme 1 - Teilnehmer'!E10:E109,\"x\",'Maßnahme 1 - Teilnehmer'!H10:H109,\"x\")","v":0},null,{"$f":"COUNTIFS('Maßnahme 1 - Teilnehmer'!D10:D109,\"x\",'Maßnahme 1 - Teilnehmer'!H10:H109,\"x\")","v":0},null,null,"unter 16 Jahre",null,null,null,null,null,null,null,null,null,{"$f":"COUNTIFS('Maßnahme 1 - Betreuer'!$H$9:$H$25,\"<16\",'Maßnahme 1 - Betreuer'!$I$9:$I$25,\"=EA\",'Maßnahme 1 - Betreuer'!$E$9:$E$25,\"x\")","v":0},null,{"$f":"COUNTIFS('Maßnahme 1 - Betreuer'!$H$9:$H$25,\"<16\",'Maßnahme 1 - Betreuer'!$I$9:$I$25,\"=EA\",'Maßnahme 1 - Betreuer'!$D$9:$D$25,\"x\")","v":0}]
[null,"Teilnhemende 10 bis unter 14 Jahre",null,null,null,null,null,null,null,null,{"$f":"COUNTIFS('Maßnahme 1 - Teilnehmer'!E10:E109,\"x\",'Maßnahme 1 - Teilnehmer'!I10:I109,\"x\")","v":0},null,{"$f":"COUNTIFS('Maßnahme 1 - Teilnehmer'!D10:D109,\"x\",'Maßnahme 1 - Teilnehmer'!I10:I109,\"x\")","v":0},null,null,"16 bis unter 18 Jahre",null,null,null,null,null,null,null,null,null,{"$f":"COUNTIFS('Maßnahme 1 - Betreuer'!$H$9:$H$25,\"<18\",'Maßnahme 1 - Betreuer'!$I$9:$I$25,\"=EA\",'Maßnahme 1 - Betreuer'!$E$9:$E$25,\"x\")-Z12","v":0},null,{"$f":"COUNTIFS('Maßnahme 1 - Betreuer'!$H$9:$H$25,\"<18\",'Maßnahme 1 - Betreuer'!$I$9:$I$25,\"=EA\",'Maßnahme 1 - Betreuer'!$D$9:$D$25,\"x\")-AB12","v":0}]
[null,"Teilnehmende 14 bis unter 18 Jahre",null,null,null,null,null,null,null,null,{"$f":"COUNTIFS('Maßnahme 1 - Teilnehmer'!E10:E109,\"x\",'Maßnahme 1 - Teilnehmer'!J10:J109,\"x\")","v":0},null,{"$f":"COUNTIFS('Maßnahme 1 - Teilnehmer'!D10:D109,\"x\",'Maßnahme 1 - Teilnehmer'!J10:J109,\"x\")","v":0},null,null,"18 bis unter 27 Jahre",null,null,null,null,null,null,null,null,null,{"$f":"COUNTIFS('Maßnahme 1 - Betreuer'!$H$9:$H$25,\"<27\",'Maßnahme 1 - Betreuer'!$I$9:$I$25,\"=EA\",'Maßnahme 1 - Betreuer'!$E$9:$E$25,\"x\")-Z13-Z12","v":0},null,{"$f":"COUNTIFS('Maßnahme 1 - Betreuer'!$H$9:$H$25,\"<27\",'Maßnahme 1 - Betreuer'!$I$9:$I$25,\"=EA\",'Maßnahme 1 - Betreuer'!$D$9:$D$25,\"x\")-AB13-AB12","v":0}]
[null,"Teilnehmende 18 bis unter 27 Jahre",null,null,null,null,null,null,null,null,{"$f":"COUNTIFS('Maßnahme 1 - Teilnehmer'!E10:E109,\"x\",'Maßnahme 1 - Teilnehmer'!K10:K109,\"x\")","v":0},null,{"$f":"COUNTIFS('Maßnahme 1 - Teilnehmer'!D10:D109,\"x\",'Maßnahme 1 - Teilnehmer'!K10:K109,\"x\")","v":0},null,null,"27 bis unter 45 Jahre",null,null,null,null,null,null,null,null,null,{"$f":"COUNTIFS('Maßnahme 1 - Betreuer'!$H$9:$H$25,\"<45\",'Maßnahme 1 - Betreuer'!$I$9:$I$25,\"=EA\",'Maßnahme 1 - Betreuer'!$E$9:$E$25,\"x\")-Z14-Z13-Z12","v":0},null,{"$f":"COUNTIFS('Maßnahme 1 - Betreuer'!$H$9:$H$25,\"<45\",'Maßnahme 1 - Betreuer'!$I$9:$I$25,\"=EA\",'Maßnahme 1 - Betreuer'!$D$9:$D$25,\"x\")-AB14-AB13-AB12","v":0}]
[null,null,null,null,null,null,null,null,null,null,{"$f":"SUM(K12:L15)","v":0},null,{"$f":"SUM(M12:N15)","v":0},null,null,"45 Jahre und älter",null,null,null,null,null,null,null,null,null,{"$f":"COUNTIFS('Maßnahme 1 - Betreuer'!$H$9:$H$25,\"<99\",'Maßnahme 1 - Betreuer'!$I$9:$I$25,\"=EA\",'Maßnahme 1 - Betreuer'!$E$9:$E$25,\"x\")-Z15-Z14-Z13-Z12","v":0},null,{"$f":"COUNTIFS('Maßnahme 1 - Betreuer'!$H$9:$H$25,\"<99\",'Maßnahme 1 - Betreuer'!$I$9:$I$25,\"=EA\",'Maßnahme 1 - Betreuer'!$D$9:$D$25,\"x\")-AB15-AB14-AB13-AB12","v":0}]
[null,"Teilnehmer gesamt",null,null,null,null,null,null,null,null,null,null,{"$f":"SUM(K16:N16)","v":0},null,null,null,null,null,null,null,null,null,null,null,null,{"$f":"SUM(Z12:AA16)","v":0},null,{"$f":"SUM(AB12:AC16)","v":0}]
[]
[null,"Referierende/\nPädagog. tätige Personen",null,null,null,null,null,null,null,null,"männl.",null,"weibl.",null,null,"Haupt-/Nebenberuflich tätige Personen",null,null,null,null,null,null,null,null,null,"männl.",null,"weibl."]
[null,null,null,null,null,null,null,null,null,null,{"$f":"COUNTIFS('Maßnahme 1 - Betreuer'!$I$9:$I$25,\"=EA\",'Maßnahme 1 - Betreuer'!$E$9:$E$25,\"x\")+COUNTIFS('Maßnahme 1 - Betreuer'!$I$9:$I$25,\"=HA\",'Maßnahme 1 - Betreuer'!$E$9:$E$25,\"x\")+COUNTIFS('Maßnahme 1 - Betreuer'!$I$9:$I$25,\"=HO\",'Maßnahme 1 - Betreuer'!$E$9:$E$25,\"x\")+COUNTIFS('Maßnahme 1 - Betreuer'!$I$9:$I$25,\"=PR\",'Maßnahme 1 - Betreuer'!$E$9:$E$25,\"x\")+COUNTIFS('Maßnahme 1 - Betreuer'!$I$9:$I$25,\"=SO\",'Maßnahme 1 - Betreuer'!$E$9:$E$25,\"x\")","v":0},null,{"$f":"COUNTIFS('Maßnahme 1 - Betreuer'!$I$9:$I$25,\"=EA\",'Maßnahme 1 - Betreuer'!$D$9:$D$25,\"x\")+COUNTIFS('Maßnahme 1 - Betreuer'!$I$9:$I$25,\"=HA\",'Maßnahme 1 - Betreuer'!$D$9:$D$25,\"x\")+COUNTIFS('Maßnahme 1 - Betreuer'!$I$9:$I$25,\"=HO\",'Maßnahme 1 - Betreuer'!$D$9:$D$25,\"x\")+COUNTIFS('Maßnahme 1 - Betreuer'!$I$9:$I$25,\"=PR\",'Maßnahme 1 - Betreuer'!$D$9:$D$25,\"x\")+COUNTIFS('Maßnahme 1 - Betreuer'!$I$9:$I$25,\"=SO\",'Maßnahme 1 - Betreuer'!$D$9:$D$25,\"x\")","v":0},null,null,"bis 45 Jahre",null,null,null,null,null,null,null,null,null,{"$f":"COUNTIFS('Maßnahme 1 - Betreuer'!$H$9:$H$25,\"<45\",'Maßnahme 1 - Betreuer'!$I$9:$I$25,\"=HA\",'Maßnahme 1 - Betreuer'!$E$9:$E$25,\"x\")","v":0},null,{"$f":"COUNTIFS('Maßnahme 1 - Betreuer'!$H$9:$H$25,\"<45\",'Maßnahme 1 - Betreuer'!$I$9:$I$25,\"=HA\",'Maßnahme 1 - Betreuer'!$D$9:$D$25,\"x\")","v":0}]
[null,null,null,null,null,null,null,null,null,null,null,null,{"$f":"K20+M20","v":0},null,null,"45 Jahre und älter",null,null,null,null,null,null,null,null,null,{"$f":"COUNTIFS('Maßnahme 1 - Betreuer'!$H$9:$H$25,\"<98\",'Maßnahme 1 - Betreuer'!$I$9:$I$25,\"=HA\",'Maßnahme 1 - Betreuer'!$E$9:$E$25,\"x\")-Z20","v":0},null,{"$f":"COUNTIFS('Maßnahme 1 - Betreuer'!$H$9:$H$25,\"<98\",'Maßnahme 1 - Betreuer'!$I$9:$I$25,\"=HA\",'Maßnahme 1 - Betreuer'!$D$9:$D$25,\"x\")-AB20","v":0}]
[]
[null,null,null,null,null,null,null,null,null,null,null,null,null,null,null,"Mitarbeit von sonstigen pädagogisch tätigen Personen"]
[null,null,null,null,null,null,null,null,null,null,null,null,null,null,null,"Honorarkräfte",null,null,null,null,null,{"$f":"COUNTIF('Maßnahme 1 - Betreuer'!$I$9:$I$25,\"HO\")","v":0},null,"Praktikanten",null,null,null,{"$f":"COUNTIF('Maßnahme 1 - Betreuer'!$I$9:$I$25,\"PR\")","v":0}]
[null,null,null,null,null,null,null,null,null,null,null,null,null,null,null,null,null,null,null,null,null,null,null,"Sonst. Personen",null,null,null,{"$f":"COUNTIF('Maßnahme 1 - Betreuer'!$I$9:$I$25,\"SO\")","v":0}]
[]
["h)","Einnahmen",null,null,null,null,null,null,null,"€",null,null,null,null,null,"Ausgaben",null,null,null,null,null,null,null,null,null,null,"€"]
[null,"Teilnehmergebühren gesamt",null,null,null,null,null,null,null,null,null,null,null,null,null,"Fahrtkosten"]
[null,null,null,null,null,null,null,null,null,null,null,null,null,null,null,"Verpflegung/Übernachtung"]
[null,null,null,null,null,null,null,null,null,null,null,null,null,null,null,"Raummieten"]
[null,null,null,null,null,null,null,null,null,null,null,null,null,null,null,"Honorare"]
[null,"Sonstige Zuschüsse (nicht von BTV)",null,null,null,null,null,null,null,null,null,null,null,null,null,"Kinderbetreuung/Assistenz"]
[null,"Herkunft",null,null,null,null,null,null,null,"Betrag",null,null,null,null,null,"Arbeits- und Hilfsmittel"]
[null,null,null,null,null,null,null,null,null,null,null,null,null,null,null,"Vorbereitung und Organisation"]
[]
[null,null,null,null,null,null,null,null,null,null,null,null,null,null,null,"Summe",null,null,null,null,null,null,null,null,{"$f":"SUM(Y28:AC34)","v":0}]
[]
[]
[null,"Summe",null,null,null,null,null,null,null,{"$f":"J28+J34+J35+J36","v":0}]
[null,null,null,null,null,null,null,null,null,null,null,null,null,null,null,"Fördersatz:",null,null,0.5,null,{"$f":"S40*Y36","v":0}]
[null,"Fehlbetrag",null,null,null,null,null,null,null,{"$f":"Y36-J39","v":0},null,null,null,null,null,"max. Zuschuss",null,null,null,null,{"$f":"IF(J41<0,0,IF(U40>J41,J41,U40))","v":0}]
[]
["i)","Die Überweisung des Zuschusses soll auf folgende Bankverbindung erfolgen:"]
[null,"Kontoinhaber:",null,null,null,{"$f":"Förderantrag!E29","v":"(Vereinsname eintragen) (Vereinsort eintragen)"},null,null,null,null,null,null,null,null,null,"Geldinstitut:",null,null,null,{"$f":"Deckblatt!B23","v":0}]
[null,"IBAN:",null,null,null,{"$f":"Deckblatt!B24","v":0},null,null,null,null,null,null,null,null,null,"BIC:",null,null,null,{"$f":"Deckblatt!B25","v":0}]
[]
[null,"Anhänge",null,null,null,null,null,null,null,null,null,null,null,null,"Programm, bestehend aus:",null,null,null,null,null,null,null,null,null,null,"Status"]
["j)","Teilnehmerliste",null,null,null,null,null,null,null,null,null,null,false,"l)","Zielsetzung (ggf. Teilziele) der Maßnahme",null,null,null,null,null,null,null,null,null,false,{"$f":"IF(AND(H5<>0,AA5<>0,J6<>0,AA6<>0,AB8=TRUE,AB9=FALSE,M17/M21<21,M17>=10,J41>0,F45<>0,M48=TRUE,Y48=TRUE,Y49=TRUE,Y50=TRUE,Y51=TRUE,Y52=TRUE)=TRUE,\"Der Antrag ist vollständig und nach erster Prüfung korrekt!\",\"Der Antrag ist nicht vollständig bzw. nicht förderfähig!\")","v":{"$error":"#DIV/0!"}}]
[null,"(inkl. Referenten/verantw. Mitarbeiter usw.)",null,null,null,null,null,null,null,null,null,null,null,"m)","Tatsächlicher Zeitablauf",null,null,null,null,null,null,null,null,null,false]
["k)","Liste der betreuten Kinder und der im Rahmen",null,null,null,null,null,null,null,null,null,null,false,"n)","den jeweiligen Inhalten",null,null,null,null,null,null,null,null,null,false]
[null," der Kinderbetreuung und die Assistenz bei",null,null,null,null,null,null,null,null,null,null,null,"o)","den angewandten Methoden",null,null,null,null,null,null,null,null,null,false]
[null,"Teilnehmenden mit Behinderung Anwesenden",null,null,null,null,null,null,null,null,null,null,null,"p)","offene Einladung",null,null,null,null,null,null,null,null,null,false]
[]
[null,"Die aufgeführten Ausgaben sind tatsächlich unmittelbar für diese Maßnahme entstanden, durch Belege nachgewiesen und es wurden keine weiteren Einnahmen erzielt. Nicht zuwendungsfähigen Beträge, Rückforderungen und Rückzahlungen wurden abgesetzt. Die Zuwendung wird ausschließlich zur Erfüllung des Zuwendungszwecks laut den Richtlinien zur Förderung der Jugendarbeit im Bayer. Trachtenverband e.V. verwendet. Alle in Richtlinien und Verfahrens-und Verwaltungsvorschriften enthaltenen Bestimmungen und genannten Bedingungen und Auflagen sind bekannt und werden eingehalten. Dem Unterzeichner ist bekannt, dass die Zuwendung im Falle ihrer zweckwidrigen Verwendung der Rückforderung und Verzinsung unterliegt.\nEin durch den Zuschuss nicht gedeckter Anteil des Fehlbetrages aus Eigenmitteln finanziert wird.\nDer Bayerische Oberste Rechnungshof, das Bayerische Staatsministerium für Wissenschaft, Forschung und Kunst und der Bayerische Trachtenverband sind berechtigt, die Verwendung des Zuschusses an Ort und Stelle nachzuprüfen. Alle Unterlagen und Belege sind aus diesem Grund für mindestens 5 Jahre aufzubewahren!"]
[]
[null,"Datum:",null,null,null,null,null,null,null,null,null,"rechtsverbindliche Unterschrift:"]

{"sheet":"Maßnahme 2 - Betreuer","index":11,"n_rows":27,"n_cols":10,"rows_kept":27,"cut":false,"hidden":false,"merged":[[0,0,0,9],[2,3,2,7],[3,3,3,7],[4,3,4,7],[26,0,26,9]]}
["Betreuerliste"]
[]
["Antragsteller:",null,null,{"$f":"Deckblatt!A5&\" \"&Deckblatt!B5","v":"(Vereinsname eintragen) (Vereinsort eintragen)"},null,null,null,null,"Beginn am:"]
["Bezeichnung der Maßnahme:",null,null,null,null,null,null,null,"Ende am:"]
["Ort der Maßnahme (PLZ):"]
[]
["A. Referenten/verantwortliche Personen"]
["Nr.","Name","Vorname","w","m","PLZ","Wohnort","Alter","Kennz. (s.u.)","weitere Informationen"]
["1."]
["2."]
["3."]
["4."]
["5."]
["6."]
["7."]
["8."]
["9."]
["10."]
["11."]
["12."]
["13."]
["14."]
["15."]
["16."]
["17."]
[]
["EA (ehrenamtlich. MA), HA (haupt-/nebenberuflicher MA), HO (Honorarkraft), PR (Praktikant), SO (sonstige)"]

{"sheet":"Maßnahme 2 - Teilnehmer","index":12,"n_rows":109,"n_cols":12,"rows_kept":109,"cut":false,"hidden":false,"merged":[[9,11,9,18],[10,11,10,18],[11,11,11,18],[12,11,12,18],[13,11,13,18],[14,11,14,18],[0,0,0,18],[2,10,2,18],[3,10,3,18],[7,0,8,0],[7,1,8,1],[7,3,8,3],[7,4,8,4],[7,5,8,5],[7,7,7,10],[7,11,8,18],[7,2,8,2],[7,6,8,6],[4,5,4,6],[3,5,3,6],[2,5,2,6],[21,11,21,18],[22,11,22,18],[23,11,23,18],[24,11,24,18],[25,11,25,18],[26,11,26,18],[15,11,15,18],[16,11,16,18],[17,11,17,18],[18,11,18,18],[19,11,19,18],[20,11,20,18],[33,11,33,18],[34,11,34,18],[35,11,35,18],[36,11,36,18],[37,11,37,18],[38,11,38,18],[27,11,27,18],[28,11,28,18],[29,11,29,18],[30,11,30,18],[31,11,31,18],[32,11,32,18],[45,11,45,18],[46,11,46,18],[47,11,47,18],[48,11,48,18],[49,11,49,18],[50,11,50,18],[39,11,39,18],[40,11,40,18],[41,11,41,18],[42,11,42,18],[43,11,43,18],[44,11,44,18],[57,11,57,18],[58,11,58,18],[59,11,59,18],[60,11,60,18],[61,11,61,18],[62,11,62,18],[51,11,51,18],[52,11,52,18],[53,11,53,18],[54,11,54,18],[55,11,55,18],[56,11,56,18],[69,11,69,18],[70,11,70,18],[71,11,71,18],[72,11,72,18],[73,11,73,18],[74,11,74,18],[63,11,63,18],[64,11,64,18],[65,11,65,18],[66,11,66,18],[67,11,67,18],[68,11,68,18],[81,11,81,18],[82,11,82,18],[83,11,83,18],[84,11,84,18],[85,11,85,18],[86,11,86,18],[75,11,75,18],[76,11,76,18],[77,11,77,18],[78,11,78,18],[79,11,79,18],[80,11,80,18],[93,11,93,18],[94,11,94,18],[95,11,95,18],[96,11,96,18],[97,11,97,18],[98,11,98,18],[87,11,87,18],[88,11,88,18],[89,11,89,18],[90,11,90,18],[91,11,91,18],[92,11,92,18],[105,11,105,18],[106,11,106,18],[107,11,107,18],[108,11,108,18],[99,11,99,18],[100,11,100,18],[101,11,101,18],[102,11,102,18],[103,11,103,18],[104,11,104,18]]}
["Teilnehmendenliste"]
[]
["Antragsteller:",null,null,null,null,{"$f":"'Maßnahme 1 - Betreuer'!D3","v":"(Vereinsname eintragen) (Vereinsort eintragen)"},null,null,"Beginn am:",null,{"$f":"'Maßnahme 2 - Betreuer'!J3","v":"00:00:00"}]
["Bezeichnung der Maßnahme:",null,null,null,null,{"$f":"'Maßnahme 2 - Betreuer'!D4","v":0},null,null,"Ende am:",null,{"$f":"'Maßnahme 2 - Betreuer'!J4","v":"00:00:00"}]
["Ort der Maßnahme (PLZ):",null,null,null,null,{"$f":"'Maßnahme 2 - Betreuer'!D5","v":0}]
[]
["B. Teilnehmer_innen"]
["Nr.","Name","Vorname","w","m","PLZ","Wohnort","Alter",null,null,null,"weitere Information"]
[null,null,null,null,null,null,null,"<10","10 - <14","14 - <18","18 - <27"]
["1."]
["2."]
["3."]
["4."]
["5."]
["6."]
["7."]
["8."]
["9."]
["10."]
["11."]
["12."]
["13."]
["14."]
["15."]
["16."]
["17."]
["18."]
["19."]
["20."]
["21."]
["22."]
["23."]
["24."]
["25."]
["26."]
["27."]
["28."]
["29."]
["30."]
["31."]
["32."]
["33."]
["34."]
["35."]
["36."]
["37."]
["38."]
["39."]
["40."]
["41."]
["42."]
["43."]
["44."]
["45."]
["46."]
["47."]
["48."]
["49."]
["50."]
["51."]
["52."]
["53."]
["54."]
["55."]
["56."]
["57."]
["58."]
["59."]
["60."]
["61."]
["62."]
["63."]
["64."]
["65."]
["66."]
["67."]
["68."]
["69."]
["70."]
["71."]
["72."]
["73."]
["74."]
["75."]
["76."]
["77."]
["78."]
["79."]
["80."]
["81."]
["82."]
["83."]
["84."]
["85."]
["86."]
["87."]
["88."]
["89."]
["90."]
["91."]
["92."]
["93."]
["94."]
["95."]
["96."]
["97."]
["98."]
["99."]
["100."]

{"sheet":"Maßnahme 2 - Antrag","index":13,"n_rows":56,"n_cols":28,"rows_kept":56,"cut":false,"hidden":false,"merged":[[0,0,0,29],[1,0,1,29],[2,1,2,28],[4,7,4,16],[4,26,4,28],[5,9,5,16],[5,26,5,28],[10,25,10,26],[10,27,10,28],[11,1,11,9],[11,10,11,11],[11,12,11,13],[11,15,11,24],[11,25,11,26],[11,27,11,28],[7,8,7,11],[7,19,7,20],[8,8,8,11],[8,19,8,20],[10,1,10,9],[10,10,10,11],[10,12,10,13],[10,15,10,24],[13,1,13,9],[13,10,13,11],[13,12,13,13],[13,15,13,24],[13,25,13,26],[13,27,13,28],[12,1,12,9],[12,10,12,11],[12,12,12,13],[12,15,12,24],[12,25,12,26],[12,27,12,28],[15,1,15,9],[15,10,15,11],[15,12,15,13],[15,15,15,24],[15,25,15,26],[15,27,15,28],[14,1,14,9],[14,10,14,11],[14,12,14,13],[14,15,14,24],[14,25,14,26],[14,27,14,28],[16,1,16,9],[16,10,16,11],[16,12,16,13],[16,25,16,26],[16,27,16,28],[18,1,19,9],[18,10,18,11],[18,12,18,13],[18,15,18,24],[18,25,18,26],[28,24,28,28],[27,24,27,28],[26,15,26,23],[26,24,26,28],[18,27,18,28],[19,10,19,11],[19,12,19,13],[19,15,19,24],[19,25,19,26],[19,27,19,28],[27,15,27,23],[27,9,27,13],[26,9,26,13],[20,12,20,13],[20,15,20,24],[20,25,20,26],[20,27,20,28],[22,15,22,28],[23,15,23,20],[23,21,23,22],[23,23,23,26],[23,27,23,28],[30,24,30,28],[29,24,29,28],[35,15,35,23],[33,15,33,23],[35,9,35,13],[24,15,24,22],[24,27,24,28],[31,1,31,13],[29,1,29,7],[29,8,29,10],[29,11,29,13],[30,1,30,10],[30,11,30,13],[32,15,32,23],[31,15,31,23],[30,15,30,23],[29,15,29,23],[32,9,32,13],[32,1,32,8],[28,1,28,10],[28,11,28,13],[26,1,26,8],[27,1,27,8],[28,15,28,23],[35,1,35,8],[34,1,34,8],[33,1,33,8],[35,24,35,28],[33,24,33,28],[34,9,34,13],[33,9,33,13],[32,24,32,28],[31,24,31,28],[47,25,51,29],[53,1,53,29],[55,3,55,9],[55,19,55,27],[44,1,44,4],[44,5,44,13],[44,15,44,18],[44,19,44,27],[46,1,46,12],[46,25,46,29],[43,1,43,4],[43,5,43,13],[43,15,43,18],[43,19,43,27],[37,15,37,25],[37,26,37,28],[39,26,39,28],[36,1,36,10],[36,11,36,13],[36,15,36,25],[36,26,36,28],[40,9,40,13],[38,9,38,13],[40,20,40,24],[39,20,39,24]]}
["Förderung von Jugendbildungsmaßnahmen im Bayerischen Trachtenverband e. V. aus\nHaushaltsmitteln zur Förderung des Trachtenwesens des Freistaats Bayern"]
["ANTRAG auf MAßNAHMENZUSCHUSS"]
[null,"(als Anlage zum Hauptantrag zur Förderung der Jugendarbeit im Bayer. Trachtenverband e.V.)"]
[]
["a)","Antragssteller_in",null,null,null,null,null,{"$f":"'Maßnahme 1 - Betreuer'!D3","v":"(Vereinsname eintragen) (Vereinsort eintragen)"},null,null,null,null,null,null,null,null,null,null,"b)","PLZ d. Antragsstellers",null,null,null,null,null,null,{"$f":"IF(ISBLANK(Förderantrag!E13),\"\",Förderantrag!E13)","v":""}]
["c)","Bezeichnung d. Maßnahme",null,null,null,null,null,null,null,{"$f":"IF(ISBLANK('Maßnahme 2 - Betreuer'!D4),\"\",'Maßnahme 2 - Betreuer'!D4)","v":""},null,null,null,null,null,null,null,null,"d)","Ort der Maßnahme (PLZ)",null,null,null,null,null,null,{"$f":"IF(ISBLANK('Maßnahme 2 - Betreuer'!D5),\"\",'Maßnahme 2 - Betreuer'!D5)","v":""}]
[]
["f)","Beginn (dd.mm.yy)",null,null,null,null,null,null,{"$f":"IF(ISBLANK('Maßnahme 2 - Betreuer'!J3),\"\",'Maßnahme 2 - Betreuer'!J3)","v":""},null,null,null,null,"Dauer (Tage) mind.",null,null,null,null,null,{"$f":"IF(I9=I8,1,I9-I8)","v":1},null,"Bitte bestätigen:",null,null,null,null,null,false]
[null,"Ende (dd.mm.yy)",null,null,null,null,null,null,{"$f":"IF(ISBLANK('Maßnahme 2 - Betreuer'!J4),\"\",'Maßnahme 2 - Betreuer'!J4)","v":""},null,null,null,null,"Soll-Zeitstunden (mind.)",null,null,null,null,null,{"$f":"6*T8","v":6},null,"Zeitstunden erreicht?",null,null,null,null,null,false]
[]
["g)","TN-Auflistungen",null,null,null,null,null,null,null,null,"männl.",null,"weibl.",null,null,"Ehrenamtlich/pädagog. tätige Personen",null,null,null,null,null,null,null,null,null,"männl.",null,"weibl."]
[null,"Teilnehmende bis unter 10 Jahre",null,null,null,null,null,null,null,null,{"$f":"COUNTIFS('Maßnahme 2 - Teilnehmer'!E10:E109,\"x\",'Maßnahme 2 - Teilnehmer'!H10:H109,\"x\")","v":0},null,{"$f":"COUNTIFS('Maßnahme 2 - Teilnehmer'!D10:D109,\"x\",'Maßnahme 2 - Teilnehmer'!H10:H109,\"x\")","v":0},null,null,"unter 16 Jahre",null,null,null,null,null,null,null,null,null,{"$f":"COUNTIFS('Maßnahme 2 - Betreuer'!$H$9:$H$25,\"<16\",'Maßnahme 2 - Betreuer'!$I$9:$I$25,\"=EA\",'Maßnahme 2 - Betreuer'!$E$9:$E$25,\"x\")","v":0},null,{"$f":"COUNTIFS('Maßnahme 2 - Betreuer'!$H$9:$H$25,\"<16\",'Maßnahme 2 - Betreuer'!$I$9:$I$25,\"=EA\",'Maßnahme 2 - Betreuer'!$D$9:$D$25,\"x\")","v":0}]
[null,"Teilnhemende 10 bis unter 14 Jahre",null,null,null,null,null,null,null,null,{"$f":"COUNTIFS('Maßnahme 2 - Teilnehmer'!E10:E109,\"x\",'Maßnahme 2 - Teilnehmer'!I10:I109,\"x\")","v":0},null,{"$f":"COUNTIFS('Maßnahme 2 - Teilnehmer'!D10:D109,\"x\",'Maßnahme 2 - Teilnehmer'!I10:I109,\"x\")","v":0},null,null,"16 bis unter 18 Jahre",null,null,null,null,null,null,null,null,null,{"$f":"COUNTIFS('Maßnahme 2 - Betreuer'!$H$9:$H$25,\"<18\",'Maßnahme 2 - Betreuer'!$I$9:$I$25,\"=EA\",'Maßnahme 2 - Betreuer'!$E$9:$E$25,\"x\")-Z12","v":0},null,{"$f":"COUNTIFS('Maßnahme 2 - Betreuer'!$H$9:$H$25,\"<18\",'Maßnahme 2 - Betreuer'!$I$9:$I$25,\"=EA\",'Maßnahme 2 - Betreuer'!$D$9:$D$25,\"x\")-AB12","v":0}]
[null,"Teilnehmende 14 bis unter 18 Jahre",null,null,null,null,null,null,null,null,{"$f":"COUNTIFS('Maßnahme 2 - Teilnehmer'!E10:E109,\"x\",'Maßnahme 2 - Teilnehmer'!J10:J109,\"x\")","v":0},null,{"$f":"COUNTIFS('Maßnahme 2 - Teilnehmer'!D10:D109,\"x\",'Maßnahme 2 - Teilnehmer'!J10:J109,\"x\")","v":0},null,null,"18 bis unter 27 Jahre",null,null,null,null,null,null,null,null,null,{"$f":"COUNTIFS('Maßnahme 2 - Betreuer'!$H$9:$H$25,\"<27\",'Maßnahme 2 - Betreuer'!$I$9:$I$25,\"=EA\",'Maßnahme 2 - Betreuer'!$E$9:$E$25,\"x\")-Z13-Z12","v":0},null,{"$f":"COUNTIFS('Maßnahme 2 - Betreuer'!$H$9:$H$25,\"<27\",'Maßnahme 2 - Betreuer'!$I$9:$I$25,\"=EA\",'Maßnahme 2 - Betreuer'!$D$9:$D$25,\"x\")-AB13-AB12","v":0}]
[null,"Teilnehmende 18 bis unter 27 Jahre",null,null,null,null,null,null,null,null,{"$f":"COUNTIFS('Maßnahme 2 - Teilnehmer'!E10:E109,\"x\",'Maßnahme 2 - Teilnehmer'!K10:K109,\"x\")","v":0},null,{"$f":"COUNTIFS('Maßnahme 2 - Teilnehmer'!D10:D109,\"x\",'Maßnahme 2 - Teilnehmer'!K10:K109,\"x\")","v":0},null,null,"27 bis unter 45 Jahre",null,null,null,null,null,null,null,null,null,{"$f":"COUNTIFS('Maßnahme 2 - Betreuer'!$H$9:$H$25,\"<45\",'Maßnahme 2 - Betreuer'!$I$9:$I$25,\"=EA\",'Maßnahme 2 - Betreuer'!$E$9:$E$25,\"x\")-Z14-Z13-Z12","v":0},null,{"$f":"COUNTIFS('Maßnahme 2 - Betreuer'!$H$9:$H$25,\"<45\",'Maßnahme 2 - Betreuer'!$I$9:$I$25,\"=EA\",'Maßnahme 2 - Betreuer'!$D$9:$D$25,\"x\")-AB14-AB13-AB12","v":0}]
[null,null,null,null,null,null,null,null,null,null,{"$f":"SUM(K12:L15)","v":0},null,{"$f":"SUM(M12:N15)","v":0},null,null,"45 Jahre und älter",null,null,null,null,null,null,null,null,null,{"$f":"COUNTIFS('Maßnahme 2 - Betreuer'!$H$9:$H$25,\"<99\",'Maßnahme 2 - Betreuer'!$I$9:$I$25,\"=EA\",'Maßnahme 2 - Betreuer'!$E$9:$E$25,\"x\")-Z15-Z14-Z13-Z12","v":0},null,{"$f":"COUNTIFS('Maßnahme 2 - Betreuer'!$H$9:$H$25,\"<99\",'Maßnahme 2 - Betreuer'!$I$9:$I$25,\"=EA\",'Maßnahme 2 - Betreuer'!$D$9:$D$25,\"x\")-AB15-AB14-AB13-AB12","v":0}]
[null,"Teilnehmer gesamt",null,null,null,null,null,null,null,null,null,null,{"$f":"SUM(K16:N16)","v":0},null,null,null,null,null,null,null,null,null,null,null,null,{"$f":"SUM(Z12:AA16)","v":0},null,{"$f":"SUM(AB12:AC16)","v":0}]
[]
[null,"Referierende/\nPädagog. tätige Personen",null,null,null,null,null,null,null,null,"männl.",null,"weibl.",null,null,"Haupt-/Nebenberuflich tätige Personen",null,null,null,null,null,null,null,null,null,"männl.",null,"weibl."]
[null,null,null,null,null,null,null,null,null,null,{"$f":"COUNTIFS('Maßnahme 2 - Betreuer'!$I$9:$I$25,\"=EA\",'Maßnahme 2 - Betreuer'!$E$9:$E$25,\"x\")+COUNTIFS('Maßnahme 2 - Betreuer'!$I$9:$I$25,\"=HA\",'Maßnahme 2 - Betreuer'!$E$9:$E$25,\"x\")+COUNTIFS('Maßnahme 2 - Betreuer'!$I$9:$I$25,\"=HO\",'Maßnahme 2 - Betreuer'!$E$9:$E$25,\"x\")+COUNTIFS('Maßnahme 2 - Betreuer'!$I$9:$I$25,\"=PR\",'Maßnahme 2 - Betreuer'!$E$9:$E$25,\"x\")+COUNTIFS('Maßnahme 2 - Betreuer'!$I$9:$I$25,\"=SO\",'Maßnahme 2 - Betreuer'!$E$9:$E$25,\"x\")","v":0},null,{"$f":"COUNTIFS('Maßnahme 2 - Betreuer'!$I$9:$I$25,\"=EA\",'Maßnahme 2 - Betreuer'!$D$9:$D$25,\"x\")+COUNTIFS('Maßnahme 2 - Betreuer'!$I$9:$I$25,\"=HA\",'Maßnahme 2 - Betreuer'!$D$9:$D$25,\"x\")+COUNTIFS('Maßnahme 2 - Betreuer'!$I$9:$I$25,\"=HO\",'Maßnahme 2 - Betreuer'!$D$9:$D$25,\"x\")+COUNTIFS('Maßnahme 2 - Betreuer'!$I$9:$I$25,\"=PR\",'Maßnahme 2 - Betreuer'!$D$9:$D$25,\"x\")+COUNTIFS('Maßnahme 2 - Betreuer'!$I$9:$I$25,\"=SO\",'Maßnahme 2 - Betreuer'!$D$9:$D$25,\"x\")","v":0},null,null,"bis 45 Jahre",null,null,null,null,null,null,null,null,null,{"$f":"COUNTIFS('Maßnahme 2 - Betreuer'!$H$9:$H$25,\"<45\",'Maßnahme 2 - Betreuer'!$I$9:$I$25,\"=HA\",'Maßnahme 2 - Betreuer'!$E$9:$E$25,\"x\")","v":0},null,{"$f":"COUNTIFS('Maßnahme 2 - Betreuer'!$H$9:$H$25,\"<45\",'Maßnahme 2 - Betreuer'!$I$9:$I$25,\"=HA\",'Maßnahme 2 - Betreuer'!$D$9:$D$25,\"x\")","v":0}]
[null,null,null,null,null,null,null,null,null,null,null,null,{"$f":"K20+M20","v":0},null,null,"45 Jahre und älter",null,null,null,null,null,null,null,null,null,{"$f":"COUNTIFS('Maßnahme 2 - Betreuer'!$H$9:$H$25,\"<98\",'Maßnahme 2 - Betreuer'!$I$9:$I$25,\"=HA\",'Maßnahme 2 - Betreuer'!$E$9:$E$25,\"x\")-Z20","v":0},null,{"$f":"COUNTIFS('Maßnahme 2 - Betreuer'!$H$9:$H$25,\"<98\",'Maßnahme 2 - Betreuer'!$I$9:$I$25,\"=HA\",'Maßnahme 2 - Betreuer'!$D$9:$D$25,\"x\")-AB20","v":0}]
[]
[null,null,null,null,null,null,null,null,null,null,null,null,null,null,null,"Mitarbeit von sonstigen pädagogisch tätigen Personen"]
[null,null,null,null,null,null,null,null,null,null,null,null,null,null,null,"Honorarkräfte",null,null,null,null,null,{"$f":"COUNTIF('Maßnahme 2 - Betreuer'!$I$9:$I$25,\"HO\")","v":0},null,"Praktikanten",null,null,null,{"$f":"COUNTIF('Maßnahme 2 - Betreuer'!$I$9:$I$25,\"PR\")","v":0}]
[null,null,null,null,null,null,null,null,null,null,null,null,null,null,null,null,null,null,null,null,null,null,null,"Sonst. Personen",null,null,null,{"$f":"COUNTIF('Maßnahme 2 - Betreuer'!$I$9:$I$25,\"SO\")","v":0}]
[]
["h)","Einnahmen",null,null,null,null,null,null,null,"€",null,null,null,null,null,"Ausgaben",null,null,null,null,null,null,null,null,"€"]
[null,"Teilnehmergebühren gesamt",null,null,null,null,null,null,null,null,null,null,null,null,null,"Fahrtkosten"]
[null,null,null,null,null,null,null,null,null,null,null,null,null,null,null,"Verpflegung/Übernachtung"]
[null,null,null,null,null,null,null,null,null,null,null,null,null,null,null,"Raummieten"]
[null,null,null,null,null,null,null,null,null,null,null,null,null,null,null,"Honorare"]
[null,"Sonstige Zuschüsse (nicht von BTV)",null,null,null,null,null,null,null,null,null,null,null,null,null,"Kinderbetreuung/Assistenz"]
[null,"Herkunft",null,null,null,null,null,null,null,"Betrag",null,null,null,null,null,"Arbeits- und Hilfsmittel"]
[null,null,null,null,null,null,null,null,null,null,null,null,null,null,null,"Vorbereitung und Organisation"]
[]
[null,null,null,null,null,null,null,null,null,null,null,null,null,null,null,"Summe",null,null,null,null,null,null,null,null,{"$f":"SUM(Y28:AC34)","v":0}]
[]
[]
[null,"Summe",null,null,null,null,null,null,null,{"$f":"J28+J34+J35+J36","v":0}]
[null,null,null,null,null,null,null,null,null,null,null,null,null,null,null,"Fördersatz:",null,null,0.5,null,{"$f":"S40*Y36","v":0}]
[null,"Fehlbetrag",null,null,null,null,null,null,null,{"$f":"Y36-J39","v":0},null,null,null,null,null,"max. Zuschuss",null,null,null,null,{"$f":"IF(J41<0,0,IF(U40>J41,J41,U40))","v":0}]
[]
["i)","Die Überweisung des Zuschusses soll auf folgende Bankverbindung erfolgen:"]
[null,"Kontoinhaber:",null,null,null,{"$f":"Förderantrag!E29","v":"(Vereinsname eintragen) (Vereinsort eintragen)"},null,null,null,null,null,null,null,null,null,"Geldinstitut:",null,null,null,{"$f":"Deckblatt!B23","v":0}]
[null,"IBAN:",null,null,null,{"$f":"Deckblatt!B24","v":0},null,null,null,null,null,null,null,null,null,"BIC:",null,null,null,{"$f":"Deckblatt!B25","v":0}]
[]
[null,"Anhänge",null,null,null,null,null,null,null,null,null,null,null,null,"Programm, bestehend aus:",null,null,null,null,null,null,null,null,null,null,"Status"]
["j)","Teilnehmerliste",null,null,null,null,null,null,null,null,null,null,false,"l)","Zielsetzung (ggf. Teilziele) der Maßnahme",null,null,null,null,null,null,null,null,null,false,{"$f":"IF(AND(H5<>0,AA5<>0,J6<>0,AA6<>0,AB8=TRUE,AB9=FALSE,M17/M21<21,M17>=10,J41>0,F45<>0,M48=TRUE,Y48=TRUE,Y49=TRUE,Y50=TRUE,Y51=TRUE,Y52=TRUE)=TRUE,\"Der Antrag ist vollständig und nach erster Prüfung korrekt!\",\"Der Antrag ist nicht vollständig bzw. nicht förderfähig!\")","v":{"$error":"#DIV/0!"}}]
[null,"(inkl. Referenten/verantw. Mitarbeiter usw.)",null,null,null,null,null,null,null,null,null,null,null,"m)","Tatsächlicher Zeitablauf",null,null,null,null,null,null,null,null,null,false]
["k)","Liste der betreuten Kinder und der im Rahmen",null,null,null,null,null,null,null,null,null,null,false,"n)","den jeweiligen Inhalten",null,null,null,null,null,null,null,null,null,false]
[null," der Kinderbetreuung und die Assistenz bei",null,null,null,null,null,null,null,null,null,null,null,"o)","den angewandten Methoden",null,null,null,null,null,null,null,null,null,false]
[null,"Teilnehmenden mit Behinderung Anwesenden",null,null,null,null,null,null,null,null,null,null,null,"p)","offene Einladung",null,null,null,null,null,null,null,null,null,false]
[]
[null,"Die aufgeführten Ausgaben sind tatsächlich unmittelbar für diese Maßnahme entstanden, durch Belege nachgewiesen und es wurden keine weiteren Einnahmen erzielt. Nicht zuwendungsfähigen Beträge, Rückforderungen und Rückzahlungen wurden abgesetzt. Die Zuwendung wird ausschließlich zur Erfüllung des Zuwendungszwecks laut den Richtlinien zur Förderung der Jugendarbeit im Bayer. Trachtenverband e.V. verwendet. Alle in Richtlinien und Verfahrens-und Verwaltungsvorschriften enthaltenen Bestimmungen und genannten Bedingungen und Auflagen sind bekannt und werden eingehalten. Dem Unterzeichner ist bekannt, dass die Zuwendung im Falle ihrer zweckwidrigen Verwendung der Rückforderung und Verzinsung unterliegt.\nEin durch den Zuschuss nicht gedeckter Anteil des Fehlbetrages aus Eigenmitteln finanziert wird.\nDer Bayerische Oberste Rechnungshof, das Bayerische Staatsministerium für Wissenschaft, Forschung und Kunst und der Bayerische Trachtenverband sind berechtigt, die Verwendung des Zuschusses an Ort und Stelle nachzuprüfen. Alle Unterlagen und Belege sind aus diesem Grund für mindestens 5 Jahre aufzubewahren!"]
[]
[null,"Datum:",null,null,null,null,null,null,null,null,null,"rechtsverbindliche Unterschrift:"]

{"sheet":"Maßnahme 3 - Betreuer","index":14,"n_rows":27,"n_cols":10,"rows_kept":27,"cut":false,"hidden":false,"merged":[[0,0,0,9],[2,3,2,7],[3,3,3,7],[4,3,4,7],[26,0,26,9]]}
["Betreuerliste"]
[]
["Antragsteller:",null,null,{"$f":"Deckblatt!A5&\" \"&Deckblatt!B5","v":"(Vereinsname eintragen) (Vereinsort eintragen)"},null,null,null,null,"Beginn am:"]
["Bezeichnung der Maßnahme:",null,null,null,null,null,null,null,"Ende am:"]
["Ort der Maßnahme (PLZ):"]
[]
["A. Referenten/verantwortliche Personen"]
["Nr.","Name","Vorname","w","m","PLZ","Wohnort","Alter","Kennz. (s.u.)","weitere Informationen"]
["1."]
["2."]
["3."]
["4."]
["5."]
["6."]
["7."]
["8."]
["9."]
["10."]
["11."]
["12."]
["13."]
["14."]
["15."]
["16."]
["17."]
[]
["EA (ehrenamtlich. MA), HA (haupt-/nebenberuflicher MA), HO (Honorarkraft), PR (Praktikant), SO (sonstige)"]

{"sheet":"Maßnahme 3 - Teilnehmer","index":15,"n_rows":109,"n_cols":12,"rows_kept":109,"cut":false,"hidden":false,"merged":[[9,11,9,18],[10,11,10,18],[11,11,11,18],[12,11,12,18],[13,11,13,18],[14,11,14,18],[0,0,0,18],[2,10,2,18],[3,10,3,18],[7,0,8,0],[7,1,8,1],[7,3,8,3],[7,4,8,4],[7,5,8,5],[7,7,7,10],[7,11,8,18],[7,2,8,2],[7,6,8,6],[4,5,4,6],[3,5,3,6],[2,5,2,6],[21,11,21,18],[22,11,22,18],[23,11,23,18],[24,11,24,18],[25,11,25,18],[26,11,26,18],[15,11,15,18],[16,11,16,18],[17,11,17,18],[18,11,18,18],[19,11,19,18],[20,11,20,18],[33,11,33,18],[34,11,34,18],[35,11,35,18],[36,11,36,18],[37,11,37,18],[38,11,38,18],[27,11,27,18],[28,11,28,18],[29,11,29,18],[30,11,30,18],[31,11,31,18],[32,11,32,18],[45,11,45,18],[46,11,46,18],[47,11,47,18],[48,11,48,18],[49,11,49,18],[50,11,50,18],[39,11,39,18],[40,11,40,18],[41,11,41,18],[42,11,42,18],[43,11,43,18],[44,11,44,18],[57,11,57,18],[58,11,58,18],[59,11,59,18],[60,11,60,18],[61,11,61,18],[62,11,62,18],[51,11,51,18],[52,11,52,18],[53,11,53,18],[54,11,54,18],[55,11,55,18],[56,11,56,18],[69,11,69,18],[70,11,70,18],[71,11,71,18],[72,11,72,18],[73,11,73,18],[74,11,74,18],[63,11,63,18],[64,11,64,18],[65,11,65,18],[66,11,66,18],[67,11,67,18],[68,11,68,18],[81,11,81,18],[82,11,82,18],[83,11,83,18],[84,11,84,18],[85,11,85,18],[86,11,86,18],[75,11,75,18],[76,11,76,18],[77,11,77,18],[78,11,78,18],[79,11,79,18],[80,11,80,18],[93,11,93,18],[94,11,94,18],[95,11,95,18],[96,11,96,18],[97,11,97,18],[98,11,98,18],[87,11,87,18],[88,11,88,18],[89,11,89,18],[90,11,90,18],[91,11,91,18],[92,11,92,18],[105,11,105,18],[106,11,106,18],[107,11,107,18],[108,11,108,18],[99,11,99,18],[100,11,100,18],[101,11,101,18],[102,11,102,18],[103,11,103,18],[104,11,104,18]]}
["Teilnehmendenliste"]
[]
["Antragsteller:",null,null,null,null,{"$f":"'Maßnahme 1 - Betreuer'!D3","v":"(Vereinsname eintragen) (Vereinsort eintragen)"},null,null,"Beginn am:",null,{"$f":"'Maßnahme 3 - Betreuer'!J3","v":"00:00:00"}]
["Bezeichnung der Maßnahme:",null,null,null,null,{"$f":"'Maßnahme 3 - Betreuer'!D4","v":0},null,null,"Ende am:",null,{"$f":"'Maßnahme 3 - Betreuer'!J4","v":"00:00:00"}]
["Ort der Maßnahme (PLZ):",null,null,null,null,{"$f":"'Maßnahme 3 - Betreuer'!D5","v":0}]
[]
["B. Teilnehmer_innen"]
["Nr.","Name","Vorname","w","m","PLZ","Wohnort","Alter",null,null,null,"weitere Information"]
[null,null,null,null,null,null,null,"<10","10 - <14","14 - <18","18 - <27"]
["1."]
["2."]
["3."]
["4."]
["5."]
["6."]
["7."]
["8."]
["9."]
["10."]
["11."]
["12."]
["13."]
["14."]
["15."]
["16."]
["17."]
["18."]
["19."]
["20."]
["21."]
["22."]
["23."]
["24."]
["25."]
["26."]
["27."]
["28."]
["29."]
["30."]
["31."]
["32."]
["33."]
["34."]
["35."]
["36."]
["37."]
["38."]
["39."]
["40."]
["41."]
["42."]
["43."]
["44."]
["45."]
["46."]
["47."]
["48."]
["49."]
["50."]
["51."]
["52."]
["53."]
["54."]
["55."]
["56."]
["57."]
["58."]
["59."]
["60."]
["61."]
["62."]
["63."]
["64."]
["65."]
["66."]
["67."]
["68."]
["69."]
["70."]
["71."]
["72."]
["73."]
["74."]
["75."]
["76."]
["77."]
["78."]
["79."]
["80."]
["81."]
["82."]
["83."]
["84."]
["85."]
["86."]
["87."]
["88."]
["89."]
["90."]
["91."]
["92."]
["93."]
["94."]
["95."]
["96."]
["97."]
["98."]
["99."]
["100."]

{"sheet":"Maßnahme 3 - Antrag","index":16,"n_rows":56,"n_cols":28,"rows_kept":56,"cut":false,"hidden":false,"merged":[[0,0,0,29],[1,0,1,29],[2,1,2,28],[4,7,4,16],[4,26,4,28],[5,9,5,16],[5,26,5,28],[10,25,10,26],[10,27,10,28],[11,1,11,9],[11,10,11,11],[11,12,11,13],[11,15,11,24],[11,25,11,26],[11,27,11,28],[7,8,7,11],[7,19,7,20],[8,8,8,11],[8,19,8,20],[10,1,10,9],[10,10,10,11],[10,12,10,13],[10,15,10,24],[13,1,13,9],[13,10,13,11],[13,12,13,13],[13,15,13,24],[13,25,13,26],[13,27,13,28],[12,1,12,9],[12,10,12,11],[12,12,12,13],[12,15,12,24],[12,25,12,26],[12,27,12,28],[15,1,15,9],[15,10,15,11],[15,12,15,13],[15,15,15,24],[15,25,15,26],[15,27,15,28],[14,1,14,9],[14,10,14,11],[14,12,14,13],[14,15,14,24],[14,25,14,26],[14,27,14,28],[18,27,18,28],[19,10,19,11],[19,12,19,13],[19,15,19,24],[19,25,19,26],[19,27,19,28],[16,1,16,9],[16,10,16,11],[16,12,16,13],[16,25,16,26],[16,27,16,28],[18,1,19,9],[18,10,18,11],[18,12,18,13],[18,15,18,24],[18,25,18,26],[24,15,24,22],[24,27,24,28],[26,15,26,23],[27,9,27,13],[26,9,26,13],[26,24,26,28],[20,12,20,13],[20,15,20,24],[20,25,20,26],[20,27,20,28],[22,15,22,28],[23,15,23,20],[23,21,23,22],[23,23,23,26],[23,27,23,28],[35,15,35,23],[35,24,35,28],[33,24,33,28],[35,9,35,13],[34,9,34,13],[33,9,33,13],[31,1,31,13],[32,24,32,28],[31,24,31,28],[32,9,32,13],[35,1,35,8],[34,1,34,8],[33,1,33,8],[32,1,32,8],[43,1,43,4],[43,5,43,13],[43,15,43,18],[43,19,43,27],[37,15,37,25],[37,26,37,28],[39,15,39,17],[39,26,39,28],[40,9,40,13],[40,20,40,24],[39,20,39,24],[36,1,37,10],[36,15,36,25],[36,26,36,28],[47,25,51,29],[53,1,53,29],[55,3,55,9],[55,19,55,27],[44,1,44,4],[44,5,44,13],[44,15,44,18],[44,19,44,27],[46,1,46,12],[46,25,46,29],[30,24,30,28],[29,24,29,28],[28,24,28,28],[27,24,27,28],[33,15,33,23],[32,15,32,23],[31,15,31,23],[30,15,30,23],[29,15,29,23],[28,15,28,23],[27,15,27,23],[27,1,27,8],[26,1,26,8],[38,9,38,13],[36,11,36,13],[29,1,29,7],[29,8,29,10],[29,11,29,13],[30,1,30,10],[30,11,30,13],[28,1,28,10],[28,11,28,13]]}
["Förderung von Jugendbildungsmaßnahmen im Bayerischen Trachtenverband e. V. aus\nHaushaltsmitteln zur Förderung des Trachtenwesens des Freistaats Bayern"]
["ANTRAG auf MAßNAHMENZUSCHUSS"]
[null,"(als Anlage zum Hauptantrag zur Förderung der Jugendarbeit im Bayer. Trachtenverband e.V.)"]
[]
["a)","Antragssteller_in",null,null,null,null,null,{"$f":"'Maßnahme 1 - Betreuer'!D3","v":"(Vereinsname eintragen) (Vereinsort eintragen)"},null,null,null,null,null,null,null,null,null,null,"b)","PLZ d. Antragsstellers",null,null,null,null,null,null,{"$f":"IF(ISBLANK(Förderantrag!E13),\"\",Förderantrag!E13)","v":""}]
["c)","Bezeichnung d. Maßnahme",null,null,null,null,null,null,null,{"$f":"IF(ISBLANK('Maßnahme 3 - Betreuer'!D4),\"\",'Maßnahme 3 - Betreuer'!D4)","v":""},null,null,null,null,null,null,null,null,"d)","Ort der Maßnahme (PLZ)",null,null,null,null,null,null,{"$f":"IF(ISBLANK('Maßnahme 3 - Betreuer'!D5),\"\",'Maßnahme 3 - Betreuer'!D5)","v":""}]
[]
["f)","Beginn (dd.mm.yy)",null,null,null,null,null,null,{"$f":"IF(ISBLANK('Maßnahme 3 - Betreuer'!J3),\"\",'Maßnahme 3 - Betreuer'!J3)","v":""},null,null,null,null,"Dauer (Tage) mind.",null,null,null,null,null,{"$f":"IF(I9=I8,1,I9-I8)","v":1},null,"Bitte bestätigen:",null,null,null,null,null,false]
[null,"Ende (dd.mm.yy)",null,null,null,null,null,null,{"$f":"IF(ISBLANK('Maßnahme 3 - Betreuer'!J4),\"\",'Maßnahme 3 - Betreuer'!J4)","v":""},null,null,null,null,"Soll-Zeitstunden (mind.)",null,null,null,null,null,{"$f":"6*T8","v":6},null,"Zeitstunden erreicht?",null,null,null,null,null,false]
[]
["g)","TN-Auflistungen",null,null,null,null,null,null,null,null,"männl.",null,"weibl.",null,null,"Ehrenamtlich/pädagog. tätige Personen",null,null,null,null,null,null,null,null,null,"männl.",null,"weibl."]
[null,"Teilnehmende bis unter 10 Jahre",null,null,null,null,null,null,null,null,{"$f":"COUNTIFS('Maßnahme 3 - Teilnehmer'!E10:E109,\"x\",'Maßnahme 3 - Teilnehmer'!H10:H109,\"x\")","v":0},null,{"$f":"COUNTIFS('Maßnahme 3 - Teilnehmer'!D10:D109,\"x\",'Maßnahme 3 - Teilnehmer'!H10:H109,\"x\")","v":0},null,null,"unter 16 Jahre",null,null,null,null,null,null,null,null,null,{"$f":"COUNTIFS('Maßnahme 3 - Betreuer'!$H$9:$H$25,\"<16\",'Maßnahme 3 - Betreuer'!$I$9:$I$25,\"=EA\",'Maßnahme 3 - Betreuer'!$E$9:$E$25,\"x\")","v":0},null,{"$f":"COUNTIFS('Maßnahme 3 - Betreuer'!$H$9:$H$25,\"<16\",'Maßnahme 3 - Betreuer'!$I$9:$I$25,\"=EA\",'Maßnahme 3 - Betreuer'!$D$9:$D$25,\"x\")","v":0}]
[null,"Teilnhemende 10 bis unter 14 Jahre",null,null,null,null,null,null,null,null,{"$f":"COUNTIFS('Maßnahme 3 - Teilnehmer'!E10:E109,\"x\",'Maßnahme 3 - Teilnehmer'!I10:I109,\"x\")","v":0},null,{"$f":"COUNTIFS('Maßnahme 3 - Teilnehmer'!D10:D109,\"x\",'Maßnahme 3 - Teilnehmer'!I10:I109,\"x\")","v":0},null,null,"16 bis unter 18 Jahre",null,null,null,null,null,null,null,null,null,{"$f":"COUNTIFS('Maßnahme 3 - Betreuer'!$H$9:$H$25,\"<18\",'Maßnahme 3 - Betreuer'!$I$9:$I$25,\"=EA\",'Maßnahme 3 - Betreuer'!$E$9:$E$25,\"x\")-Z12","v":0},null,{"$f":"COUNTIFS('Maßnahme 3 - Betreuer'!$H$9:$H$25,\"<18\",'Maßnahme 3 - Betreuer'!$I$9:$I$25,\"=EA\",'Maßnahme 3 - Betreuer'!$D$9:$D$25,\"x\")-AB12","v":0}]
[null,"Teilnehmende 14 bis unter 18 Jahre",null,null,null,null,null,null,null,null,{"$f":"COUNTIFS('Maßnahme 3 - Teilnehmer'!E10:E109,\"x\",'Maßnahme 3 - Teilnehmer'!J10:J109,\"x\")","v":0},null,{"$f":"COUNTIFS('Maßnahme 3 - Teilnehmer'!D10:D109,\"x\",'Maßnahme 3 - Teilnehmer'!J10:J109,\"x\")","v":0},null,null,"18 bis unter 27 Jahre",null,null,null,null,null,null,null,null,null,{"$f":"COUNTIFS('Maßnahme 3 - Betreuer'!$H$9:$H$25,\"<27\",'Maßnahme 3 - Betreuer'!$I$9:$I$25,\"=EA\",'Maßnahme 3 - Betreuer'!$E$9:$E$25,\"x\")-Z13-Z12","v":0},null,{"$f":"COUNTIFS('Maßnahme 3 - Betreuer'!$H$9:$H$25,\"<27\",'Maßnahme 3 - Betreuer'!$I$9:$I$25,\"=EA\",'Maßnahme 3 - Betreuer'!$D$9:$D$25,\"x\")-AB13-AB12","v":0}]
[null,"Teilnehmende 18 bis unter 27 Jahre",null,null,null,null,null,null,null,null,{"$f":"COUNTIFS('Maßnahme 3 - Teilnehmer'!E10:E109,\"x\",'Maßnahme 3 - Teilnehmer'!K10:K109,\"x\")","v":0},null,{"$f":"COUNTIFS('Maßnahme 3 - Teilnehmer'!D10:D109,\"x\",'Maßnahme 3 - Teilnehmer'!K10:K109,\"x\")","v":0},null,null,"27 bis unter 45 Jahre",null,null,null,null,null,null,null,null,null,{"$f":"COUNTIFS('Maßnahme 3 - Betreuer'!$H$9:$H$25,\"<45\",'Maßnahme 3 - Betreuer'!$I$9:$I$25,\"=EA\",'Maßnahme 3 - Betreuer'!$E$9:$E$25,\"x\")-Z14-Z13-Z12","v":0},null,{"$f":"COUNTIFS('Maßnahme 3 - Betreuer'!$H$9:$H$25,\"<45\",'Maßnahme 3 - Betreuer'!$I$9:$I$25,\"=EA\",'Maßnahme 3 - Betreuer'!$D$9:$D$25,\"x\")-AB14-AB13-AB12","v":0}]
[null,null,null,null,null,null,null,null,null,null,{"$f":"SUM(K12:L15)","v":0},null,{"$f":"SUM(M12:N15)","v":0},null,null,"45 Jahre und älter",null,null,null,null,null,null,null,null,null,{"$f":"COUNTIFS('Maßnahme 3 - Betreuer'!$H$9:$H$25,\"<99\",'Maßnahme 3 - Betreuer'!$I$9:$I$25,\"=EA\",'Maßnahme 3 - Betreuer'!$E$9:$E$25,\"x\")-Z15-Z14-Z13-Z12","v":0},null,{"$f":"COUNTIFS('Maßnahme 3 - Betreuer'!$H$9:$H$25,\"<99\",'Maßnahme 3 - Betreuer'!$I$9:$I$25,\"=EA\",'Maßnahme 3 - Betreuer'!$D$9:$D$25,\"x\")-AB15-AB14-AB13-AB12","v":0}]
[null,"Teilnehmer gesamt",null,null,null,null,null,null,null,null,null,null,{"$f":"SUM(K16:N16)","v":0},null,null,null,null,null,null,null,null,null,null,null,null,{"$f":"SUM(Z12:AA16)","v":0},null,{"$f":"SUM(AB12:AC16)","v":0}]
[]
[null,"Referierende/\nPädagog. tätige Personen",null,null,null,null,null,null,null,null,"männl.",null,"weibl.",null,null,"Haupt-/Nebenberuflich tätige Personen",null,null,null,null,null,null,null,null,null,"männl.",null,"weibl."]
[null,null,null,null,null,null,null,null,null,null,{"$f":"COUNTIFS('Maßnahme 3 - Betreuer'!$I$9:$I$25,\"=EA\",'Maßnahme 3 - Betreuer'!$E$9:$E$25,\"x\")+COUNTIFS('Maßnahme 3 - Betreuer'!$I$9:$I$25,\"=HA\",'Maßnahme 3 - Betreuer'!$E$9:$E$25,\"x\")+COUNTIFS('Maßnahme 3 - Betreuer'!$I$9:$I$25,\"=HO\",'Maßnahme 3 - Betreuer'!$E$9:$E$25,\"x\")+COUNTIFS('Maßnahme 3 - Betreuer'!$I$9:$I$25,\"=PR\",'Maßnahme 3 - Betreuer'!$E$9:$E$25,\"x\")+COUNTIFS('Maßnahme 3 - Betreuer'!$I$9:$I$25,\"=SO\",'Maßnahme 3 - Betreuer'!$E$9:$E$25,\"x\")","v":0},null,{"$f":"COUNTIFS('Maßnahme 3 - Betreuer'!$I$9:$I$25,\"=EA\",'Maßnahme 3 - Betreuer'!$D$9:$D$25,\"x\")+COUNTIFS('Maßnahme 3 - Betreuer'!$I$9:$I$25,\"=HA\",'Maßnahme 3 - Betreuer'!$D$9:$D$25,\"x\")+COUNTIFS('Maßnahme 3 - Betreuer'!$I$9:$I$25,\"=HO\",'Maßnahme 3 - Betreuer'!$D$9:$D$25,\"x\")+COUNTIFS('Maßnahme 3 - Betreuer'!$I$9:$I$25,\"=PR\",'Maßnahme 3 - Betreuer'!$D$9:$D$25,\"x\")+COUNTIFS('Maßnahme 3 - Betreuer'!$I$9:$I$25,\"=SO\",'Maßnahme 3 - Betreuer'!$D$9:$D$25,\"x\")","v":0},null,null,"bis 45 Jahre",null,null,null,null,null,null,null,null,null,{"$f":"COUNTIFS('Maßnahme 3 - Betreuer'!$H$9:$H$25,\"<45\",'Maßnahme 3 - Betreuer'!$I$9:$I$25,\"=HA\",'Maßnahme 3 - Betreuer'!$E$9:$E$25,\"x\")","v":0},null,{"$f":"COUNTIFS('Maßnahme 3 - Betreuer'!$H$9:$H$25,\"<45\",'Maßnahme 3 - Betreuer'!$I$9:$I$25,\"=HA\",'Maßnahme 3 - Betreuer'!$D$9:$D$25,\"x\")","v":0}]
[null,null,null,null,null,null,null,null,null,null,null,null,{"$f":"K20+M20","v":0},null,null,"45 Jahre und älter",null,null,null,null,null,null,null,null,null,{"$f":"COUNTIFS('Maßnahme 3 - Betreuer'!$H$9:$H$25,\"<98\",'Maßnahme 3 - Betreuer'!$I$9:$I$25,\"=HA\",'Maßnahme 3 - Betreuer'!$E$9:$E$25,\"x\")-Z20","v":0},null,{"$f":"COUNTIFS('Maßnahme 1 - Betreuer'!$H$9:$H$25,\"<98\",'Maßnahme 1 - Betreuer'!$I$9:$I$25,\"=HA\",'Maßnahme 1 - Betreuer'!$D$9:$D$25,\"x\")-AB20","v":0}]
[]
[null,null,null,null,null,null,null,null,null,null,null,null,null,null,null,"Mitarbeit von sonstigen pädagogisch tätigen Personen"]
[null,null,null,null,null,null,null,null,null,null,null,null,null,null,null,"Honorarkräfte",null,null,null,null,null,{"$f":"COUNTIF('Maßnahme 3 - Betreuer'!$I$9:$I$25,\"HO\")","v":0},null,"Praktikanten",null,null,null,{"$f":"COUNTIF('Maßnahme 3 - Betreuer'!$I$9:$I$25,\"PR\")","v":0}]
[null,null,null,null,null,null,null,null,null,null,null,null,null,null,null,null,null,null,null,null,null,null,null,"Sonst. Personen",null,null,null,{"$f":"COUNTIF('Maßnahme 3 - Betreuer'!$I$9:$I$25,\"SO\")","v":0}]
[]
["h)","Einnahmen",null,null,null,null,null,null,null,"€",null,null,null,null,null,"Ausgaben",null,null,null,null,null,null,null,null,"€"]
[null,"Teilnehmergebühren gesamt",null,null,null,null,null,null,null,null,null,null,null,null,null,"Fahrtkosten"]
[null,null,null,null,null,null,null,null,null,null,null,null,null,null,null,"Verpflegung/Übernachtung"]
[null,null,null,null,null,null,null,null,null,null,null,null,null,null,null,"Raummieten"]
[null,null,null,null,null,null,null,null,null,null,null,null,null,null,null,"Honorare"]
[null,"Sonstige Zuschüsse (nicht von BTV)",null,null,null,null,null,null,null,null,null,null,null,null,null,"Kinderbetreuung/Assistenz"]
[null,"Herkunft",null,null,null,null,null,null,null,"Betrag",null,null,null,null,null,"Arbeits- und Hilfsmittel"]
[null,null,null,null,null,null,null,null,null,null,null,null,null,null,null,"Vorbereitung und Organisation"]
[]
[null,null,null,null,null,null,null,null,null,null,null,null,null,null,null,"Summe",null,null,null,null,null,null,null,null,{"$f":"SUM(Y28:AC34)","v":0}]
[]
[]
[null,"Summe",null,null,null,null,null,null,null,{"$f":"J28+J34+J35+J36","v":0}]
[null,null,null,null,null,null,null,null,null,null,null,null,null,null,null,"Fördersatz:",null,null,0.5,null,{"$f":"S40*Y36","v":0}]
[null,"Fehlbetrag",null,null,null,null,null,null,null,{"$f":"Y36-J39","v":0},null,null,null,null,null,"max. Zuschuss",null,null,null,null,{"$f":"IF(J41<0,0,IF(U40>J41,J41,U40))","v":0}]
[]
["i)","Die Überweisung des Zuschusses soll auf folgende Bankverbindung erfolgen:"]
[null,"Kontoinhaber:",null,null,null,{"$f":"Förderantrag!E29","v":"(Vereinsname eintragen) (Vereinsort eintragen)"},null,null,null,null,null,null,null,null,null,"Geldinstitut:",null,null,null,{"$f":"Deckblatt!B23","v":0}]
[null,"IBAN:",null,null,null,{"$f":"Deckblatt!B24","v":0},null,null,null,null,null,null,null,null,null,"BIC:",null,null,null,{"$f":"Deckblatt!B25","v":0}]
[]
[null,"Anhänge",null,null,null,null,null,null,null,null,null,null,null,null,"Programm, bestehend aus:",null,null,null,null,null,null,null,null,null,null,"Status"]
["j)","Teilnehmerliste",null,null,null,null,null,null,null,null,null,null,false,"l)","Zielsetzung (ggf. Teilziele) der Maßnahme",null,null,null,null,null,null,null,null,null,false,{"$f":"IF(AND(H5<>0,AA5<>0,J6<>0,AA6<>0,AB8=TRUE,AB9=FALSE,M17/M21<21,M17>=10,J41>0,F45<>0,M48=TRUE,Y48=TRUE,Y49=TRUE,Y50=TRUE,Y51=TRUE,Y52=TRUE)=TRUE,\"Der Antrag ist vollständig und nach erster Prüfung korrekt!\",\"Der Antrag ist nicht vollständig bzw. nicht förderfähig!\")","v":{"$error":"#DIV/0!"}}]
[null,"(inkl. Referenten/verantw. Mitarbeiter usw.)",null,null,null,null,null,null,null,null,null,null,null,"m)","Tatsächlicher Zeitablauf",null,null,null,null,null,null,null,null,null,false]
["k)","Liste der betreuten Kinder und der im Rahmen",null,null,null,null,null,null,null,null,null,null,false,"n)","den jeweiligen Inhalten",null,null,null,null,null,null,null,null,null,false]
[null," der Kinderbetreuung und die Assistenz bei",null,null,null,null,null,null,null,null,null,null,null,"o)","den angewandten Methoden",null,null,null,null,null,null,null,null,null,false]
[null,"Teilnehmenden mit Behinderung Anwesenden",null,null,null,null,null,null,null,null,null,null,null,"p)","offene Einladung",null,null,null,null,null,null,null,null,null,false]
[]
[null,"Die aufgeführten Ausgaben sind tatsächlich unmittelbar für diese Maßnahme entstanden, durch Belege nachgewiesen und es wurden keine weiteren Einnahmen erzielt. Nicht zuwendungsfähigen Beträge, Rückforderungen und Rückzahlungen wurden abgesetzt. Die Zuwendung wird ausschließlich zur Erfüllung des Zuwendungszwecks laut den Richtlinien zur Förderung der Jugendarbeit im Bayer. Trachtenverband e.V. verwendet. Alle in Richtlinien und Verfahrens-und Verwaltungsvorschriften enthaltenen Bestimmungen und genannten Bedingungen und Auflagen sind bekannt und werden eingehalten. Dem Unterzeichner ist bekannt, dass die Zuwendung im Falle ihrer zweckwidrigen Verwendung der Rückforderung und Verzinsung unterliegt.\nEin durch den Zuschuss nicht gedeckter Anteil des Fehlbetrages aus Eigenmitteln finanziert wird.\nDer Bayerische Oberste Rechnungshof, das Bayerische Staatsministerium für Wissenschaft, Forschung und Kunst und der Bayerische Trachtenverband sind berechtigt, die Verwendung des Zuschusses an Ort und Stelle nachzuprüfen. Alle Unterlagen und Belege sind aus diesem Grund für mindestens 5 Jahre aufzubewahren!"]
[]
[null,"Datum:",null,null,null,null,null,null,null,null,null,"rechtsverbindliche Unterschrift:"]

{"sheet":"Förderantrag","index":17,"n_rows":134,"n_cols":7,"rows_kept":134,"cut":false,"hidden":false,"merged":[[14,4,14,7],[65,1,65,7],[72,0,72,2],[116,0,117,7],[120,0,121,7],[3,0,3,1],[5,0,6,8],[8,0,8,2],[8,3,8,7],[12,5,12,7],[9,0,9,1],[10,0,10,7],[17,0,17,2],[17,3,17,5],[17,6,17,7],[19,0,19,7],[21,5,21,7],[23,0,23,2],[23,3,23,7],[18,0,18,2],[18,3,18,5],[18,6,18,7],[106,0,106,7],[33,0,33,4],[27,0,27,3],[27,4,27,7],[29,0,29,3],[29,4,29,7],[28,0,28,3],[30,0,30,3],[30,4,30,7],[24,3,24,7],[41,6,41,7],[44,1,44,7],[45,1,45,7],[62,1,62,7],[67,0,67,7],[68,0,68,7],[69,0,69,7],[38,1,39,1],[38,2,38,4],[38,6,38,7],[39,2,39,7],[0,0,0,7],[1,0,1,7],[2,0,2,7],[57,1,57,7],[58,1,58,7],[59,1,59,7],[60,1,60,7],[61,1,61,7],[48,0,48,7],[49,0,49,7],[50,0,50,7],[51,0,51,7],[52,0,52,2],[53,0,53,7],[54,0,54,7],[52,4,52,7],[47,0,47,7],[32,0,32,4],[24,0,24,2],[20,0,20,7],[22,5,22,7],[38,0,39,0],[59,0,60,0],[41,2,41,4],[94,0,94,7],[78,1,78,7],[79,1,79,7],[80,1,80,7],[81,1,81,7],[79,0,80,0],[74,0,74,7],[72,4,72,7],[73,0,73,7],[82,1,82,7],[77,1,77,7],[85,1,85,7],[87,0,87,7],[88,0,88,7],[89,0,89,7],[90,0,90,7],[109,5,109,6],[114,5,114,6],[11,0,11,2],[12,0,12,2],[14,0,14,3],[13,0,13,3],[11,5,11,7],[22,0,22,2],[21,0,21,2],[70,0,70,7],[71,0,71,7],[101,1,101,7],[102,1,102,7],[97,1,97,7],[98,1,98,7],[99,0,100,0],[99,1,99,7],[100,1,100,7],[91,0,91,7],[92,0,92,2],[92,4,92,7],[93,0,93,7],[42,2,42,7],[41,0,42,0]]}
["Förderung von Aktivitäten im Bayerischen Trachtenverband e. V.                                 aus Mitteln der Heimatpflege "]
[{"$f":"Deckblatt!A3","v":"2023"}]
["Antrag der Vereine auf Abschluss eines Fördervertrags\n(Vordruck Vereine)"]
["Letzter Abgabetermin:",null,"  27. Dezmeber",{"$f":"A2","v":"2023"}]
[]
["I. Antagstellender Verein"]
[]
["Name der Untergliederung (genaue Bezeichnung)"]
[{"$f":"Deckblatt!A5","v":"(Vereinsname eintragen)"},null,null,{"$f":"Deckblatt!B5","v":"(Vereinsort eintragen)"}]
["Gauverband"]
[{"$f":"IF(ISBLANK(Deckblatt!B6),\"\",Deckblatt!B6)","v":"(Gauverband auswählen)"}]
["Straße",null,null,"Hausnummer","PLZ","Ort"]
[{"$f":"IF(ISBLANK(Deckblatt!B15),\"\",Deckblatt!B15)","v":""},null,null,{"$f":"IF(ISBLANK(Deckblatt!B16),\"\",Deckblatt!B16)","v":""},{"$f":"IF(ISBLANK(Deckblatt!B17),\"\",Deckblatt!B17)","v":""},{"$f":"IF(ISBLANK(Deckblatt!B18),\"\",Deckblatt!B18)","v":""}]
["Regierungsbezirk",null,null,null,"Landkreis"]
[{"$f":"IF(ISBLANK(Deckblatt!B7),\"\",Deckblatt!B7)","v":"(Regierungsbezirk auswählen)"},null,null,null,{"$f":"IF(ISBLANK(Deckblatt!B8),\"\",Deckblatt!B8)","v":""}]
[]
["Vertretungsberechtigte Person"]
["Name",null,null,"Vorname",null,null,"Geburtsdatum"]
[{"$f":"IF(ISBLANK(Deckblatt!B11),\"\",Deckblatt!B11)","v":""},null,null,{"$f":"IF(ISBLANK(Deckblatt!B12),\"\",Deckblatt!B12)","v":""},null,null,{"$f":"IF(ISBLANK(Deckblatt!B13),\"\",Deckblatt!B13)","v":""}]
["Funktion"]
[{"$f":"IF(ISBLANK(Deckblatt!B14),\"\",Deckblatt!B14)","v":""}]
["Straße",null,null,"Hausnummer","PLZ","Ort"]
[{"$f":"A13","v":""},null,null,{"$f":"D13","v":""},{"$f":"E13","v":""},{"$f":"F13","v":""}]
["Telefon",null,null,"E-Mail"]
[{"$f":"IF(ISBLANK(Deckblatt!B19),\"\",Deckblatt!B19)","v":""},null,null,{"$f":"IF(ISBLANK(Deckblatt!B20),\"\",Deckblatt!B20)","v":""}]
[]
["Bankverbindung"]
["Kreditinstitut",null,null,null,"Kontoinhaber"]
[{"$f":"IF(ISBLANK(Deckblatt!B23),\"\",Deckblatt!B23)","v":""},null,null,null,{"$f":"A9&\" \"&D9","v":"(Vereinsname eintragen) (Vereinsort eintragen)"}]
["IBAN",null,null,null,"BIC"]
[{"$f":"IF(ISBLANK(Deckblatt!B24),\"\",Deckblatt!B24)","v":""},null,null,null,{"$f":"IF(ISBLANK(Deckblatt!B25),\"\",Deckblatt!B25)","v":""}]
[]
["Der Antragsteller erklärt, dass er mit der einfachen elektronischen Kommunikation (insbesondere per E-Mail) einverstanden ist."]
["Der Antragsteller erklärt, dass er zum Vorsteuerabzug berechtigt ist.              (Falls ja, sind die Ausgaben unter II. 2 ohne Umsatzsteuer anzugeben)"]
[]
["II. Vertragsgegenstand, Verwendungsbestätigung "]
["1.     Jugendarbeitsförderung nach Nr. 2.1 FörTrachVR "]
[]
[{"$f":"Erhebungsbogen!M13","v":0},"a)","Anzahl der im antragstellenden Verein am",null,null,{"$f":"Deckblatt!B4","v":"2023-10-31"},"in der Bayerischen Trachtenjugend"]
[null,null,"gemeldeten Personen vom vollendeten dritten bis zum vollendeten 27. Lebensjahr, für deren Teilnahme an der laufenden Jugendarbeit der antragstellende Verein auf eigene Rechnung Versicherungsschutz begründet hat."]
[]
[{"$f":"Erhebungsbogen!M38","v":0},"b)","Anzahl der im antragstellenden Verein am",null,null,{"$f":"Deckblatt!B4","v":"2023-10-31"}," in der Bayerischen Trachtenjugend"]
[null,null,"gemeldeten Jugendleiterinnen und Jugendleiter oder Mitarbeiterinnen und Mitarbeiter in der Vereinsjugendarbeit mit abgeschlossener Jugendleitergrundschulung gem. Bildungsprogramm der Bayerischen Trachtenjugend, die eine gültige JULEICA vorweisen können."]
[]
["2.","Maßnahmenförderung sowie Aus- und Weiterbildungsförderung für die Jugendarbeit sowie im Erwachsenenbereich nach Nrn 2.2 und 2.4 bis 2.6 FörTrachVR "]
["2.1.","Maßnahme 1"]
[]
["Zuwendungszweck, Sachbericht"]
["Bezeichnung der Maßnahme:"]
[{"$f":"'Maßnahme 1 - Antrag'!J6","v":""}]
["Durchführungsdatum:"]
[{"$f":"'Maßnahme 1 - Antrag'!I8","v":""}]
["Zuwendungsfähig nach Nr. 2.",null,null,null,"FörTrachVR"]
["Stichpunktartige Beschreibung einschl. Zielgruppe, Zielsetzung und angestrebte Zielerreichung sowie Zahl der Teilnehmerinnen und Teilnehmer:"]
[]
[]
["Finanzierungsplan, zahlenmäßiger Nachweis"]
[{"$f":"'Maßnahme 1 - Antrag'!Y36","v":0},"a) Höhe der tatsächlich angefallenen Ausgaben"]
[{"$f":"'Maßnahme 1 - Antrag'!Y36","v":0},"b) Höhe der zuwendungsfähigen Ausgaben (mind. 200 €)"]
[{"$f":"'Maßnahme 1 - Antrag'!J39","v":0},"c) Höhe von zweckgebundene Einnahmen (z. B. kommunale Zuschüsse, Spenden, nicht die staatliche Zuwendung)"]
[null,"Hinweis: Wenn keine zweckgebundenen Einnahmen vorliegen, sind 0,00 € einzutragen"]
[{"$f":"'Maßnahme 1 - Antrag'!U41","v":0},"d) Höhe der beantragten staatlichen Zuwendung (max. 50 % der zuwendungsfähigen Ausgaben)"]
[{"$f":"A59*0.1","v":0},"e) Eigenbeteiligung (mindestens 10 % der zuwendungsfähigen Ausgaben)"]
[]
[]
["2.2.","Maßnahme 2"]
[]
["Zuwendungszweck, Sachbericht"]
["Bezeichnung der Maßnahme:"]
[{"$f":"'Maßnahme 2 - Antrag'!J6","v":""}]
["Durchführungsdatum:"]
[{"$f":"'Maßnahme 2 - Antrag'!I8","v":""}]
["Zuwendungsfähig nach Nr. 2.",null,null,null,"FörTrachVR"]
["Stichpunktartige Beschreibung einschl. Zielgruppe, Zielsetzung und angestrebte Zielerreichung sowie Zahl der Teilnehmerinnen und Teilnehmer:"]
[]
[]
["Finanzierungsplan, zahlenmäßiger Nachweis"]
[{"$f":"'Maßnahme 2 - Antrag'!Y36","v":0},"a) Höhe der tatsächlich angefallenen Ausgaben"]
[{"$f":"'Maßnahme 2 - Antrag'!Y36","v":0},"b) Höhe der zuwendungsfähigen Ausgaben (mind. 200 €)"]
[{"$f":"'Maßnahme 2 - Antrag'!J39","v":0},"c) Höhe von zweckgebundene Einnahmen (z. B. kommunale Zuschüsse, Spenden, nicht die staatliche Zuwendung)"]
[null,"Hinweis: Wenn keine zweckgebundenen Einnahmen vorliegen, sind 0,00 € einzutragen"]
[{"$f":"'Maßnahme 2 - Antrag'!U41","v":0},"d) Höhe der beantragten staatlichen Zuwendung (max. 50 % der zuwendungsfähigen Ausgaben)"]
[{"$f":"A79*0.1","v":0},"e) Eigenbeteiligung (mindestens 10 % der zuwendungsfähigen Ausgaben)"]
[]
[]
["2.3.","Maßnahme 3"]
[]
["Zuwendungszweck, Sachbericht"]
["Bezeichnung der Maßnahme:"]
[{"$f":"'Maßnahme 3 - Antrag'!J6","v":""}]
["Durchführungsdatum:"]
[{"$f":"'Maßnahme 3 - Antrag'!I8","v":""}]
["Zuwendungsfähig nach Nr. 2.",null,null,null,"FörTrachVR"]
["Stichpunktartige Beschreibung einschl. Zielgruppe, Zielsetzung und angestrebte Zielerreichung sowie Zahl der Teilnehmerinnen und Teilnehmer:"]
[]
[]
["Finanzierungsplan, zahlenmäßiger Nachweis"]
[{"$f":"'Maßnahme 3 - Antrag'!Y36","v":0},"a) Höhe der tatsächlich angefallenen Ausgaben"]
[{"$f":"'Maßnahme 3 - Antrag'!Y36","v":0},"b) Höhe der zuwendungsfähigen Ausgaben (mind. 200 €)"]
[{"$f":"'Maßnahme 3 - Antrag'!J39","v":0},"c) Höhe von zweckgebundene Einnahmen (z. B. kommunale Zuschüsse, Spenden, nicht die staatliche Zuwendung)"]
[null,"Hinweis: Wenn keine zweckgebundenen Einnahmen vorliegen, sind 0,00 € einzutragen"]
[{"$f":"'Maßnahme 3 - Antrag'!U41","v":0},"d) Höhe der beantragten staatlichen Zuwendung (max. 50 % der zuwendungsfähigen Ausgaben)"]
[{"$f":"A99*0.1","v":0},"e) Eigenbeteiligung (mindestens 10 % der zuwendungsfähigen Ausgaben)"]
[]
["III.","Vertragsschluss einschl. Beantragung der Auszahlung "]
[]
["Für die unter II.1 geltend gemachte Jugendarbeitsförderung wird eine staatliche Zuwendung (Projektförderung) beantragt."]
["Für die unter II.2 belegten Ausgaben der Maßnahmen 1 bis Maßnahme 3",null,null,null,null,"und den dadurch nachgewiesenen "]
["Bedarf an einer Förderung nach der Trachtenverbandförderrichtlinie (Art. 23 BayHO) wird eine staatliche "]
["Zuwendung (Projektförderung) in Höhe von insgesamt",null,null,null,null,{"$f":"A102+A82+A62","v":0}]
["beantragt."]
["Der Vertragszeitraum beginnt am 1. Januar und endet am 31. Dezember ",null,null,null,null,{"$f":"A2","v":"2023"},"."]
["Die Zuwendung wird als Festbetrag ausgereicht."]
[]
["Die Auszahlung der Vertragssumme in Höhe von insgesamt ",null,null,null,null,{"$f":"F110+(A39*20)+(A42*100)","v":0}]
["auf das Konto entsprechend I. wird beantragt."]
["Vertragliche Bestimmungen \n1.\tZweck der Zuwendung \n1Die Zuwendung ist zweckgebunden und darf nur zur Deckung der Ausgaben verwendet werden, die gemäß der Trachtenverbandförderrichtlinie (FörTrachVR) anfallen. ²Die Zuwendung ist wirtschaftlich und sparsam zu verwenden. ³Für den Fördergegenstand darf keine (Doppel-)Förderung aus anderen Förderprogrammen der Europäischen Union, des Bundes oder der Länder erfolgen.\n2.\tVertragszeitraum\n1Vertragszeitraum ist das Kalenderjahr, für das die Zuwendung beantragt wird. Es dürfen nur Ausgaben für Projekte aus dem Vertragszeitraum geltend gemacht werden. ²Ausgaben für in den Vorjahren durchgeführte Maßnahmen oder Projekte sind nicht zuwendungsfähig.\n3.\tVertragliche Nebenbestimmungen zur Förderung:\n3.1\tDie Trachtenverbandförderrichtlinie ist Bestandteil dieses Vertrages. \n3.2\tDie Zuwendung ermäßigt sich oder ist zurückzuzahlen, wenn \na) der Zuwendungsbetrag und die sonstigen zweckgebundenen Einnahmen zusammen die tatsächlich angefallenen zuwendungsfähigen Ausgaben übersteigen; \nb) der Zuwendungsbetrag 50 % der tatsächlich angefallenen, zuwendungsfähigen Ausgaben übersteigt;\nc) nach Abzug des Zuwendungsbetrags und der sonstigen zweckgebundenen Einnahmen keine Eigenbeteiligung von mindestens 10 % der zuwendungsfähigen Ausgaben verbleibt. \n3.3 \tSoweit Maßnahmen gemäß Nrn. 2.2 und 2.4 bis 2.6 FörTrachVR nicht förderfähig sind, weil die zuwendungsfähigen Ausgaben unter 200 € liegen, kann die Zuwendung anteilig zurückgefordert werden.\n3.4\t 1Die Zuwendung darf nur zur Erfüllung des nach Nr. 1 dargestellten Zuwendungszwecks verwendet werden und unterliegt im Falle ihrer zweckwidrigen Verwendung der Rückforderung und Verzinsung. 2Dabei ist der Erstattungsanspruch mit drei Prozentpunkten über dem Basiszinssatz gemäß § 247 des Bürgerlichen Gesetzbuches (BGB) jährlich nach Maßgabe des Art. 49a Abs. 3 des Bayerischen Verwaltungsverfahrensgesetzes (BayVwVfG) zu verzinsen.\n3.5 \tDer Zuwendungsempfänger teilt unverzüglich dem Bayerischen Trachtenverband e. V., dem Zwischenempfänger sowie dem Landesamt für Digitalisierung, Breitband und Vermessung mit, wenn er nach Antragstellung weitere Mittel für den Zuwendungszweck erhält.\n3.6 \t1Die Belege enthalten die im Geschäftsverkehr üblichen Angaben und Anlagen, die Ausgabenbelege insbesondere den Zahlungsempfänger, Grund und Tag der Zahlung, den Zahlungsbeweis und bei Gegenständen den Verwendungszweck. ²Außerdem müssen die Belege ein eindeutiges Zuordnungsmerkmal zu der Maßnahme enthalten. ³Das gilt entsprechend für den Nachweis von Eigenleistungen. \n3.7 \t1Belege, Verträge und sonstige mit der Förderung zusammenhängende Unterlagen sind fünf Jahre (beginnend ab Vertragsschluss) aufzubewahren, sofern nicht nach steuerlichen oder anderen Vorschriften eine längere Aufbewahrungsfrist bestimmt ist. ²Die einschlägigen Bücher, Belege und Schriften werden auf Verlangen zur Prüfung vorgelegt."]
[]
[]
[]
["3.8 \t1Der Bayerische Trachtenverband e. V., der Zwischenempfänger sowie das Landesamt für Digitalisierung, Breitband und Vermessung sind berechtigt, die Verwendung der Mittel jederzeit zu überprüfen. ²Der Bayerische Oberste Rechnungshof ist gemäß Art. 91 der Bayerischen Haushaltsordnung (BayHO) zur Prüfung berechtigt.\n3.9\t1Der Bayerische Trachtenverband e. V., der Zwischenempfänger sowie das Landesamt für Digitalisierung, Breitband und Vermessung sind berechtigt, die erforderlichen Auskünfte und Unterlagen bei den für anderweitige Förderungen zuständigen Bewilligungsstellen, insbesondere dem Bayerischen Staatsministerium für Familie, Arbeit und Soziales sowie dem Bayerischen Jugendring, zum Zweck der Antragsprüfung oder einer späteren Überprüfung der Förderung einzuholen. ²Der Antragsteller ermächtigt die Bewilligungsstellen nach Satz 1, die angeforderten Auskünfte zu erteilen und Unterlagen zu übersenden.\n3.10 1Der Bayerische Trachtenverband e. V. und der Zwischenempfänger sind zum Rücktritt vom Vertrag aus wichtigem Grund berechtigt. ²Ein wichtiger Grund ist insbesondere gegeben, wenn\na)\tdie Voraussetzungen für den Vertragsschluss nachträglich entfallen sind,\nb) \tder Abschluss des Vertrages durch Angaben des Antragstellers zustande gekommen ist, die in wesentlicher Beziehung unrichtig oder unvollständig waren,\nc) \tder Antragsteller den Vorgaben dieses Vertrages oder der Trachtenverbandförderrichtlinie nicht oder nur in unzureichender Form nachkommt. \n3.11 Änderungen und Ergänzungen dieses Vertrags bedürfen der Schriftform; dies gilt auch für den Verzicht auf dieses Schriftformerfordernis.\n3.12 Es ist in geeigneter Form auf die finanzielle Förderung durch das Bayerische Staatsministerium der Finanzen und für Heimat hinzuweisen (zum Beispiel auf Plakaten, Programmbroschüren sowie in allen Pressemitteilungen, die der Veranstalter herausgibt).\n\nErklärung\n1Mit Antragstellung wird in Kenntnis der strafrechtlichen Bedeutung unvollständiger oder falscher Angaben bestätigt, dass \na)\tdie Einnahmen und Ausgaben nach den Rechnungsunterlagen im Zusammenhang mit dem geförderten Vorhaben angefallen sind, \nb) \tdie nicht zuwendungsfähigen Beträge, Rückforderungen und Rückzahlungen abgesetzt wurden, \nc) \tdie Zuwendung ausschließlich zur Erfüllung des unter II. näher bestimmten Zuwendungszwecks verwendet wurde und \nd) \tdie in diesem Zuwendungsvertrag genannten Bedingungen und Auflagen eingehalten wurden.\n2Mit Antragstellung wird bestätigt, \na)\tdass eine Förderung im Rahmen des Kinder- und Jugendprogramms der Bayerischen Staatsregierung nicht stattgefunden hat. 2Dem Antragsteller ist bekannt, dass die Zuwendung bei gleichzeitiger Förderung derselben Maßnahme im Sinne der Trachtenverbandförderrichtlinie und nach dem Kinder- und Jugendprogramm der Bayerischen Staatsregierung zu erstatten ist;\nb)\tdass dem Antragsteller bekannt ist, dass die tatsächliche Vertragssumme von der beantragten Zuwendungssumme nach unten abweichen kann. 2Daher erklärt sich der Antragsteller mit der gegebenenfalls niedrigeren Förderung ausdrücklich einverstanden und sichert zu, dass er einen durch eine niedrigere staatliche Zuwendung entstehenden Fehlbetrag aus eigenen Mitteln ausgleichen kann und die Projektfinanzierung somit sichergestellt ist (der Vertragsschluss bezieht sich auf die tatsächlich gewährte Fördersumme, nicht auf die beantragte Förderung);\nc)\tdass auf die Einlegung etwaiger Rechtsbehelfe verzichtet wird;\nd)\tdass die Ausgaben notwendig waren, wirtschaftlich und sparsam verfahren worden ist und die Angaben mit den Büchern und Belegen übereinstimmen."]
[]
[]
[]
["Für die Richtigkeit der Angaben und den Vertragsschluss:"]
[]
[]
[]
["Ort, Datum"]
[]
[]
[]
[]
["Unterschrift der vertretungsberechtigten Person (§26 BGB)",null,null,null,null,"Stempel (falls vorhanden)"]

{"sheet":"Zusätzliche Auswertungen","index":18,"n_rows":18,"n_cols":15,"rows_kept":18,"cut":false,"hidden":false,"merged":[[0,0,0,8],[1,0,1,7]]}
["Kinder- und Jugenderfassung  - Zusätzliche Auswertungen"]
[]
["Buam",null,null,null,null,"Deandl"]
["Spalte",null,"Suchkriterium eintragen","Anzahl",null,"Spalte",null,"Suchkriterium eintragen","Anzahl"]
[1,"Suche nach",null,{"$f":"IF(A5=1,COUNTIFS(Buam!$B$2:$B$952,C5),IF(A5=2,COUNTIFS(Buam!$C$2:$C$952,C5),IF(A5=3,COUNTIFS(Buam!$E$2:$E$952,C5),IF(A5=4,COUNTIFS(Buam!$H$2:$H$952,C5),IF(A5=5,COUNTIFS(Buam!$V$2:$V$952,C5),IF(A5=6,COUNTIFS(Buam!$X$2:$X$952,C5),IF(A5=7,COUNTIFS(Buam!$B$2:$Z$952,C5),IF(A5=8,COUNTIFS(Buam!$AB$2:$AB$952,C5),IF(A5=9,COUNTIFS(Buam!B$2:AC952,C5),IF(A5=10,COUNTIFS(Buam!$AD$2:$AD$952,C5),IF(A5=11,COUNTIFS(Buam!$AE$2:$AE$952,C5))))))))))))","v":0},null,1,"Suche nach",null,{"$f":"IF(F5=1,COUNTIFS(Deandl!$B$2:$B$962,H5),IF(F5=2,COUNTIFS(Deandl!$C$2:$C$962,H5),IF(F5=3,COUNTIFS(Deandl!$E$2:$E$962,H5),IF(F5=4,COUNTIFS(Deandl!$H$2:$H$962,H5),IF(F5=5,COUNTIFS(Deandl!$V$2:$V$962,H5),IF(F5=6,COUNTIFS(Deandl!$X$2:$X$962,H5),IF(F5=7,COUNTIFS(Deandl!$Z$2:$Z$962,H5),IF(F5=8,COUNTIFS(Deandl!$AB$2:$AB$962,H5),IF(F5=9,COUNTIFS(Deandl!G$2:AH962,H5),IF(F5=10,COUNTIFS(Deandl!$AD$2:$AD$962,H5),IF(F5=11,COUNTIFS(Deandl!$AE$2:$AE$962,H5))))))))))))","v":0}]
[1,"Suche nach",null,{"$f":"IF(A6=1,COUNTIFS(Buam!$B$2:$B$952,C6),IF(A6=2,COUNTIFS(Buam!$C$2:$C$952,C6),IF(A6=3,COUNTIFS(Buam!$E$2:$E$952,C6),IF(A6=4,COUNTIFS(Buam!$H$2:$H$952,C6),IF(A6=5,COUNTIFS(Buam!$V$2:$V$952,C6),IF(A6=6,COUNTIFS(Buam!$X$2:$X$952,C6),IF(A6=7,COUNTIFS(Buam!$B$2:$Z$952,C6),IF(A6=8,COUNTIFS(Buam!$AB$2:$AB$952,C6),IF(A6=9,COUNTIFS(Buam!B$2:AC953,C6),IF(A6=10,COUNTIFS(Buam!$AD$2:$AD$952,C6),IF(A6=11,COUNTIFS(Buam!$AE$2:$AE$952,C6))))))))))))","v":0},null,1,"Suche nach",null,{"$f":"IF(F6=1,COUNTIFS(Deandl!$B$2:$B$962,H6),IF(F6=2,COUNTIFS(Deandl!$C$2:$C$962,H6),IF(F6=3,COUNTIFS(Deandl!$E$2:$E$962,H6),IF(F6=4,COUNTIFS(Deandl!$H$2:$H$962,H6),IF(F6=5,COUNTIFS(Deandl!$V$2:$V$962,H6),IF(F6=6,COUNTIFS(Deandl!$X$2:$X$962,H6),IF(F6=7,COUNTIFS(Deandl!$Z$2:$Z$962,H6),IF(F6=8,COUNTIFS(Deandl!$AB$2:$AB$962,H6),IF(F6=9,COUNTIFS(Deandl!G$2:AH963,H6),IF(F6=10,COUNTIFS(Deandl!$AD$2:$AD$962,H6),IF(F6=11,COUNTIFS(Deandl!$AE$2:$AE$962,H6))))))))))))","v":0}]
[4,"Suche nach",null,{"$f":"IF(A7=1,COUNTIFS(Buam!$B$2:$B$952,C7),IF(A7=2,COUNTIFS(Buam!$C$2:$C$952,C7),IF(A7=3,COUNTIFS(Buam!$E$2:$E$952,C7),IF(A7=4,COUNTIFS(Buam!$H$2:$H$952,C7),IF(A7=5,COUNTIFS(Buam!$V$2:$V$952,C7),IF(A7=6,COUNTIFS(Buam!$X$2:$X$952,C7),IF(A7=7,COUNTIFS(Buam!$B$2:$Z$952,C7),IF(A7=8,COUNTIFS(Buam!$AB$2:$AB$952,C7),IF(A7=9,COUNTIFS(Buam!B$2:AC954,C7),IF(A7=10,COUNTIFS(Buam!$AD$2:$AD$952,C7),IF(A7=11,COUNTIFS(Buam!$AE$2:$AE$952,C7))))))))))))","v":0},null,1,"Suche nach",null,{"$f":"IF(F7=1,COUNTIFS(Deandl!$B$2:$B$962,H7),IF(F7=2,COUNTIFS(Deandl!$C$2:$C$962,H7),IF(F7=3,COUNTIFS(Deandl!$E$2:$E$962,H7),IF(F7=4,COUNTIFS(Deandl!$H$2:$H$962,H7),IF(F7=5,COUNTIFS(Deandl!$V$2:$V$962,H7),IF(F7=6,COUNTIFS(Deandl!$X$2:$X$962,H7),IF(F7=7,COUNTIFS(Deandl!$Z$2:$Z$962,H7),IF(F7=8,COUNTIFS(Deandl!$AB$2:$AB$962,H7),IF(F7=9,COUNTIFS(Deandl!G$2:AH964,H7),IF(F7=10,COUNTIFS(Deandl!$AD$2:$AD$962,H7),IF(F7=11,COUNTIFS(Deandl!$AE$2:$AE$962,H7))))))))))))","v":0}]
[1,"Suche nach",null,{"$f":"IF(A8=1,COUNTIFS(Buam!$B$2:$B$952,C8),IF(A8=2,COUNTIFS(Buam!$C$2:$C$952,C8),IF(A8=3,COUNTIFS(Buam!$E$2:$E$952,C8),IF(A8=4,COUNTIFS(Buam!$H$2:$H$952,C8),IF(A8=5,COUNTIFS(Buam!$V$2:$V$952,C8),IF(A8=6,COUNTIFS(Buam!$X$2:$X$952,C8),IF(A8=7,COUNTIFS(Buam!$B$2:$Z$952,C8),IF(A8=8,COUNTIFS(Buam!$AB$2:$AB$952,C8),IF(A8=9,COUNTIFS(Buam!B$2:AC955,C8),IF(A8=10,COUNTIFS(Buam!$AD$2:$AD$952,C8),IF(A8=11,COUNTIFS(Buam!$AE$2:$AE$952,C8))))))))))))","v":0},null,1,"Suche nach",null,{"$f":"IF(F8=1,COUNTIFS(Deandl!$B$2:$B$962,H8),IF(F8=2,COUNTIFS(Deandl!$C$2:$C$962,H8),IF(F8=3,COUNTIFS(Deandl!$E$2:$E$962,H8),IF(F8=4,COUNTIFS(Deandl!$H$2:$H$962,H8),IF(F8=5,COUNTIFS(Deandl!$V$2:$V$962,H8),IF(F8=6,COUNTIFS(Deandl!$X$2:$X$962,H8),IF(F8=7,COUNTIFS(Deandl!$Z$2:$Z$962,H8),IF(F8=8,COUNTIFS(Deandl!$AB$2:$AB$962,H8),IF(F8=9,COUNTIFS(Deandl!G$2:AH965,H8),IF(F8=10,COUNTIFS(Deandl!$AD$2:$AD$962,H8),IF(F8=11,COUNTIFS(Deandl!$AE$2:$AE$962,H8))))))))))))","v":0},null,null,null,null,null,"Name"]
[1,"Suche nach",null,{"$f":"IF(A9=1,COUNTIFS(Buam!$B$2:$B$952,C9),IF(A9=2,COUNTIFS(Buam!$C$2:$C$952,C9),IF(A9=3,COUNTIFS(Buam!$E$2:$E$952,C9),IF(A9=4,COUNTIFS(Buam!$H$2:$H$952,C9),IF(A9=5,COUNTIFS(Buam!$V$2:$V$952,C9),IF(A9=6,COUNTIFS(Buam!$X$2:$X$952,C9),IF(A9=7,COUNTIFS(Buam!$B$2:$Z$952,C9),IF(A9=8,COUNTIFS(Buam!$AB$2:$AB$952,C9),IF(A9=9,COUNTIFS(Buam!B$2:AC956,C9),IF(A9=10,COUNTIFS(Buam!$AD$2:$AD$952,C9),IF(A9=11,COUNTIFS(Buam!$AE$2:$AE$952,C9))))))))))))","v":0},null,1,"Suche nach",null,{"$f":"IF(F9=1,COUNTIFS(Deandl!$B$2:$B$962,H9),IF(F9=2,COUNTIFS(Deandl!$C$2:$C$962,H9),IF(F9=3,COUNTIFS(Deandl!$E$2:$E$962,H9),IF(F9=4,COUNTIFS(Deandl!$H$2:$H$962,H9),IF(F9=5,COUNTIFS(Deandl!$V$2:$V$962,H9),IF(F9=6,COUNTIFS(Deandl!$X$2:$X$962,H9),IF(F9=7,COUNTIFS(Deandl!$Z$2:$Z$962,H9),IF(F9=8,COUNTIFS(Deandl!$AB$2:$AB$962,H9),IF(F9=9,COUNTIFS(Deandl!G$2:AH966,H9),IF(F9=10,COUNTIFS(Deandl!$AD$2:$AD$962,H9),IF(F9=11,COUNTIFS(Deandl!$AE$2:$AE$962,H9))))))))))))","v":0},null,null,null,null,null,"Vorname"]
[1,"Suche nach",null,{"$f":"IF(A10=1,COUNTIFS(Buam!$B$2:$B$952,C10),IF(A10=2,COUNTIFS(Buam!$C$2:$C$952,C10),IF(A10=3,COUNTIFS(Buam!$E$2:$E$952,C10),IF(A10=4,COUNTIFS(Buam!$H$2:$H$952,C10),IF(A10=5,COUNTIFS(Buam!$V$2:$V$952,C10),IF(A10=6,COUNTIFS(Buam!$X$2:$X$952,C10),IF(A10=7,COUNTIFS(Buam!$B$2:$Z$952,C10),IF(A10=8,COUNTIFS(Buam!$AB$2:$AB$952,C10),IF(A10=9,COUNTIFS(Buam!B$2:AC957,C10),IF(A10=10,COUNTIFS(Buam!$AD$2:$AD$952,C10),IF(A10=11,COUNTIFS(Buam!$AE$2:$AE$952,C10))))))))))))","v":0},null,1,"Suche nach",null,{"$f":"IF(F10=1,COUNTIFS(Deandl!$B$2:$B$962,H10),IF(F10=2,COUNTIFS(Deandl!$C$2:$C$962,H10),IF(F10=3,COUNTIFS(Deandl!$E$2:$E$962,H10),IF(F10=4,COUNTIFS(Deandl!$H$2:$H$962,H10),IF(F10=5,COUNTIFS(Deandl!$V$2:$V$962,H10),IF(F10=6,COUNTIFS(Deandl!$X$2:$X$962,H10),IF(F10=7,COUNTIFS(Deandl!$Z$2:$Z$962,H10),IF(F10=8,COUNTIFS(Deandl!$AB$2:$AB$962,H10),IF(F10=9,COUNTIFS(Deandl!G$2:AH967,H10),IF(F10=10,COUNTIFS(Deandl!$AD$2:$AD$962,H10),IF(F10=11,COUNTIFS(Deandl!$AE$2:$AE$962,H10))))))))))))","v":0},null,null,null,null,null,"Alter"]
[4,"Suche nach",null,{"$f":"IF(A11=1,COUNTIFS(Buam!$B$2:$B$952,C11),IF(A11=2,COUNTIFS(Buam!$C$2:$C$952,C11),IF(A11=3,COUNTIFS(Buam!$E$2:$E$952,C11),IF(A11=4,COUNTIFS(Buam!$H$2:$H$952,C11),IF(A11=5,COUNTIFS(Buam!$V$2:$V$952,C11),IF(A11=6,COUNTIFS(Buam!$X$2:$X$952,C11),IF(A11=7,COUNTIFS(Buam!$B$2:$Z$952,C11),IF(A11=8,COUNTIFS(Buam!$AB$2:$AB$952,C11),IF(A11=9,COUNTIFS(Buam!B$2:AC958,C11),IF(A11=10,COUNTIFS(Buam!$AD$2:$AD$952,C11),IF(A11=11,COUNTIFS(Buam!$AE$2:$AE$952,C11))))))))))))","v":0},null,1,"Suche nach",null,{"$f":"IF(F11=1,COUNTIFS(Deandl!$B$2:$B$962,H11),IF(F11=2,COUNTIFS(Deandl!$C$2:$C$962,H11),IF(F11=3,COUNTIFS(Deandl!$E$2:$E$962,H11),IF(F11=4,COUNTIFS(Deandl!$H$2:$H$962,H11),IF(F11=5,COUNTIFS(Deandl!$V$2:$V$962,H11),IF(F11=6,COUNTIFS(Deandl!$X$2:$X$962,H11),IF(F11=7,COUNTIFS(Deandl!$Z$2:$Z$962,H11),IF(F11=8,COUNTIFS(Deandl!$AB$2:$AB$962,H11),IF(F11=9,COUNTIFS(Deandl!G$2:AH968,H11),IF(F11=10,COUNTIFS(Deandl!$AD$2:$AD$962,H11),IF(F11=11,COUNTIFS(Deandl!$AE$2:$AE$962,H11))))))))))))","v":0},null,null,null,null,null,"PLZ"]
[1,"Suche nach",null,{"$f":"IF(A12=1,COUNTIFS(Buam!$B$2:$B$952,C12),IF(A12=2,COUNTIFS(Buam!$C$2:$C$952,C12),IF(A12=3,COUNTIFS(Buam!$E$2:$E$952,C12),IF(A12=4,COUNTIFS(Buam!$H$2:$H$952,C12),IF(A12=5,COUNTIFS(Buam!$V$2:$V$952,C12),IF(A12=6,COUNTIFS(Buam!$X$2:$X$952,C12),IF(A12=7,COUNTIFS(Buam!$B$2:$Z$952,C12),IF(A12=8,COUNTIFS(Buam!$AB$2:$AB$952,C12),IF(A12=9,COUNTIFS(Buam!B$2:AC959,C12),IF(A12=10,COUNTIFS(Buam!$AD$2:$AD$952,C12),IF(A12=11,COUNTIFS(Buam!$AE$2:$AE$952,C12))))))))))))","v":0},null,1,"Suche nach",null,{"$f":"IF(F12=1,COUNTIFS(Deandl!$B$2:$B$962,H12),IF(F12=2,COUNTIFS(Deandl!$C$2:$C$962,H12),IF(F12=3,COUNTIFS(Deandl!$E$2:$E$962,H12),IF(F12=4,COUNTIFS(Deandl!$H$2:$H$962,H12),IF(F12=5,COUNTIFS(Deandl!$V$2:$V$962,H12),IF(F12=6,COUNTIFS(Deandl!$X$2:$X$962,H12),IF(F12=7,COUNTIFS(Deandl!$Z$2:$Z$962,H12),IF(F12=8,COUNTIFS(Deandl!$AB$2:$AB$962,H12),IF(F12=9,COUNTIFS(Deandl!G$2:AH969,H12),IF(F12=10,COUNTIFS(Deandl!$AD$2:$AD$962,H12),IF(F12=11,COUNTIFS(Deandl!$AE$2:$AE$962,H12))))))))))))","v":0},null,null,null,null,null,"Eintrittsjahr"]
[1,"Suche nach",null,{"$f":"IF(A13=1,COUNTIFS(Buam!$B$2:$B$952,C13),IF(A13=2,COUNTIFS(Buam!$C$2:$C$952,C13),IF(A13=3,COUNTIFS(Buam!$E$2:$E$952,C13),IF(A13=4,COUNTIFS(Buam!$H$2:$H$952,C13),IF(A13=5,COUNTIFS(Buam!$V$2:$V$952,C13),IF(A13=6,COUNTIFS(Buam!$X$2:$X$952,C13),IF(A13=7,COUNTIFS(Buam!$B$2:$Z$952,C13),IF(A13=8,COUNTIFS(Buam!$AB$2:$AB$952,C13),IF(A13=9,COUNTIFS(Buam!B$2:AC960,C13),IF(A13=10,COUNTIFS(Buam!$AD$2:$AD$952,C13),IF(A13=11,COUNTIFS(Buam!$AE$2:$AE$952,C13))))))))))))","v":0},null,1,"Suche nach",null,{"$f":"IF(F13=1,COUNTIFS(Deandl!$B$2:$B$962,H13),IF(F13=2,COUNTIFS(Deandl!$C$2:$C$962,H13),IF(F13=3,COUNTIFS(Deandl!$E$2:$E$962,H13),IF(F13=4,COUNTIFS(Deandl!$H$2:$H$962,H13),IF(F13=5,COUNTIFS(Deandl!$V$2:$V$962,H13),IF(F13=6,COUNTIFS(Deandl!$X$2:$X$962,H13),IF(F13=7,COUNTIFS(Deandl!$Z$2:$Z$962,H13),IF(F13=8,COUNTIFS(Deandl!$AB$2:$AB$962,H13),IF(F13=9,COUNTIFS(Deandl!G$2:AH970,H13),IF(F13=10,COUNTIFS(Deandl!$AD$2:$AD$962,H13),IF(F13=11,COUNTIFS(Deandl!$AE$2:$AE$962,H13))))))))))))","v":0},null,null,null,null,null,"Sonstiges 1"]
[1,"Suche nach",null,{"$f":"IF(A14=1,COUNTIFS(Buam!$B$2:$B$952,C14),IF(A14=2,COUNTIFS(Buam!$C$2:$C$952,C14),IF(A14=3,COUNTIFS(Buam!$E$2:$E$952,C14),IF(A14=4,COUNTIFS(Buam!$H$2:$H$952,C14),IF(A14=5,COUNTIFS(Buam!$V$2:$V$952,C14),IF(A14=6,COUNTIFS(Buam!$X$2:$X$952,C14),IF(A14=7,COUNTIFS(Buam!$B$2:$Z$952,C14),IF(A14=8,COUNTIFS(Buam!$AB$2:$AB$952,C14),IF(A14=9,COUNTIFS(Buam!B$2:AC961,C14),IF(A14=10,COUNTIFS(Buam!$AD$2:$AD$952,C14),IF(A14=11,COUNTIFS(Buam!$AE$2:$AE$952,C14))))))))))))","v":0},null,1,"Suche nach",null,{"$f":"IF(F14=1,COUNTIFS(Deandl!$B$2:$B$962,H14),IF(F14=2,COUNTIFS(Deandl!$C$2:$C$962,H14),IF(F14=3,COUNTIFS(Deandl!$E$2:$E$962,H14),IF(F14=4,COUNTIFS(Deandl!$H$2:$H$962,H14),IF(F14=5,COUNTIFS(Deandl!$V$2:$V$962,H14),IF(F14=6,COUNTIFS(Deandl!$X$2:$X$962,H14),IF(F14=7,COUNTIFS(Deandl!$Z$2:$Z$962,H14),IF(F14=8,COUNTIFS(Deandl!$AB$2:$AB$962,H14),IF(F14=9,COUNTIFS(Deandl!G$2:AH971,H14),IF(F14=10,COUNTIFS(Deandl!$AD$2:$AD$962,H14),IF(F14=11,COUNTIFS(Deandl!$AE$2:$AE$962,H14))))))))))))","v":0},null,null,null,null,null,"Sonstiges 2"]
[null,null,null,null,null,null,null,null,null,null,null,null,null,null,"Sonstiges 3"]
[null,null,null,null,null,null,null,null,null,null,null,null,null,null,"Zusätzlich I"]
[null,null,null,null,null,null,null,null,null,null,null,null,null,null,"Zusätzlich II"]
[null,null,null,null,null,null,null,null,null,null,null,null,null,null,"Zusätzlich III"]